Department,Entity,Transaction Date,Expense Type,Expense Area,Supplier,Transaction No.,Amount,
"Department for Business, Energy and Industrial Strategy",The Coal Authority,31/05/2023,Applications Consultancy,DIG - Technical Delivery,Cgi It Uk Ltd,"1,000.00",2024/004,158267
"Department for Business, Energy and Industrial Strategy",The Coal Authority,31/05/2023,Applications Consultancy,DIG - Technical Delivery,Cgi It Uk Ltd,"4,935.00",2024/004,158267
"Department for Business, Energy and Industrial Strategy",The Coal Authority,31/05/2023,Applications Consultancy,DIG - Technical Delivery,Cgi It Uk Ltd,"8,743.50",2024/004,158267
"Department for Business, Energy and Industrial Strategy",The Coal Authority,31/05/2023,Applications Consultancy,DIG - Technical Delivery,Cgi It Uk Ltd,350,2024/004,158267
"Department for Business, Energy and Industrial Strategy",The Coal Authority,12/06/2023,Applications Consultancy,DIG - Service & Assurance,Computacenter (Uk) Ltd,"13,989.69",2024/004,158441
"Department for Business, Energy and Industrial Strategy",The Coal Authority,22/06/2023,Applications Consultancy,DIG - Technical Delivery,Cgi It Uk Ltd,"99,992.28",2024/004,159086
"Department for Business, Energy and Industrial Strategy",The Coal Authority,30/06/2023,Bank Charges,Finance,National Westminster Bank Plc,65.04,2024/004,159228
"Department for Business, Energy and Industrial Strategy",The Coal Authority,12/07/2023,BGS Royalty,Mining Reports,Nerc,"3,037.79",2024/004,159433
"Department for Business, Energy and Industrial Strategy",The Coal Authority,10/07/2023,Bridgewater - Contractor Costs,PS&S - General Claims,The Bridgewater Canal Co Ltd,"30,299.22",2024/004,158877
"Department for Business, Energy and Industrial Strategy",The Coal Authority,10/07/2023,Bridgewater - Contractor Costs,PS&S - General Claims,The Bridgewater Canal Co Ltd,"2,412.56",2024/004,158887
"Department for Business, Energy and Industrial Strategy",The Coal Authority,03/07/2023,Business Entertainment / Hospitality,ENV - Salinity Programme,S P Foods,66.15,2024/004,158769
"Department for Business, Energy and Industrial Strategy",The Coal Authority,17/05/2023,Business Entertainment / Hospitality,DIG - Data Licensing,Government Procurement Card,5.71,2024/004,159118
"Department for Business, Energy and Industrial Strategy",The Coal Authority,28/03/2023,Business Entertainment / Hospitality,Staff Network and Groups,Government Procurement Card,17.58,2024/004,159925
"Department for Business, Energy and Industrial Strategy",The Coal Authority,05/07/2023,Business Meetings,PS&S - General Claims,Calder Conference Ltd,"1,385.00",2024/004,158350
"Department for Business, Energy and Industrial Strategy",The Coal Authority,10/07/2023,Business Meetings,People & Organisational Development,Ransomwood Estates Ltd,463.5,2024/004,158890
"Department for Business, Energy and Industrial Strategy",The Coal Authority,02/06/2023,Business Meetings,PS&S - General Claims,Government Procurement Card,7.88,2024/004,159117
"Department for Business, Energy and Industrial Strategy",The Coal Authority,06/06/2023,Business Meetings,Executive,Government Procurement Card,7.75,2024/004,159117
"Department for Business, Energy and Industrial Strategy",The Coal Authority,06/06/2023,Business Meetings,PS&S - General Claims,Government Procurement Card,5.67,2024/004,159117
"Department for Business, Energy and Industrial Strategy",The Coal Authority,16/06/2023,Business Meetings,PS&S - General Claims,Government Procurement Card,6.57,2024/004,159117
"Department for Business, Energy and Industrial Strategy",The Coal Authority,28/06/2023,Business Meetings,PS&S - General Claims,Government Procurement Card,5.92,2024/004,159117
"Department for Business, Energy and Industrial Strategy",The Coal Authority,28/06/2023,Business Meetings,PS&S - General Claims,Government Procurement Card,5.92,2024/004,159117
"Department for Business, Energy and Industrial Strategy",The Coal Authority,29/06/2023,Business Meetings,NRW Metal Mine Programme,Government Procurement Card,120,2024/004,159117
"Department for Business, Energy and Industrial Strategy",The Coal Authority,03/05/2023,Business Meetings,PS&S - General Claims,Government Procurement Card,125,2024/004,159118
"Department for Business, Energy and Industrial Strategy",The Coal Authority,04/05/2023,Business Meetings,PS&S - General Claims,Government Procurement Card,6.88,2024/004,159118
"Department for Business, Energy and Industrial Strategy",The Coal Authority,05/05/2023,Business Meetings,PS&S - General Claims,Government Procurement Card,66.67,2024/004,159118
"Department for Business, Energy and Industrial Strategy",The Coal Authority,12/05/2023,Business Meetings,PS&S - General Claims,Government Procurement Card,6.32,2024/004,159118
"Department for Business, Energy and Industrial Strategy",The Coal Authority,16/05/2023,Business Meetings,PS&S - General Claims,Government Procurement Card,6.17,2024/004,159118
"Department for Business, Energy and Industrial Strategy",The Coal Authority,17/05/2023,Business Meetings,PS&S - General Claims,Government Procurement Card,5.04,2024/004,159118
"Department for Business, Energy and Industrial Strategy",The Coal Authority,17/05/2023,Business Meetings,PS&S - General Claims,Government Procurement Card,5.42,2024/004,159118
"Department for Business, Energy and Industrial Strategy",The Coal Authority,17/05/2023,Business Meetings,PS&S - General Claims,Government Procurement Card,1.5,2024/004,159118
"Department for Business, Energy and Industrial Strategy",The Coal Authority,21/07/2023,Business Meetings,Executive,Calder Conference Ltd,73.69,2024/004,159346
"Department for Business, Energy and Industrial Strategy",The Coal Authority,19/07/2023,Business Meetings,Board,Calder Conference Ltd,622.16,2024/004,159514
"Department for Business, Energy and Industrial Strategy",The Coal Authority,30/05/2023,Business Meetings,Executive,Government Procurement Card,3.79,2024/004,159926
"Department for Business, Energy and Industrial Strategy",The Coal Authority,30/05/2023,Business Meetings,Executive,Government Procurement Card,171.75,2024/004,159926
"Department for Business, Energy and Industrial Strategy",The Coal Authority,06/06/2023,Business Meetings,ENV - Mine Water Operations,Government Procurement Card,29.17,2024/004,159927
"Department for Business, Energy and Industrial Strategy",The Coal Authority,20/06/2023,Business Meetings,ENV - Mine Water Operations,Government Procurement Card,5.82,2024/004,159927
"Department for Business, Energy and Industrial Strategy",The Coal Authority,08/06/2023,Business Publications,Executive,Government Procurement Card,46.29,2024/004,159117
"Department for Business, Energy and Industrial Strategy",The Coal Authority,13/06/2023,Business Publications,DEFRA Metal Mine Programme,Government Procurement Card,19.6,2024/004,159117
"Department for Business, Energy and Industrial Strategy",The Coal Authority,01/07/2023,Canteen Equipment,Facilities,East Midlands Vending Ltd,90,2024/004,157995
"Department for Business, Energy and Industrial Strategy",The Coal Authority,25/06/2023,Canteen Equipment,Facilities,Eden Springs UK LTD,180.48,2024/004,158275
"Department for Business, Energy and Industrial Strategy",The Coal Authority,28/04/2023,Central Training,NRW Metal Mine Programme,Staff Expenses Control,39.62,2024/004,157862
"Department for Business, Energy and Industrial Strategy",The Coal Authority,23/06/2023,Central Training,ENV - Technical,Staff Expenses Control,30,2024/004,157862
"Department for Business, Energy and Industrial Strategy",The Coal Authority,29/06/2023,Central Training,"Health, Safety & Wellbeing",Mines Rescue Service Limited,282,2024/004,157986
"Department for Business, Energy and Industrial Strategy",The Coal Authority,21/06/2023,Central Training,International,Staff Expenses Control,29.17,2024/004,158576
"Department for Business, Energy and Industrial Strategy",The Coal Authority,17/05/2023,Central Training,People & Organisational Development,Oe Cam Llp,"3,143.09",2024/004,158897
"Department for Business, Energy and Industrial Strategy",The Coal Authority,24/07/2023,Central Training,"Health, Safety & Wellbeing",Risk & Safety Management Serv,289,2024/004,159666
"Department for Business, Energy and Industrial Strategy",The Coal Authority,05/07/2023,Central Training,"Health, Safety & Wellbeing",eDriving Ltd,315.5,2024/004,159747
"Department for Business, Energy and Industrial Strategy",The Coal Authority,13/07/2023,Central Training,"Health, Safety & Wellbeing",Risk & Safety Management Serv,469,2024/004,159967
"Department for Business, Energy and Industrial Strategy",The Coal Authority,17/07/2023,Central Training,"Health, Safety & Wellbeing",RRC International,235,2024/004,159968
"Department for Business, Energy and Industrial Strategy",The Coal Authority,17/07/2023,Central Training,"Health, Safety & Wellbeing",RRC International,310,2024/004,159969
"Department for Business, Energy and Industrial Strategy",The Coal Authority,07/07/2023,Central Training,"Health, Safety & Wellbeing",Peoplesafe,239.51,2024/004,159970
"Department for Business, Energy and Industrial Strategy",The Coal Authority,28/06/2023,Cleaning Materials,Facilities,Fidelis,609.38,2024/004,157971
"Department for Business, Energy and Industrial Strategy",The Coal Authority,06/12/2022,Consultancy - Employee Matters,People & Organisational Development,DLA Piper UK LLP Client Account,"11,710.84",2024/004,158694
"Department for Business, Energy and Industrial Strategy",The Coal Authority,22/06/2023,Consultancy - Employee Matters,People & Organisational Development,Korn Ferry (UK) Limited,"7,858.00",2024/004,159406
"Department for Business, Energy and Industrial Strategy",The Coal Authority,20/07/2023,Consultancy - Sustainability,ENV - Sustainability & Environmental Compliance,AECOM Ltd,"5,250.25",2024/004,159831
"Department for Business, Energy and Industrial Strategy",The Coal Authority,20/07/2023,Consultancy - Sustainability,ENV - Sustainability & Environmental Compliance,AECOM Ltd,"20,125.25",2024/004,159831
"Department for Business, Energy and Industrial Strategy",The Coal Authority,20/07/2023,Consultancy - Sustainability,ENV - Sustainability & Environmental Compliance,AECOM Ltd,400.65,2024/004,159832
"Department for Business, Energy and Industrial Strategy",The Coal Authority,20/07/2023,Consultancy - Sustainability,ENV - Sustainability & Environmental Compliance,AECOM Ltd,48.75,2024/004,159832
"Department for Business, Energy and Industrial Strategy",The Coal Authority,30/06/2023,Contract Hire Vehicles,Facilities,Enterprise Rent A Car,"2,855.79",2024/004,158914
"Department for Business, Energy and Industrial Strategy",The Coal Authority,27/06/2023,Contract Hire Vehicles,PS&S - General Claims,Government Procurement Card,375,2024/004,159117
"Department for Business, Energy and Industrial Strategy",The Coal Authority,22/05/2023,Contract Hire Vehicles,PS&S - General Claims,Government Procurement Card,5.83,2024/004,159118
"Department for Business, Energy and Industrial Strategy",The Coal Authority,07/07/2023,Contract Hire Vehicles,PS&S - General Claims,Days Fleet,20,2024/004,159434
"Department for Business, Energy and Industrial Strategy",The Coal Authority,21/07/2023,Contract Hire Vehicles,PS&S - General Claims,Kinto UK Limited,646.45,2024/004,159665
"Department for Business, Energy and Industrial Strategy",The Coal Authority,13/07/2023,Contract Hire Vehicles,PS&S - General Claims,Kinto UK Limited,"1,045.00",2024/004,159771
"Department for Business, Energy and Industrial Strategy",The Coal Authority,29/06/2023,Contract Hire Vehicles,PS&S - General Claims,Kinto UK Limited,35.56,2024/004,159776
"Department for Business, Energy and Industrial Strategy",The Coal Authority,29/06/2023,Contract Hire Vehicles,PS&S - General Claims,Kinto UK Limited,48.5,2024/004,159776
"Department for Business, Energy and Industrial Strategy",The Coal Authority,29/06/2023,Contract Hire Vehicles,PS&S - General Claims,Kinto UK Limited,1,2024/004,159776
"Department for Business, Energy and Industrial Strategy",The Coal Authority,29/06/2023,Contract Hire Vehicles,PS&S - General Claims,Kinto UK Limited,40.58,2024/004,159776
"Department for Business, Energy and Industrial Strategy",The Coal Authority,29/06/2023,Contract Hire Vehicles,PS&S - General Claims,Kinto UK Limited,447.65,2024/004,159776
"Department for Business, Energy and Industrial Strategy",The Coal Authority,29/06/2023,Contract Hire Vehicles,PS&S - General Claims,Kinto UK Limited,48.49,2024/004,159776
"Department for Business, Energy and Industrial Strategy",The Coal Authority,29/06/2023,Contract Hire Vehicles,PS&S - General Claims,Kinto UK Limited,48.49,2024/004,159776
"Department for Business, Energy and Industrial Strategy",The Coal Authority,29/06/2023,Contract Hire Vehicles,PS&S - General Claims,Kinto UK Limited,463.47,2024/004,159776
"Department for Business, Energy and Industrial Strategy",The Coal Authority,29/06/2023,Contract Hire Vehicles,PS&S - General Claims,Kinto UK Limited,66.77,2024/004,159776
"Department for Business, Energy and Industrial Strategy",The Coal Authority,29/06/2023,Contract Hire Vehicles,PS&S - General Claims,Kinto UK Limited,46.35,2024/004,159776
"Department for Business, Energy and Industrial Strategy",The Coal Authority,29/06/2023,Contract Hire Vehicles,PS&S - General Claims,Kinto UK Limited,405.81,2024/004,159776
"Department for Business, Energy and Industrial Strategy",The Coal Authority,29/06/2023,Contract Hire Vehicles,PS&S - General Claims,Kinto UK Limited,44.76,2024/004,159776
"Department for Business, Energy and Industrial Strategy",The Coal Authority,29/06/2023,Contract Hire Vehicles,PS&S - General Claims,Kinto UK Limited,365.59,2024/004,159776
"Department for Business, Energy and Industrial Strategy",The Coal Authority,27/07/2023,Contract Hire Vehicles,PS&S - General Claims,Kinto UK Limited,-24.1,2024/004,159782
"Department for Business, Energy and Industrial Strategy",The Coal Authority,27/07/2023,Contract Hire Vehicles,PS&S - General Claims,Kinto UK Limited,-241.03,2024/004,159782
"Department for Business, Energy and Industrial Strategy",The Coal Authority,27/07/2023,Contract Hire Vehicles,PS&S - General Claims,Kinto UK Limited,-31.97,2024/004,159782
"Department for Business, Energy and Industrial Strategy",The Coal Authority,31/05/2023,CY - Intangible IT - Additions,DIG - Technical Delivery,Cgi It Uk Ltd,"38,809.50",2024/004,158267
"Department for Business, Energy and Industrial Strategy",The Coal Authority,31/05/2023,CY - Intangible IT - Additions,DIG - Technical Delivery,Cgi It Uk Ltd,200,2024/004,158267
"Department for Business, Energy and Industrial Strategy",The Coal Authority,31/05/2023,CY - Intangible IT - Additions,DIG - Technical Delivery,Cgi It Uk Ltd,"5,175.00",2024/004,158267
"Department for Business, Energy and Industrial Strategy",The Coal Authority,14/06/2023,CY - Minewater Scheme - Additions,ENV - Projects & Delivery,JBA Bentley Ltd,"96,469.94",2024/004,157827
"Department for Business, Energy and Industrial Strategy",The Coal Authority,29/06/2023,CY - Minewater Scheme - Additions,ENV - Projects & Delivery,Turner and Townsend Project Management Ltd.,"4,625.87",2024/004,158148
"Department for Business, Energy and Industrial Strategy",The Coal Authority,29/06/2023,CY - Minewater Scheme - Additions,ENV - Projects & Delivery,Turner and Townsend Project Management Ltd.,-0.58,2024/004,158148
"Department for Business, Energy and Industrial Strategy",The Coal Authority,18/05/2023,CY - Minewater Scheme - Additions,ENV - Projects & Delivery,JBA Bentley Ltd,"58,805.84",2024/004,158273
"Department for Business, Energy and Industrial Strategy",The Coal Authority,14/06/2023,CY - Minewater Scheme - Additions,ENV - Projects & Delivery,JBA Bentley Ltd,"203,455.03",2024/004,158274
"Department for Business, Energy and Industrial Strategy",The Coal Authority,07/07/2023,CY - Minewater Scheme - Additions,DEFRA Metal Mine Programme,John F Hunt Regeneration Ltd,"10,094.00",2024/004,158792
"Department for Business, Energy and Industrial Strategy",The Coal Authority,28/03/2023,CY - Minewater Scheme - Additions,ENV - Projects & Delivery,Turner and Townsend Project Management Ltd.,"9,474.00",2024/004,158794
"Department for Business, Energy and Industrial Strategy",The Coal Authority,28/03/2023,CY - Minewater Scheme - Additions,ENV - Projects & Delivery,Turner and Townsend Project Management Ltd.,765,2024/004,158794
"Department for Business, Energy and Industrial Strategy",The Coal Authority,28/03/2023,CY - Minewater Scheme - Additions,ENV - Projects & Delivery,Turner and Townsend Project Management Ltd.,"2,595.00",2024/004,158794
"Department for Business, Energy and Industrial Strategy",The Coal Authority,30/05/2023,CY - Minewater Scheme - Additions,ENV - Projects & Delivery,Turner and Townsend Project Management Ltd.,"8,526.60",2024/004,158795
"Department for Business, Energy and Industrial Strategy",The Coal Authority,30/05/2023,CY - Minewater Scheme - Additions,ENV - Projects & Delivery,Turner and Townsend Project Management Ltd.,"2,040.00",2024/004,158795
"Department for Business, Energy and Industrial Strategy",The Coal Authority,29/06/2023,CY - Minewater Scheme - Additions,ENV - Projects & Delivery,Turner and Townsend Project Management Ltd.,"1,006.40",2024/004,158797
"Department for Business, Energy and Industrial Strategy",The Coal Authority,29/06/2023,CY - Minewater Scheme - Additions,ENV - Projects & Delivery,Turner and Townsend Project Management Ltd.,"8,400.28",2024/004,158797
"Department for Business, Energy and Industrial Strategy",The Coal Authority,29/06/2023,CY - Minewater Scheme - Additions,ENV - Projects & Delivery,Turner and Townsend Project Management Ltd.,"4,125.00",2024/004,158797
"Department for Business, Energy and Industrial Strategy",The Coal Authority,29/06/2023,CY - Minewater Scheme - Additions,ENV - Projects & Delivery,Turner and Townsend Project Management Ltd.,"2,011.10",2024/004,158797
"Department for Business, Energy and Industrial Strategy",The Coal Authority,12/07/2023,CY - Minewater Scheme - Additions,ENV - Projects & Delivery,RSK Environment Limited,"1,160.00",2024/004,158834
"Department for Business, Energy and Industrial Strategy",The Coal Authority,12/07/2023,CY - Minewater Scheme - Additions,ENV - Projects & Delivery,RSK Environment Limited,"5,002.00",2024/004,158834
"Department for Business, Energy and Industrial Strategy",The Coal Authority,18/07/2023,CY - Minewater Scheme - Additions,ENV - Projects & Delivery,Hydro-Logic Services Int Limited,"3,155.48",2024/004,159000
"Department for Business, Energy and Industrial Strategy",The Coal Authority,18/07/2023,CY - Minewater Scheme - Additions,ENV - Projects & Delivery,JBA Bentley Ltd,"15,392.22",2024/004,159134
"Department for Business, Energy and Industrial Strategy",The Coal Authority,18/07/2023,CY - Minewater Scheme - Additions,ENV - Projects & Delivery,JBA Bentley Ltd,"75,867.75",2024/004,159134
"Department for Business, Energy and Industrial Strategy",The Coal Authority,18/07/2023,CY - Minewater Scheme - Additions,ENV - Projects & Delivery,JBA Bentley Ltd,"2,331.41",2024/004,159134
"Department for Business, Energy and Industrial Strategy",The Coal Authority,18/07/2023,CY - Minewater Scheme - Additions,ENV - Projects & Delivery,JBA Bentley Ltd,"3,526.34",2024/004,159134
"Department for Business, Energy and Industrial Strategy",The Coal Authority,18/07/2023,CY - Minewater Scheme - Additions,ENV - Projects & Delivery,JBA Bentley Ltd,"19,880.87",2024/004,159134
"Department for Business, Energy and Industrial Strategy",The Coal Authority,18/07/2023,CY - Minewater Scheme - Additions,ENV - Projects & Delivery,JBA Bentley Ltd,939.78,2024/004,159134
"Department for Business, Energy and Industrial Strategy",The Coal Authority,18/07/2023,CY - Minewater Scheme - Additions,ENV - Projects & Delivery,JBA Bentley Ltd,"10,072.14",2024/004,159134
"Department for Business, Energy and Industrial Strategy",The Coal Authority,18/07/2023,CY - Minewater Scheme - Additions,ENV - Projects & Delivery,JBA Bentley Ltd,"129,304.03",2024/004,159134
"Department for Business, Energy and Industrial Strategy",The Coal Authority,24/07/2023,CY - Minewater Scheme - Additions,ENV - Mine Water Operations,Severn Trent Serv Ops Uk Ltd,"-10,045.83",2024/004,159353
"Department for Business, Energy and Industrial Strategy",The Coal Authority,20/07/2023,CY - Minewater Scheme - Additions,By-Products - Energy,Severn Trent Serv Ops Uk Ltd,128.03,2024/004,159354
"Department for Business, Energy and Industrial Strategy",The Coal Authority,20/07/2023,CY - Minewater Scheme - Additions,By-Products - Energy,Severn Trent Serv Ops Uk Ltd,99.58,2024/004,159354
"Department for Business, Energy and Industrial Strategy",The Coal Authority,20/07/2023,CY - Minewater Scheme - Additions,ENV - Mine Water Operations,Severn Trent Serv Ops Uk Ltd,"21,491.84",2024/004,159354
"Department for Business, Energy and Industrial Strategy",The Coal Authority,20/07/2023,CY - Minewater Scheme - Additions,ENV - Mine Water Operations,Severn Trent Serv Ops Uk Ltd,"4,688.37",2024/004,159354
"Department for Business, Energy and Industrial Strategy",The Coal Authority,20/07/2023,CY - Minewater Scheme - Additions,ENV - Mine Water Operations,Severn Trent Serv Ops Uk Ltd,176.4,2024/004,159354
"Department for Business, Energy and Industrial Strategy",The Coal Authority,20/07/2023,CY - Minewater Scheme - Additions,ENV - Mine Water Operations,Severn Trent Serv Ops Uk Ltd,25.26,2024/004,159354
"Department for Business, Energy and Industrial Strategy",The Coal Authority,20/07/2023,CY - Minewater Scheme - Additions,ENV - Mine Water Operations,Severn Trent Serv Ops Uk Ltd,199.15,2024/004,159354
"Department for Business, Energy and Industrial Strategy",The Coal Authority,20/07/2023,CY - Minewater Scheme - Additions,ENV - Mine Water Operations,Severn Trent Serv Ops Uk Ltd,351.96,2024/004,159354
"Department for Business, Energy and Industrial Strategy",The Coal Authority,20/07/2023,CY - Minewater Scheme - Additions,ENV - Mine Water Operations,Severn Trent Serv Ops Uk Ltd,884.35,2024/004,159354
"Department for Business, Energy and Industrial Strategy",The Coal Authority,20/07/2023,CY - Minewater Scheme - Additions,ENV - Mine Water Operations,Severn Trent Serv Ops Uk Ltd,126.63,2024/004,159354
"Department for Business, Energy and Industrial Strategy",The Coal Authority,20/07/2023,CY - Minewater Scheme - Additions,ENV - Mine Water Operations,Severn Trent Serv Ops Uk Ltd,"3,329.64",2024/004,159354
"Department for Business, Energy and Industrial Strategy",The Coal Authority,20/07/2023,CY - Minewater Scheme - Additions,ENV - Mine Water Operations,Severn Trent Serv Ops Uk Ltd,173.77,2024/004,159354
"Department for Business, Energy and Industrial Strategy",The Coal Authority,20/07/2023,CY - Minewater Scheme - Additions,ENV - Mine Water Operations,Severn Trent Serv Ops Uk Ltd,"2,754.50",2024/004,159354
"Department for Business, Energy and Industrial Strategy",The Coal Authority,20/07/2023,CY - Minewater Scheme - Additions,ENV - Mine Water Operations,Severn Trent Serv Ops Uk Ltd,147.13,2024/004,159354
"Department for Business, Energy and Industrial Strategy",The Coal Authority,20/07/2023,CY - Minewater Scheme - Additions,ENV - Mine Water Operations,Severn Trent Serv Ops Uk Ltd,42.68,2024/004,159354
"Department for Business, Energy and Industrial Strategy",The Coal Authority,20/07/2023,CY - Minewater Scheme - Additions,ENV - Mine Water Operations,Severn Trent Serv Ops Uk Ltd,"5,261.23",2024/004,159354
"Department for Business, Energy and Industrial Strategy",The Coal Authority,20/07/2023,CY - Minewater Scheme - Additions,ENV - Mine Water Operations,Severn Trent Serv Ops Uk Ltd,"1,308.53",2024/004,159354
"Department for Business, Energy and Industrial Strategy",The Coal Authority,20/07/2023,CY - Minewater Scheme - Additions,ENV - Mine Water Operations,Severn Trent Serv Ops Uk Ltd,"24,429.17",2024/004,159354
"Department for Business, Energy and Industrial Strategy",The Coal Authority,20/07/2023,CY - Minewater Scheme - Additions,ENV - Mine Water Operations,Severn Trent Serv Ops Uk Ltd,"102,137.30",2024/004,159354
"Department for Business, Energy and Industrial Strategy",The Coal Authority,20/07/2023,CY - Minewater Scheme - Additions,ENV - Mine Water Operations,Severn Trent Serv Ops Uk Ltd,"19,709.21",2024/004,159354
"Department for Business, Energy and Industrial Strategy",The Coal Authority,20/07/2023,CY - Minewater Scheme - Additions,ENV - Mine Water Operations,Severn Trent Serv Ops Uk Ltd,29.4,2024/004,159354
"Department for Business, Energy and Industrial Strategy",The Coal Authority,20/07/2023,CY - Minewater Scheme - Additions,ENV - Mine Water Operations,Severn Trent Serv Ops Uk Ltd,73.56,2024/004,159354
"Department for Business, Energy and Industrial Strategy",The Coal Authority,20/07/2023,CY - Minewater Scheme - Additions,ENV - Mine Water Operations,Severn Trent Serv Ops Uk Ltd,73.56,2024/004,159354
"Department for Business, Energy and Industrial Strategy",The Coal Authority,20/07/2023,CY - Minewater Scheme - Additions,ENV - Mine Water Operations,Severn Trent Serv Ops Uk Ltd,308.61,2024/004,159354
"Department for Business, Energy and Industrial Strategy",The Coal Authority,20/07/2023,CY - Minewater Scheme - Additions,ENV - Mine Water Operations,Severn Trent Serv Ops Uk Ltd,"10,045.83",2024/004,159354
"Department for Business, Energy and Industrial Strategy",The Coal Authority,20/07/2023,CY - Minewater Scheme - Additions,ENV - Mine Water Operations,Severn Trent Serv Ops Uk Ltd,89.81,2024/004,159354
"Department for Business, Energy and Industrial Strategy",The Coal Authority,20/07/2023,CY - Minewater Scheme - Additions,ENV - Mine Water Operations,Severn Trent Serv Ops Uk Ltd,191.07,2024/004,159354
"Department for Business, Energy and Industrial Strategy",The Coal Authority,20/07/2023,CY - Minewater Scheme - Additions,ENV - Mine Water Operations,Severn Trent Serv Ops Uk Ltd,"32,327.40",2024/004,159354
"Department for Business, Energy and Industrial Strategy",The Coal Authority,20/07/2023,CY - Minewater Scheme - Additions,ENV - Mine Water Operations,Severn Trent Serv Ops Uk Ltd,"2,101.76",2024/004,159354
"Department for Business, Energy and Industrial Strategy",The Coal Authority,20/07/2023,CY - Minewater Scheme - Additions,ENV - Mine Water Operations,Severn Trent Serv Ops Uk Ltd,73.56,2024/004,159354
"Department for Business, Energy and Industrial Strategy",The Coal Authority,20/07/2023,CY - Minewater Scheme - Additions,ENV - Mine Water Operations,Severn Trent Serv Ops Uk Ltd,583.05,2024/004,159354
"Department for Business, Energy and Industrial Strategy",The Coal Authority,20/07/2023,CY - Minewater Scheme - Additions,ENV - Mine Water Operations,Severn Trent Serv Ops Uk Ltd,"43,081.74",2024/004,159354
"Department for Business, Energy and Industrial Strategy",The Coal Authority,20/07/2023,CY - Minewater Scheme - Additions,ENV - Mine Water Operations,Severn Trent Serv Ops Uk Ltd,"299,647.83",2024/004,159354
"Department for Business, Energy and Industrial Strategy",The Coal Authority,20/07/2023,CY - Minewater Scheme - Additions,ENV - Mine Water Operations,Severn Trent Serv Ops Uk Ltd,323.4,2024/004,159354
"Department for Business, Energy and Industrial Strategy",The Coal Authority,20/07/2023,CY - Minewater Scheme - Additions,ENV - Mine Water Operations,Severn Trent Serv Ops Uk Ltd,170.7,2024/004,159354
"Department for Business, Energy and Industrial Strategy",The Coal Authority,20/07/2023,CY - Minewater Scheme - Additions,ENV - Mine Water Operations,Severn Trent Serv Ops Uk Ltd,29.4,2024/004,159354
"Department for Business, Energy and Industrial Strategy",The Coal Authority,20/07/2023,CY - Minewater Scheme - Additions,ENV - Mine Water Operations,Severn Trent Serv Ops Uk Ltd,"6,660.21",2024/004,159354
"Department for Business, Energy and Industrial Strategy",The Coal Authority,20/07/2023,CY - Minewater Scheme - Additions,ENV - Mine Water Operations,Severn Trent Serv Ops Uk Ltd,"11,081.20",2024/004,159354
"Department for Business, Energy and Industrial Strategy",The Coal Authority,20/07/2023,CY - Minewater Scheme - Additions,ENV - Projects & Delivery,Severn Trent Serv Ops Uk Ltd,"3,895.50",2024/004,159354
"Department for Business, Energy and Industrial Strategy",The Coal Authority,20/07/2023,CY - Minewater Scheme - Additions,ENV - Projects & Delivery,Severn Trent Serv Ops Uk Ltd,49.09,2024/004,159354
"Department for Business, Energy and Industrial Strategy",The Coal Authority,20/07/2023,CY - Minewater Scheme - Additions,ENV - Projects & Delivery,Severn Trent Serv Ops Uk Ltd,573.21,2024/004,159354
"Department for Business, Energy and Industrial Strategy",The Coal Authority,20/07/2023,CY - Minewater Scheme - Additions,ENV - Projects & Delivery,Severn Trent Serv Ops Uk Ltd,444.52,2024/004,159354
"Department for Business, Energy and Industrial Strategy",The Coal Authority,20/07/2023,CY - Minewater Scheme - Additions,ENV - Projects & Delivery,Severn Trent Serv Ops Uk Ltd,"7,706.44",2024/004,159354
"Department for Business, Energy and Industrial Strategy",The Coal Authority,20/07/2023,CY - Minewater Scheme - Additions,ENV - Mine Water Operations,Severn Trent Serv Ops Uk Ltd,"10,045.81",2024/004,159355
"Department for Business, Energy and Industrial Strategy",The Coal Authority,20/07/2023,CY - Minewater Scheme - Additions,ENV - Mine Water Operations,Severn Trent Serv Ops Uk Ltd,0.02,2024/004,159355
"Department for Business, Energy and Industrial Strategy",The Coal Authority,24/07/2023,CY - Minewater Scheme - Additions,ENV - Mine Water Operations,Severn Trent Serv Ops Uk Ltd,-673.02,2024/004,159363
"Department for Business, Energy and Industrial Strategy",The Coal Authority,24/07/2023,CY - Minewater Scheme - Additions,ENV - Mine Water Operations,Severn Trent Serv Ops Uk Ltd,"-1,841.73",2024/004,159363
"Department for Business, Energy and Industrial Strategy",The Coal Authority,26/09/2022,CY - Minewater Scheme - Additions,ENV - Projects & Delivery,Turner and Townsend Project Management Ltd.,"2,866.60",2024/004,159595
"Department for Business, Energy and Industrial Strategy",The Coal Authority,26/09/2022,CY - Minewater Scheme - Additions,ENV - Projects & Delivery,Turner and Townsend Project Management Ltd.,260.66,2024/004,159595
"Department for Business, Energy and Industrial Strategy",The Coal Authority,26/09/2022,CY - Minewater Scheme - Additions,ENV - Projects & Delivery,Turner and Townsend Project Management Ltd.,"1,621.23",2024/004,159595
"Department for Business, Energy and Industrial Strategy",The Coal Authority,20/10/2022,CY - Minewater Scheme - Additions,ENV - Projects & Delivery,Turner and Townsend Project Management Ltd.,"1,423.29",2024/004,159605
"Department for Business, Energy and Industrial Strategy",The Coal Authority,20/10/2022,CY - Minewater Scheme - Additions,ENV - Projects & Delivery,Turner and Townsend Project Management Ltd.,5.32,2024/004,159605
"Department for Business, Energy and Industrial Strategy",The Coal Authority,20/10/2022,CY - Minewater Scheme - Additions,ENV - Projects & Delivery,Turner and Townsend Project Management Ltd.,"2,289.28",2024/004,159605
"Department for Business, Energy and Industrial Strategy",The Coal Authority,20/10/2022,CY - Minewater Scheme - Additions,ENV - Projects & Delivery,Turner and Townsend Project Management Ltd.,691.1,2024/004,159605
"Department for Business, Energy and Industrial Strategy",The Coal Authority,20/10/2022,CY - Minewater Scheme - Additions,ENV - Projects & Delivery,Turner and Townsend Project Management Ltd.,0.01,2024/004,159605
"Department for Business, Energy and Industrial Strategy",The Coal Authority,25/07/2023,CY - Minewater Scheme - Additions,ENV - Projects & Delivery,Turner and Townsend Project Management Ltd.,"-1,568.68",2024/004,159609
"Department for Business, Energy and Industrial Strategy",The Coal Authority,25/07/2023,CY - Minewater Scheme - Additions,ENV - Projects & Delivery,Turner and Townsend Project Management Ltd.,"-1,654.30",2024/004,159609
"Department for Business, Energy and Industrial Strategy",The Coal Authority,25/07/2023,CY - Minewater Scheme - Additions,ENV - Projects & Delivery,Turner and Townsend Project Management Ltd.,-0.02,2024/004,159609
"Department for Business, Energy and Industrial Strategy",The Coal Authority,22/11/2022,CY - Minewater Scheme - Additions,ENV - Projects & Delivery,Turner and Townsend Project Management Ltd.,0.02,2024/004,159610
"Department for Business, Energy and Industrial Strategy",The Coal Authority,22/11/2022,CY - Minewater Scheme - Additions,ENV - Projects & Delivery,Turner and Townsend Project Management Ltd.,"1,654.30",2024/004,159610
"Department for Business, Energy and Industrial Strategy",The Coal Authority,22/11/2022,CY - Minewater Scheme - Additions,ENV - Projects & Delivery,Turner and Townsend Project Management Ltd.,"1,568.68",2024/004,159610
"Department for Business, Energy and Industrial Strategy",The Coal Authority,14/07/2023,CY - Minewater Scheme - Additions,ENV - Projects & Delivery,Kier Integrated Services Limited,"5,961.55",2024/004,159736
"Department for Business, Energy and Industrial Strategy",The Coal Authority,14/07/2023,CY - Minewater Scheme - Additions,ENV - Projects & Delivery,Kier Integrated Services Limited,"56,235.00",2024/004,159736
"Department for Business, Energy and Industrial Strategy",The Coal Authority,27/07/2023,CY - Minewater Scheme - Additions,ENV - Projects & Delivery,Turner and Townsend Project Management Ltd.,"2,312.63",2024/004,159903
"Department for Business, Energy and Industrial Strategy",The Coal Authority,27/07/2023,CY - Minewater Scheme - Additions,ENV - Projects & Delivery,Turner and Townsend Project Management Ltd.,"6,916.02",2024/004,159904
"Department for Business, Energy and Industrial Strategy",The Coal Authority,27/07/2023,CY - Minewater Scheme - Additions,ENV - Projects & Delivery,Turner and Townsend Project Management Ltd.,"2,730.00",2024/004,159904
"Department for Business, Energy and Industrial Strategy",The Coal Authority,26/05/2023,CY - Non-coal Minewater - Additions,DEFRA LEP Funding,I & H Brown Limited,"196,328.51",2024/004,157888
"Department for Business, Energy and Industrial Strategy",The Coal Authority,12/06/2023,CY - Non-coal Minewater - Additions,DEFRA LEP Funding,Tyne Rivers Trust,"48,897.31",2024/004,157945
"Department for Business, Energy and Industrial Strategy",The Coal Authority,12/06/2023,CY - Non-coal Minewater - Additions,DEFRA LEP Funding,Tyne Rivers Trust,"35,812.14",2024/004,157945
"Department for Business, Energy and Industrial Strategy",The Coal Authority,20/06/2023,CY - Non-coal Minewater - Additions,DEFRA LEP Funding,I & H Brown Limited,"470,379.08",2024/004,157974
"Department for Business, Energy and Industrial Strategy",The Coal Authority,20/06/2023,CY - Non-coal Minewater - Additions,DEFRA LEP Funding,I & H Brown Limited,432.16,2024/004,157974
"Department for Business, Energy and Industrial Strategy",The Coal Authority,30/06/2023,CY - Non-coal Minewater - Additions,DEFRA LEP Funding,AECOM Ltd,"2,500.00",2024/004,158015
"Department for Business, Energy and Industrial Strategy",The Coal Authority,30/06/2023,CY - Non-coal Minewater - Additions,DEFRA Metal Mine Programme,AECOM Ltd,"2,500.00",2024/004,158015
"Department for Business, Energy and Industrial Strategy",The Coal Authority,30/06/2023,CY - Non-coal Minewater - Additions,DEFRA Metal Mine Programme,AECOM Ltd,"2,500.00",2024/004,158015
"Department for Business, Energy and Industrial Strategy",The Coal Authority,30/06/2023,CY - Non-coal Minewater - Additions,DEFRA Metal Mine Programme,AECOM Ltd,"2,500.00",2024/004,158015
"Department for Business, Energy and Industrial Strategy",The Coal Authority,30/06/2023,CY - Non-coal Minewater - Additions,DEFRA Metal Mine Programme,Yorkshire Dales Rivers Trust,"6,142.65",2024/004,158469
"Department for Business, Energy and Industrial Strategy",The Coal Authority,30/06/2023,CY - Non-coal Minewater - Additions,DEFRA Metal Mine Programme,Yorkshire Dales Rivers Trust,289.33,2024/004,158469
"Department for Business, Energy and Industrial Strategy",The Coal Authority,27/06/2023,CY - Non-coal Minewater - Additions,DEFRA LEP Funding,Turner and Townsend Project Management Ltd.,"7,632.60",2024/004,158490
"Department for Business, Energy and Industrial Strategy",The Coal Authority,03/07/2023,CY - Non-coal Minewater - Additions,DEFRA LEP Funding,Tyne Rivers Trust,"84,000.00",2024/004,158524
"Department for Business, Energy and Industrial Strategy",The Coal Authority,29/06/2023,CY - Non-coal Minewater - Additions,DEFRA LEP Funding,Westmorland and Furness Council,973.66,2024/004,158526
"Department for Business, Energy and Industrial Strategy",The Coal Authority,05/07/2023,CY - Non-coal Minewater - Additions,DEFRA LEP Funding,Aecom Infrastructure & Env,88.46,2024/004,158779
"Department for Business, Energy and Industrial Strategy",The Coal Authority,05/07/2023,CY - Non-coal Minewater - Additions,DEFRA LEP Funding,Aecom Infrastructure & Env,123.27,2024/004,158779
"Department for Business, Energy and Industrial Strategy",The Coal Authority,05/07/2023,CY - Non-coal Minewater - Additions,DEFRA LEP Funding,Aecom Infrastructure & Env,"4,802.62",2024/004,158779
"Department for Business, Energy and Industrial Strategy",The Coal Authority,05/07/2023,CY - Non-coal Minewater - Additions,DEFRA LEP Funding,Aecom Infrastructure & Env,"1,277.48",2024/004,158779
"Department for Business, Energy and Industrial Strategy",The Coal Authority,05/07/2023,CY - Non-coal Minewater - Additions,DEFRA LEP Funding,Aecom Infrastructure & Env,"2,867.58",2024/004,158779
"Department for Business, Energy and Industrial Strategy",The Coal Authority,05/07/2023,CY - Non-coal Minewater - Additions,DEFRA LEP Funding,Aecom Infrastructure & Env,"2,299.88",2024/004,158779
"Department for Business, Energy and Industrial Strategy",The Coal Authority,05/07/2023,CY - Non-coal Minewater - Additions,DEFRA LEP Funding,Aecom Infrastructure & Env,"2,770.13",2024/004,158779
"Department for Business, Energy and Industrial Strategy",The Coal Authority,05/07/2023,CY - Non-coal Minewater - Additions,DEFRA LEP Funding,Aecom Infrastructure & Env,506.9,2024/004,158779
"Department for Business, Energy and Industrial Strategy",The Coal Authority,05/07/2023,CY - Non-coal Minewater - Additions,DEFRA LEP Funding,Aecom Infrastructure & Env,327.77,2024/004,158779
"Department for Business, Energy and Industrial Strategy",The Coal Authority,05/07/2023,CY - Non-coal Minewater - Additions,DEFRA LEP Funding,Aecom Infrastructure & Env,"2,375.96",2024/004,158779
"Department for Business, Energy and Industrial Strategy",The Coal Authority,05/07/2023,CY - Non-coal Minewater - Additions,DEFRA LEP Funding,Aecom Infrastructure & Env,"7,102.50",2024/004,158779
"Department for Business, Energy and Industrial Strategy",The Coal Authority,12/05/2023,CY - Non-coal Minewater - Additions,DEFRA LEP Funding,Aecom Infrastructure & Env,"5,640.72",2024/004,158780
"Department for Business, Energy and Industrial Strategy",The Coal Authority,12/05/2023,CY - Non-coal Minewater - Additions,DEFRA LEP Funding,Aecom Infrastructure & Env,"6,549.33",2024/004,158781
"Department for Business, Energy and Industrial Strategy",The Coal Authority,12/05/2023,CY - Non-coal Minewater - Additions,DEFRA LEP Funding,Aecom Infrastructure & Env,"3,939.17",2024/004,158787
"Department for Business, Energy and Industrial Strategy",The Coal Authority,12/05/2023,CY - Non-coal Minewater - Additions,DEFRA LEP Funding,Aecom Infrastructure & Env,0.03,2024/004,158787
"Department for Business, Energy and Industrial Strategy",The Coal Authority,10/07/2023,CY - Non-coal Minewater - Additions,DEFRA LEP Funding,I & H Brown Limited,"426,297.70",2024/004,158858
"Department for Business, Energy and Industrial Strategy",The Coal Authority,10/07/2023,CY - Non-coal Minewater - Additions,DEFRA LEP Funding,H T Media Ltd,470.9,2024/004,159002
"Department for Business, Energy and Industrial Strategy",The Coal Authority,10/07/2023,CY - Non-coal Minewater - Additions,DEFRA Metal Mine Programme,Hydro-Logic Services Int Limited,"5,070.75",2024/004,159138
"Department for Business, Energy and Industrial Strategy",The Coal Authority,06/06/2023,CY - Non-coal Minewater - Additions,DEFRA Metal Mine Programme,Wear Rivers Trust,997.5,2024/004,159239
"Department for Business, Energy and Industrial Strategy",The Coal Authority,06/06/2023,CY - Non-coal Minewater - Additions,DEFRA Metal Mine Programme,Wear Rivers Trust,2.5,2024/004,159239
"Department for Business, Energy and Industrial Strategy",The Coal Authority,18/07/2023,CY - Non-coal Minewater - Additions,DEFRA LEP Funding,Aecom Infrastructure & Env,"2,916.21",2024/004,159679
"Department for Business, Energy and Industrial Strategy",The Coal Authority,18/07/2023,CY - Non-coal Minewater - Additions,DEFRA LEP Funding,Aecom Infrastructure & Env,"7,526.91",2024/004,159680
"Department for Business, Energy and Industrial Strategy",The Coal Authority,10/07/2023,CY - Non-coal Minewater - Additions,DEFRA LEP Funding,Tyne Rivers Trust,"84,000.00",2024/004,159874
"Department for Business, Energy and Industrial Strategy",The Coal Authority,28/07/2023,CY - Non-coal Minewater - Additions,DEFRA LEP Funding,Turner and Townsend Project Management Ltd.,"-4,623.00",2024/004,159882
"Department for Business, Energy and Industrial Strategy",The Coal Authority,24/07/2023,CY - Non-coal Minewater - Additions,DEFRA LEP Funding,Turner and Townsend Project Management Ltd.,"4,623.00",2024/004,159883
"Department for Business, Energy and Industrial Strategy",The Coal Authority,24/07/2023,CY - Non-coal Minewater - Additions,DEFRA LEP Funding,Turner and Townsend Project Management Ltd.,"4,623.00",2024/004,159884
"Department for Business, Energy and Industrial Strategy",The Coal Authority,20/07/2023,CY - Plant & Machinery - Additions,ENV - Mine Water Operations,Severn Trent Serv Ops Uk Ltd,88.9,2024/004,159354
"Department for Business, Energy and Industrial Strategy",The Coal Authority,20/07/2023,CY - Plant & Machinery - Additions,ENV - Mine Water Operations,Severn Trent Serv Ops Uk Ltd,"1,511.27",2024/004,159354
"Department for Business, Energy and Industrial Strategy",The Coal Authority,26/06/2023,Desktop Computing,DIG - Technical Delivery,Probrand Limited,5,2024/004,158124
"Department for Business, Energy and Industrial Strategy",The Coal Authority,26/06/2023,Desktop Computing,DIG - Technical Delivery,Probrand Limited,"2,144.16",2024/004,158124
"Department for Business, Energy and Industrial Strategy",The Coal Authority,26/06/2023,Desktop Computing,DIG - Technical Delivery,Probrand Limited,"1,388.36",2024/004,158124
"Department for Business, Energy and Industrial Strategy",The Coal Authority,27/06/2023,Desktop Computing,DIG - Technical Delivery,Probrand Limited,"1,017.12",2024/004,158125
"Department for Business, Energy and Industrial Strategy",The Coal Authority,27/04/2023,Desktop Computing,DIG - Technical Delivery,Probrand Limited,154.74,2024/004,158352
"Department for Business, Energy and Industrial Strategy",The Coal Authority,13/07/2023,Disaster Recovery & BCP,DIG - Technical Delivery,Nerc,"4,299.71",2024/004,159103
"Department for Business, Energy and Industrial Strategy",The Coal Authority,13/07/2023,Disaster Recovery & BCP,DIG - Technical Delivery,Nerc,"12,000.00",2024/004,159950
"Department for Business, Energy and Industrial Strategy",The Coal Authority,13/07/2023,Disaster Recovery & BCP,DIG - Technical Delivery,Nerc,"13,475.00",2024/004,159950
"Department for Business, Energy and Industrial Strategy",The Coal Authority,30/06/2023,eCommerce Commission Charges,DEV - Permissions,Worldpay,848.71,2024/004,158707
"Department for Business, Energy and Industrial Strategy",The Coal Authority,30/06/2023,eCommerce Commission Charges,DEV - Permissions,Worldpay,25,2024/004,158707
"Department for Business, Energy and Industrial Strategy",The Coal Authority,30/06/2023,eCommerce Commission Charges,Mining Reports,Worldpay,"1,320.52",2024/004,158707
"Department for Business, Energy and Industrial Strategy",The Coal Authority,19/06/2023,External Agency / Introduction Fees,NRW Metal Mine Programme,Government Procurement Card,3,2024/004,159117
"Department for Business, Energy and Industrial Strategy",The Coal Authority,13/06/2023,External Agency / Introduction Fees,People & Organisational Development,Hays Specialist Recruitment,"7,920.00",2024/004,159812
"Department for Business, Energy and Industrial Strategy",The Coal Authority,13/06/2023,External Agency / Introduction Fees,People & Organisational Development,Hays Specialist Recruitment,"5,400.00",2024/004,159813
"Department for Business, Energy and Industrial Strategy",The Coal Authority,13/06/2023,External Agency / Introduction Fees,People & Organisational Development,Hays Specialist Recruitment,"7,920.00",2024/004,159814
"Department for Business, Energy and Industrial Strategy",The Coal Authority,05/06/2023,Fares - Public Transport,ENV - Strategy & Sustainability Management,Staff Expenses Control,4,2024/004,157862
"Department for Business, Energy and Industrial Strategy",The Coal Authority,15/06/2023,Fares - Public Transport,International,Staff Expenses Control,4.55,2024/004,158576
"Department for Business, Energy and Industrial Strategy",The Coal Authority,19/06/2023,Fares - Public Transport,International,Staff Expenses Control,5.5,2024/004,158576
"Department for Business, Energy and Industrial Strategy",The Coal Authority,19/06/2023,Fares - Public Transport,International,Staff Expenses Control,5,2024/004,158576
"Department for Business, Energy and Industrial Strategy",The Coal Authority,26/06/2023,Fares - Public Transport,International,Staff Expenses Control,3.5,2024/004,158576
"Department for Business, Energy and Industrial Strategy",The Coal Authority,27/06/2023,Fares - Public Transport,Customer Services & Strategy,Staff Expenses Control,8.4,2024/004,158576
"Department for Business, Energy and Industrial Strategy",The Coal Authority,27/06/2023,Fares - Public Transport,Customer Services & Strategy,Staff Expenses Control,15.4,2024/004,158576
"Department for Business, Energy and Industrial Strategy",The Coal Authority,27/06/2023,Fares - Public Transport,International,Staff Expenses Control,7.95,2024/004,158576
"Department for Business, Energy and Industrial Strategy",The Coal Authority,28/06/2023,Fares - Public Transport,Customer Services & Strategy,Staff Expenses Control,10.93,2024/004,158576
"Department for Business, Energy and Industrial Strategy",The Coal Authority,28/06/2023,Fares - Public Transport,Customer Services & Strategy,Staff Expenses Control,10.94,2024/004,158576
"Department for Business, Energy and Industrial Strategy",The Coal Authority,28/06/2023,Fares - Public Transport,International,Staff Expenses Control,5.5,2024/004,158576
"Department for Business, Energy and Industrial Strategy",The Coal Authority,30/06/2023,Fares - Public Transport,International,Staff Expenses Control,6.2,2024/004,158576
"Department for Business, Energy and Industrial Strategy",The Coal Authority,29/06/2023,Fares - Public Transport,Customer Services & Strategy,Staff Expenses Control,8,2024/004,158840
"Department for Business, Energy and Industrial Strategy",The Coal Authority,06/07/2023,Fares - Public Transport,Customer Services & Strategy,Staff Expenses Control,9.5,2024/004,158840
"Department for Business, Energy and Industrial Strategy",The Coal Authority,11/07/2023,Fares - Public Transport,DEV - Planning & Local Authority Liaison,Staff Expenses Control,4,2024/004,158840
"Department for Business, Energy and Industrial Strategy",The Coal Authority,30/06/2023,Fares - Public Transport,Customer Services & Strategy,Ace Of Mansfield Ltd,59.84,2024/004,158911
"Department for Business, Energy and Industrial Strategy",The Coal Authority,05/06/2023,Fares - Public Transport,PS&S - General Claims,Government Procurement Card,3.3,2024/004,159117
"Department for Business, Energy and Industrial Strategy",The Coal Authority,06/06/2023,Fares - Public Transport,PS&S - General Claims,Government Procurement Card,3.3,2024/004,159117
"Department for Business, Energy and Industrial Strategy",The Coal Authority,07/06/2023,Fares - Public Transport,PS&S - General Claims,Government Procurement Card,3.3,2024/004,159117
"Department for Business, Energy and Industrial Strategy",The Coal Authority,23/06/2023,Fares - Public Transport,Heat & By-Product Innovation,Government Procurement Card,4.6,2024/004,159117
"Department for Business, Energy and Industrial Strategy",The Coal Authority,28/06/2023,Fares - Public Transport,Customer Services & Strategy,Government Procurement Card,5,2024/004,159117
"Department for Business, Energy and Industrial Strategy",The Coal Authority,16/05/2023,Fares - Public Transport,DIG - Data Licensing,Government Procurement Card,5.6,2024/004,159118
"Department for Business, Energy and Industrial Strategy",The Coal Authority,18/05/2023,Fares - Public Transport,DIG - Data Licensing,Government Procurement Card,6.8,2024/004,159118
"Department for Business, Energy and Industrial Strategy",The Coal Authority,13/07/2023,Fares - Public Transport,Innovation By-Product & Services Delivery,Staff Expenses Control,9.8,2024/004,159384
"Department for Business, Energy and Industrial Strategy",The Coal Authority,07/06/2023,Fares - Rail,NRW Metal Mine Programme,Staff Expenses Control,19.5,2024/004,157862
"Department for Business, Energy and Industrial Strategy",The Coal Authority,20/06/2023,Fares - Rail,Heat & By-Product Innovation,Staff Expenses Control,15.4,2024/004,157862
"Department for Business, Energy and Industrial Strategy",The Coal Authority,21/06/2023,Fares - Rail,Procurement,Staff Expenses Control,39.69,2024/004,157862
"Department for Business, Energy and Industrial Strategy",The Coal Authority,23/06/2023,Fares - Rail,Heat & By-Product Innovation,Staff Expenses Control,18,2024/004,157862
"Department for Business, Energy and Industrial Strategy",The Coal Authority,30/06/2023,Fares - Rail,Procurement,Staff Expenses Control,119.89,2024/004,157862
"Department for Business, Energy and Industrial Strategy",The Coal Authority,06/06/2023,Fares - Rail,Engineering,Government Procurement Card,8.97,2024/004,159117
"Department for Business, Energy and Industrial Strategy",The Coal Authority,30/06/2023,Fares - Rail,Finance,Corporate Travel Management North,"5,424.55",2024/004,159536
"Department for Business, Energy and Industrial Strategy",The Coal Authority,01/06/2023,Fuel (Vehicle),DEFRA Metal Mine Programme,Staff Expenses Control,48.6,2024/004,157862
"Department for Business, Energy and Industrial Strategy",The Coal Authority,16/06/2023,Fuel (Vehicle),ENV - Salinity Programme,Staff Expenses Control,24.1,2024/004,157862
"Department for Business, Energy and Industrial Strategy",The Coal Authority,20/06/2023,Fuel (Vehicle),Tips Response,Staff Expenses Control,50,2024/004,157862
"Department for Business, Energy and Industrial Strategy",The Coal Authority,21/06/2023,Fuel (Vehicle),DEFRA Metal Mine Programme,Staff Expenses Control,33.33,2024/004,157862
"Department for Business, Energy and Industrial Strategy",The Coal Authority,23/06/2023,Fuel (Vehicle),Engineering,Staff Expenses Control,18.69,2024/004,157862
"Department for Business, Energy and Industrial Strategy",The Coal Authority,23/06/2023,Fuel (Vehicle),Engineering,Staff Expenses Control,49.63,2024/004,157862
"Department for Business, Energy and Industrial Strategy",The Coal Authority,28/06/2023,Fuel (Vehicle),DEFRA Metal Mine Programme,Staff Expenses Control,45.88,2024/004,157862
"Department for Business, Energy and Industrial Strategy",The Coal Authority,28/06/2023,Fuel (Vehicle),ENV - Projects & Delivery,Staff Expenses Control,38.59,2024/004,157862
"Department for Business, Energy and Industrial Strategy",The Coal Authority,29/06/2023,Fuel (Vehicle),DEFRA LEP Funding,Staff Expenses Control,29.69,2024/004,157862
"Department for Business, Energy and Industrial Strategy",The Coal Authority,29/06/2023,Fuel (Vehicle),ENV - Projects & Delivery,Staff Expenses Control,45.42,2024/004,157862
"Department for Business, Energy and Industrial Strategy",The Coal Authority,29/06/2023,Fuel (Vehicle),ENV - Projects & Delivery,Staff Expenses Control,12.41,2024/004,157862
"Department for Business, Energy and Industrial Strategy",The Coal Authority,29/06/2023,Fuel (Vehicle),NRW Metal Mine Programme,Staff Expenses Control,34.04,2024/004,157862
"Department for Business, Energy and Industrial Strategy",The Coal Authority,28/06/2023,Fuel (Vehicle),PS&S - General Claims,Allstar Business Solutions Ltd,46.42,2024/004,158408
"Department for Business, Energy and Industrial Strategy",The Coal Authority,28/06/2023,Fuel (Vehicle),PS&S - General Claims,Allstar Business Solutions Ltd,32.52,2024/004,158408
"Department for Business, Energy and Industrial Strategy",The Coal Authority,28/06/2023,Fuel (Vehicle),PS&S - General Claims,Allstar Business Solutions Ltd,76.68,2024/004,158408
"Department for Business, Energy and Industrial Strategy",The Coal Authority,28/06/2023,Fuel (Vehicle),PS&S - General Claims,Allstar Business Solutions Ltd,55.03,2024/004,158408
"Department for Business, Energy and Industrial Strategy",The Coal Authority,28/06/2023,Fuel (Vehicle),PS&S - General Claims,Allstar Business Solutions Ltd,26.29,2024/004,158408
"Department for Business, Energy and Industrial Strategy",The Coal Authority,28/06/2023,Fuel (Vehicle),PS&S - General Claims,Allstar Business Solutions Ltd,74.13,2024/004,158408
"Department for Business, Energy and Industrial Strategy",The Coal Authority,28/06/2023,Fuel (Vehicle),PS&S - General Claims,Allstar Business Solutions Ltd,11.4,2024/004,158408
"Department for Business, Energy and Industrial Strategy",The Coal Authority,05/07/2023,Fuel (Vehicle),Facilities,Allstar Business Solutions Ltd,64.01,2024/004,158422
"Department for Business, Energy and Industrial Strategy",The Coal Authority,05/07/2023,Fuel (Vehicle),Facilities,Allstar Business Solutions Ltd,44.2,2024/004,158422
"Department for Business, Energy and Industrial Strategy",The Coal Authority,05/07/2023,Fuel (Vehicle),Facilities,Allstar Business Solutions Ltd,58.95,2024/004,158422
"Department for Business, Energy and Industrial Strategy",The Coal Authority,05/07/2023,Fuel (Vehicle),Facilities,Allstar Business Solutions Ltd,69,2024/004,158422
"Department for Business, Energy and Industrial Strategy",The Coal Authority,05/07/2023,Fuel (Vehicle),Facilities,Allstar Business Solutions Ltd,11.4,2024/004,158422
"Department for Business, Energy and Industrial Strategy",The Coal Authority,21/06/2023,Fuel (Vehicle),Facilities,Allstar Business Solutions Ltd,96.1,2024/004,158423
"Department for Business, Energy and Industrial Strategy",The Coal Authority,21/06/2023,Fuel (Vehicle),Facilities,Allstar Business Solutions Ltd,85.37,2024/004,158423
"Department for Business, Energy and Industrial Strategy",The Coal Authority,21/06/2023,Fuel (Vehicle),Facilities,Allstar Business Solutions Ltd,46.68,2024/004,158423
"Department for Business, Energy and Industrial Strategy",The Coal Authority,21/06/2023,Fuel (Vehicle),Facilities,Allstar Business Solutions Ltd,37.47,2024/004,158423
"Department for Business, Energy and Industrial Strategy",The Coal Authority,21/06/2023,Fuel (Vehicle),Facilities,Allstar Business Solutions Ltd,11.4,2024/004,158423
"Department for Business, Energy and Industrial Strategy",The Coal Authority,28/06/2023,Fuel (Vehicle),Facilities,Allstar Business Solutions Ltd,9.1,2024/004,158424
"Department for Business, Energy and Industrial Strategy",The Coal Authority,28/06/2023,Fuel (Vehicle),Facilities,Allstar Business Solutions Ltd,42.3,2024/004,158424
"Department for Business, Energy and Industrial Strategy",The Coal Authority,28/06/2023,Fuel (Vehicle),Facilities,Allstar Business Solutions Ltd,52.03,2024/004,158424
"Department for Business, Energy and Industrial Strategy",The Coal Authority,28/06/2023,Fuel (Vehicle),Facilities,Allstar Business Solutions Ltd,89.9,2024/004,158424
"Department for Business, Energy and Industrial Strategy",The Coal Authority,28/06/2023,Fuel (Vehicle),Facilities,Allstar Business Solutions Ltd,9.5,2024/004,158424
"Department for Business, Energy and Industrial Strategy",The Coal Authority,05/07/2023,Fuel (Vehicle),PS&S - General Claims,Allstar Business Solutions Ltd,66.17,2024/004,158532
"Department for Business, Energy and Industrial Strategy",The Coal Authority,05/07/2023,Fuel (Vehicle),PS&S - General Claims,Allstar Business Solutions Ltd,51.75,2024/004,158532
"Department for Business, Energy and Industrial Strategy",The Coal Authority,05/07/2023,Fuel (Vehicle),PS&S - General Claims,Allstar Business Solutions Ltd,44.14,2024/004,158532
"Department for Business, Energy and Industrial Strategy",The Coal Authority,05/07/2023,Fuel (Vehicle),PS&S - General Claims,Allstar Business Solutions Ltd,36.78,2024/004,158532
"Department for Business, Energy and Industrial Strategy",The Coal Authority,05/07/2023,Fuel (Vehicle),PS&S - General Claims,Allstar Business Solutions Ltd,19,2024/004,158532
"Department for Business, Energy and Industrial Strategy",The Coal Authority,05/07/2023,Fuel (Vehicle),PS&S - General Claims,Allstar Business Solutions Ltd,46,2024/004,158532
"Department for Business, Energy and Industrial Strategy",The Coal Authority,05/07/2023,Fuel (Vehicle),PS&S - General Claims,Allstar Business Solutions Ltd,52.83,2024/004,158532
"Department for Business, Energy and Industrial Strategy",The Coal Authority,05/07/2023,Fuel (Vehicle),Tips Response,Allstar Business Solutions Ltd,55.2,2024/004,158532
"Department for Business, Energy and Industrial Strategy",The Coal Authority,05/07/2023,Fuel (Vehicle),Tips Response,Allstar Business Solutions Ltd,78.13,2024/004,158532
"Department for Business, Energy and Industrial Strategy",The Coal Authority,21/06/2023,Fuel (Vehicle),PS&S - General Claims,Allstar Business Solutions Ltd,93.77,2024/004,158533
"Department for Business, Energy and Industrial Strategy",The Coal Authority,21/06/2023,Fuel (Vehicle),PS&S - General Claims,Allstar Business Solutions Ltd,40.03,2024/004,158533
"Department for Business, Energy and Industrial Strategy",The Coal Authority,21/06/2023,Fuel (Vehicle),PS&S - General Claims,Allstar Business Solutions Ltd,124.21,2024/004,158533
"Department for Business, Energy and Industrial Strategy",The Coal Authority,21/06/2023,Fuel (Vehicle),PS&S - General Claims,Allstar Business Solutions Ltd,38.23,2024/004,158533
"Department for Business, Energy and Industrial Strategy",The Coal Authority,21/06/2023,Fuel (Vehicle),PS&S - General Claims,Allstar Business Solutions Ltd,45.04,2024/004,158533
"Department for Business, Energy and Industrial Strategy",The Coal Authority,21/06/2023,Fuel (Vehicle),PS&S - General Claims,Allstar Business Solutions Ltd,81.55,2024/004,158533
"Department for Business, Energy and Industrial Strategy",The Coal Authority,21/06/2023,Fuel (Vehicle),PS&S - General Claims,Allstar Business Solutions Ltd,34.41,2024/004,158533
"Department for Business, Energy and Industrial Strategy",The Coal Authority,21/06/2023,Fuel (Vehicle),PS&S - General Claims,Allstar Business Solutions Ltd,40.88,2024/004,158533
"Department for Business, Energy and Industrial Strategy",The Coal Authority,21/06/2023,Fuel (Vehicle),PS&S - General Claims,Allstar Business Solutions Ltd,26.6,2024/004,158533
"Department for Business, Energy and Industrial Strategy",The Coal Authority,21/06/2023,Fuel (Vehicle),Tips Response,Allstar Business Solutions Ltd,35.79,2024/004,158533
"Department for Business, Energy and Industrial Strategy",The Coal Authority,21/06/2023,Fuel (Vehicle),Tips Response,Allstar Business Solutions Ltd,66.8,2024/004,158533
"Department for Business, Energy and Industrial Strategy",The Coal Authority,27/06/2023,Fuel (Vehicle),"Health, Safety & Wellbeing",Staff Expenses Control,33.34,2024/004,158576
"Department for Business, Energy and Industrial Strategy",The Coal Authority,29/06/2023,Fuel (Vehicle),ENV - Projects & Delivery,Staff Expenses Control,38.87,2024/004,158576
"Department for Business, Energy and Industrial Strategy",The Coal Authority,29/06/2023,Fuel (Vehicle),Finance,Staff Expenses Control,45.88,2024/004,158576
"Department for Business, Energy and Industrial Strategy",The Coal Authority,29/06/2023,Fuel (Vehicle),Finance,Staff Expenses Control,50.01,2024/004,158576
"Department for Business, Energy and Industrial Strategy",The Coal Authority,30/06/2023,Fuel (Vehicle),ENV - Projects & Delivery,Staff Expenses Control,37.1,2024/004,158576
"Department for Business, Energy and Industrial Strategy",The Coal Authority,30/06/2023,Fuel (Vehicle),ENV - Projects & Delivery,Staff Expenses Control,29.16,2024/004,158576
"Department for Business, Energy and Industrial Strategy",The Coal Authority,06/07/2023,Fuel (Vehicle),ENV - Projects & Delivery,Staff Expenses Control,29.2,2024/004,158576
"Department for Business, Energy and Industrial Strategy",The Coal Authority,11/07/2023,Fuel (Vehicle),ENV - Projects & Delivery,Staff Expenses Control,47.2,2024/004,158840
"Department for Business, Energy and Industrial Strategy",The Coal Authority,13/07/2023,Fuel (Vehicle),Customer Services & Strategy,Staff Expenses Control,32.69,2024/004,158840
"Department for Business, Energy and Industrial Strategy",The Coal Authority,02/06/2023,Fuel (Vehicle),PS&S - General Claims,Government Procurement Card,10,2024/004,159117
"Department for Business, Energy and Industrial Strategy",The Coal Authority,06/06/2023,Fuel (Vehicle),DEFRA Metal Mine Programme,Government Procurement Card,58.35,2024/004,159117
"Department for Business, Energy and Industrial Strategy",The Coal Authority,06/06/2023,Fuel (Vehicle),Executive,Government Procurement Card,39.82,2024/004,159117
"Department for Business, Energy and Industrial Strategy",The Coal Authority,06/06/2023,Fuel (Vehicle),"Health, Safety & Wellbeing",Government Procurement Card,10.91,2024/004,159117
"Department for Business, Energy and Industrial Strategy",The Coal Authority,08/06/2023,Fuel (Vehicle),DEFRA Metal Mine Programme,Government Procurement Card,12.33,2024/004,159117
"Department for Business, Energy and Industrial Strategy",The Coal Authority,08/06/2023,Fuel (Vehicle),DIG - Data Licensing,Government Procurement Card,61.6,2024/004,159117
"Department for Business, Energy and Industrial Strategy",The Coal Authority,08/06/2023,Fuel (Vehicle),Engineering,Government Procurement Card,66.18,2024/004,159117
"Department for Business, Energy and Industrial Strategy",The Coal Authority,09/06/2023,Fuel (Vehicle),ENV - Salinity Programme,Government Procurement Card,42.86,2024/004,159117
"Department for Business, Energy and Industrial Strategy",The Coal Authority,12/06/2023,Fuel (Vehicle),DEFRA Metal Mine Programme,Government Procurement Card,40.07,2024/004,159117
"Department for Business, Energy and Industrial Strategy",The Coal Authority,12/06/2023,Fuel (Vehicle),Executive,Government Procurement Card,18.43,2024/004,159117
"Department for Business, Energy and Industrial Strategy",The Coal Authority,13/06/2023,Fuel (Vehicle),DEFRA Metal Mine Programme,Government Procurement Card,46.35,2024/004,159117
"Department for Business, Energy and Industrial Strategy",The Coal Authority,14/06/2023,Fuel (Vehicle),By-Products - Ochre,Government Procurement Card,51.04,2024/004,159117
"Department for Business, Energy and Industrial Strategy",The Coal Authority,15/06/2023,Fuel (Vehicle),ENV - Strategy & Sustainability Management,Government Procurement Card,41.58,2024/004,159117
"Department for Business, Energy and Industrial Strategy",The Coal Authority,15/06/2023,Fuel (Vehicle),NRW Metal Mine Programme,Government Procurement Card,36.32,2024/004,159117
"Department for Business, Energy and Industrial Strategy",The Coal Authority,15/06/2023,Fuel (Vehicle),PS&S - General Claims,Government Procurement Card,84.87,2024/004,159117
"Department for Business, Energy and Industrial Strategy",The Coal Authority,19/06/2023,Fuel (Vehicle),PS&S - General Claims,Government Procurement Card,54.35,2024/004,159117
"Department for Business, Energy and Industrial Strategy",The Coal Authority,20/06/2023,Fuel (Vehicle),PS&S - General Claims,Government Procurement Card,53.4,2024/004,159117
"Department for Business, Energy and Industrial Strategy",The Coal Authority,21/06/2023,Fuel (Vehicle),ENV - Mine Water Operations,Government Procurement Card,19.27,2024/004,159117
"Department for Business, Energy and Industrial Strategy",The Coal Authority,21/06/2023,Fuel (Vehicle),PS&S - General Claims,Government Procurement Card,34.42,2024/004,159117
"Department for Business, Energy and Industrial Strategy",The Coal Authority,23/06/2023,Fuel (Vehicle),PS&S - General Claims,Government Procurement Card,55.78,2024/004,159117
"Department for Business, Energy and Industrial Strategy",The Coal Authority,27/06/2023,Fuel (Vehicle),ENV - Mine Water Operations,Government Procurement Card,45.18,2024/004,159117
"Department for Business, Energy and Industrial Strategy",The Coal Authority,27/06/2023,Fuel (Vehicle),"Health, Safety & Wellbeing",Government Procurement Card,37.85,2024/004,159117
"Department for Business, Energy and Industrial Strategy",The Coal Authority,28/06/2023,Fuel (Vehicle),DEFRA LEP Funding,Government Procurement Card,98.95,2024/004,159117
"Department for Business, Energy and Industrial Strategy",The Coal Authority,29/06/2023,Fuel (Vehicle),DEFRA LEP Funding,Government Procurement Card,24.71,2024/004,159117
"Department for Business, Energy and Industrial Strategy",The Coal Authority,29/06/2023,Fuel (Vehicle),Finance,Government Procurement Card,50.09,2024/004,159117
"Department for Business, Energy and Industrial Strategy",The Coal Authority,29/06/2023,Fuel (Vehicle),PS&S - General Claims,Government Procurement Card,41.68,2024/004,159117
"Department for Business, Energy and Industrial Strategy",The Coal Authority,30/06/2023,Fuel (Vehicle),ENV - Mine Water Operations,Government Procurement Card,32.69,2024/004,159117
"Department for Business, Energy and Industrial Strategy",The Coal Authority,30/06/2023,Fuel (Vehicle),PS&S - General Claims,Government Procurement Card,44.35,2024/004,159117
"Department for Business, Energy and Industrial Strategy",The Coal Authority,01/07/2023,Fuel (Vehicle),PS&S - General Claims,Government Procurement Card,45.59,2024/004,159117
"Department for Business, Energy and Industrial Strategy",The Coal Authority,10/05/2023,Fuel (Vehicle),PS&S - General Claims,Government Procurement Card,70,2024/004,159118
"Department for Business, Energy and Industrial Strategy",The Coal Authority,16/05/2023,Fuel (Vehicle),PS&S - General Claims,Government Procurement Card,27.65,2024/004,159118
"Department for Business, Energy and Industrial Strategy",The Coal Authority,17/05/2023,Fuel (Vehicle),PS&S - Management,Government Procurement Card,59.97,2024/004,159118
"Department for Business, Energy and Industrial Strategy",The Coal Authority,24/05/2023,Fuel (Vehicle),PS&S - General Claims,Government Procurement Card,36.55,2024/004,159118
"Department for Business, Energy and Industrial Strategy",The Coal Authority,25/05/2023,Fuel (Vehicle),PS&S - General Claims,Government Procurement Card,46.28,2024/004,159118
"Department for Business, Energy and Industrial Strategy",The Coal Authority,28/06/2023,Fuel (Vehicle),ENV - Mine Water Operations,Allstar Business Solutions Ltd,42.97,2024/004,159145
"Department for Business, Energy and Industrial Strategy",The Coal Authority,28/06/2023,Fuel (Vehicle),ENV - Projects & Delivery,Allstar Business Solutions Ltd,39.88,2024/004,159145
"Department for Business, Energy and Industrial Strategy",The Coal Authority,05/07/2023,Fuel (Vehicle),ENV - Projects & Delivery,Allstar Business Solutions Ltd,43.25,2024/004,159153
"Department for Business, Energy and Industrial Strategy",The Coal Authority,19/07/2023,Fuel (Vehicle),PS&S - General Claims,Allstar Business Solutions Ltd,36.58,2024/004,159206
"Department for Business, Energy and Industrial Strategy",The Coal Authority,19/07/2023,Fuel (Vehicle),PS&S - General Claims,Allstar Business Solutions Ltd,33.28,2024/004,159206
"Department for Business, Energy and Industrial Strategy",The Coal Authority,19/07/2023,Fuel (Vehicle),PS&S - General Claims,Allstar Business Solutions Ltd,31.73,2024/004,159206
"Department for Business, Energy and Industrial Strategy",The Coal Authority,19/07/2023,Fuel (Vehicle),PS&S - General Claims,Allstar Business Solutions Ltd,47.23,2024/004,159206
"Department for Business, Energy and Industrial Strategy",The Coal Authority,19/07/2023,Fuel (Vehicle),PS&S - General Claims,Allstar Business Solutions Ltd,11.4,2024/004,159206
"Department for Business, Energy and Industrial Strategy",The Coal Authority,19/07/2023,Fuel (Vehicle),PS&S - General Claims,Allstar Business Solutions Ltd,52.74,2024/004,159206
"Department for Business, Energy and Industrial Strategy",The Coal Authority,19/07/2023,Fuel (Vehicle),Tips Response,Allstar Business Solutions Ltd,37.46,2024/004,159206
"Department for Business, Energy and Industrial Strategy",The Coal Authority,12/07/2023,Fuel (Vehicle),PS&S - General Claims,Allstar Business Solutions Ltd,36.08,2024/004,159207
"Department for Business, Energy and Industrial Strategy",The Coal Authority,12/07/2023,Fuel (Vehicle),PS&S - General Claims,Allstar Business Solutions Ltd,52.33,2024/004,159207
"Department for Business, Energy and Industrial Strategy",The Coal Authority,12/07/2023,Fuel (Vehicle),PS&S - General Claims,Allstar Business Solutions Ltd,66.68,2024/004,159207
"Department for Business, Energy and Industrial Strategy",The Coal Authority,12/07/2023,Fuel (Vehicle),PS&S - General Claims,Allstar Business Solutions Ltd,38.93,2024/004,159207
"Department for Business, Energy and Industrial Strategy",The Coal Authority,12/07/2023,Fuel (Vehicle),PS&S - General Claims,Allstar Business Solutions Ltd,85.18,2024/004,159207
"Department for Business, Energy and Industrial Strategy",The Coal Authority,12/07/2023,Fuel (Vehicle),PS&S - General Claims,Allstar Business Solutions Ltd,72.07,2024/004,159207
"Department for Business, Energy and Industrial Strategy",The Coal Authority,12/07/2023,Fuel (Vehicle),PS&S - General Claims,Allstar Business Solutions Ltd,17.1,2024/004,159207
"Department for Business, Energy and Industrial Strategy",The Coal Authority,12/07/2023,Fuel (Vehicle),Tips Response,Allstar Business Solutions Ltd,53.28,2024/004,159207
"Department for Business, Energy and Industrial Strategy",The Coal Authority,12/07/2023,Fuel (Vehicle),Facilities,Allstar Business Solutions Ltd,35.22,2024/004,159221
"Department for Business, Energy and Industrial Strategy",The Coal Authority,12/07/2023,Fuel (Vehicle),Facilities,Allstar Business Solutions Ltd,98.51,2024/004,159221
"Department for Business, Energy and Industrial Strategy",The Coal Authority,12/07/2023,Fuel (Vehicle),Facilities,Allstar Business Solutions Ltd,65.54,2024/004,159221
"Department for Business, Energy and Industrial Strategy",The Coal Authority,12/07/2023,Fuel (Vehicle),Facilities,Allstar Business Solutions Ltd,15.2,2024/004,159221
"Department for Business, Energy and Industrial Strategy",The Coal Authority,12/07/2023,Fuel (Vehicle),Facilities,Allstar Business Solutions Ltd,15.92,2024/004,159221
"Department for Business, Energy and Industrial Strategy",The Coal Authority,19/07/2023,Fuel (Vehicle),Facilities,Allstar Business Solutions Ltd,46.92,2024/004,159222
"Department for Business, Energy and Industrial Strategy",The Coal Authority,19/07/2023,Fuel (Vehicle),Facilities,Allstar Business Solutions Ltd,54.17,2024/004,159222
"Department for Business, Energy and Industrial Strategy",The Coal Authority,19/07/2023,Fuel (Vehicle),Facilities,Allstar Business Solutions Ltd,3.8,2024/004,159222
"Department for Business, Energy and Industrial Strategy",The Coal Authority,04/07/2023,Fuel (Vehicle),Tips Response,Staff Expenses Control,52.56,2024/004,159384
"Department for Business, Energy and Industrial Strategy",The Coal Authority,04/01/2023,Fuel (Vehicle),ENV - Mine Water Operations,Government Procurement Card,61.94,2024/004,159924
"Department for Business, Energy and Industrial Strategy",The Coal Authority,11/01/2023,Fuel (Vehicle),ENV - Mine Water Operations,Government Procurement Card,64.24,2024/004,159924
"Department for Business, Energy and Industrial Strategy",The Coal Authority,18/01/2023,Fuel (Vehicle),ENV - Mine Water Operations,Government Procurement Card,67.83,2024/004,159924
"Department for Business, Energy and Industrial Strategy",The Coal Authority,19/01/2023,Fuel (Vehicle),ENV - Mine Water Operations,Government Procurement Card,69.8,2024/004,159924
"Department for Business, Energy and Industrial Strategy",The Coal Authority,01/02/2023,Fuel (Vehicle),ENV - Mine Water Operations,Government Procurement Card,69.7,2024/004,159924
"Department for Business, Energy and Industrial Strategy",The Coal Authority,19/05/2023,Fuel (Vehicle),DEV - Licensing,Government Procurement Card,40.2,2024/004,159926
"Department for Business, Energy and Industrial Strategy",The Coal Authority,07/06/2023,Fuel (Vehicle),ENV - Mine Water Operations,Government Procurement Card,68.8,2024/004,159927
"Department for Business, Energy and Industrial Strategy",The Coal Authority,07/06/2023,Fuel (Vehicle),ENV - Mine Water Operations,Government Procurement Card,39.18,2024/004,159927
"Department for Business, Energy and Industrial Strategy",The Coal Authority,09/06/2023,Fuel (Vehicle),ENV - Mine Water Operations,Government Procurement Card,40.23,2024/004,159927
"Department for Business, Energy and Industrial Strategy",The Coal Authority,09/06/2023,Fuel (Vehicle),ENV - Mine Water Operations,Government Procurement Card,50.03,2024/004,159927
"Department for Business, Energy and Industrial Strategy",The Coal Authority,14/06/2023,Fuel (Vehicle),ENV - Mine Water Operations,Government Procurement Card,38.33,2024/004,159927
"Department for Business, Energy and Industrial Strategy",The Coal Authority,15/06/2023,Fuel (Vehicle),ENV - Projects & Delivery,Government Procurement Card,37.51,2024/004,159927
"Department for Business, Energy and Industrial Strategy",The Coal Authority,18/06/2023,Fuel (Vehicle),ENV - Mine Water Operations,Government Procurement Card,39.18,2024/004,159927
"Department for Business, Energy and Industrial Strategy",The Coal Authority,20/06/2023,Fuel (Vehicle),ENV - Mine Water Operations,Government Procurement Card,50,2024/004,159927
"Department for Business, Energy and Industrial Strategy",The Coal Authority,20/06/2023,Fuel (Vehicle),ENV - Mine Water Operations,Government Procurement Card,40.84,2024/004,159927
"Department for Business, Energy and Industrial Strategy",The Coal Authority,21/06/2023,Fuel (Vehicle),ENV - Mine Water Operations,Government Procurement Card,33.33,2024/004,159927
"Department for Business, Energy and Industrial Strategy",The Coal Authority,23/06/2023,Fuel (Vehicle),ENV - Mine Water Operations,Government Procurement Card,58.86,2024/004,159927
"Department for Business, Energy and Industrial Strategy",The Coal Authority,29/06/2023,Fuel (Vehicle),ENV - Mine Water Operations,Government Procurement Card,34.75,2024/004,159927
"Department for Business, Energy and Industrial Strategy",The Coal Authority,05/05/2023,Hardware Equipment & Support,DIG - Technical Delivery,Government Procurement Card,139.97,2024/004,159118
"Department for Business, Energy and Industrial Strategy",The Coal Authority,05/05/2023,Hardware Equipment & Support,DIG - Technical Delivery,Government Procurement Card,147.12,2024/004,159118
"Department for Business, Energy and Industrial Strategy",The Coal Authority,10/05/2023,Hardware Equipment & Support,DIG - Technical Delivery,Government Procurement Card,195.82,2024/004,159118
"Department for Business, Energy and Industrial Strategy",The Coal Authority,11/05/2023,Hardware Equipment & Support,DIG - Technical Delivery,Government Procurement Card,195.82,2024/004,159118
"Department for Business, Energy and Industrial Strategy",The Coal Authority,12/05/2023,Hardware Equipment & Support,DIG - Service & Assurance,Government Procurement Card,940.2,2024/004,159926
"Department for Business, Energy and Industrial Strategy",The Coal Authority,15/05/2023,Hardware Equipment & Support,DIG - Service & Assurance,Government Procurement Card,332.5,2024/004,159926
"Department for Business, Energy and Industrial Strategy",The Coal Authority,15/05/2023,Hardware Equipment & Support,DIG - Service & Assurance,Government Procurement Card,501.76,2024/004,159926
"Department for Business, Energy and Industrial Strategy",The Coal Authority,21/06/2023,Hardware Equipment & Support,DIG - Technical Delivery,Government Procurement Card,730.13,2024/004,159927
"Department for Business, Energy and Industrial Strategy",The Coal Authority,21/06/2023,Hardware Equipment & Support,DIG - Technical Delivery,Government Procurement Card,"1,015.69",2024/004,159927
"Department for Business, Energy and Industrial Strategy",The Coal Authority,06/06/2023,Hotel & Accommodation,Executive,Natural Resources Wales,625,2024/004,158525
"Department for Business, Energy and Industrial Strategy",The Coal Authority,30/06/2023,Hotel & Accommodation,Finance,Corporate Travel Management North,1.9,2024/004,159536
"Department for Business, Energy and Industrial Strategy",The Coal Authority,30/06/2023,Hotel & Accommodation,Finance,Corporate Travel Management North,"12,072.54",2024/004,159536
"Department for Business, Energy and Industrial Strategy",The Coal Authority,06/06/2023,Hotel & Accommodation,Executive,Natural Resources Wales,80,2024/004,159732
"Department for Business, Energy and Industrial Strategy",The Coal Authority,26/06/2023,Hotel & Accommodation,ENV - Mine Water Operations,Government Procurement Card,149,2024/004,159927
"Department for Business, Energy and Industrial Strategy",The Coal Authority,28/06/2023,Hotel & Accommodation,ENV - Mine Water Operations,Government Procurement Card,92.49,2024/004,159927
"Department for Business, Energy and Industrial Strategy",The Coal Authority,28/06/2023,Hotel & Accommodation,ENV - Mine Water Operations,Government Procurement Card,15,2024/004,159927
"Department for Business, Energy and Industrial Strategy",The Coal Authority,25/05/2023,Incidentals,DEFRA Metal Mine Programme,Staff Expenses Control,4.4,2024/004,157862
"Department for Business, Energy and Industrial Strategy",The Coal Authority,15/06/2023,Incidentals,Corporate Programme Office,Staff Expenses Control,5,2024/004,157862
"Department for Business, Energy and Industrial Strategy",The Coal Authority,20/06/2023,Incidentals,Heat & By-Product Innovation,Staff Expenses Control,8,2024/004,157862
"Department for Business, Energy and Industrial Strategy",The Coal Authority,22/06/2023,Incidentals,Innovation By-Product & Services Delivery,Staff Expenses Control,1.83,2024/004,157862
"Department for Business, Energy and Industrial Strategy",The Coal Authority,23/06/2023,Incidentals,Heat & By-Product Innovation,Staff Expenses Control,4,2024/004,157862
"Department for Business, Energy and Industrial Strategy",The Coal Authority,23/05/2023,Incidentals,Finance,Staff Expenses Control,24.96,2024/004,158395
"Department for Business, Energy and Industrial Strategy",The Coal Authority,16/05/2023,Incidentals,Finance,Staff Expenses Control,6.67,2024/004,158576
"Department for Business, Energy and Industrial Strategy",The Coal Authority,05/05/2023,Incidentals,People & Organisational Development,Staff Expenses Control,20,2024/004,158840
"Department for Business, Energy and Industrial Strategy",The Coal Authority,26/06/2023,Incidentals,Engineering,Staff Expenses Control,6,2024/004,158840
"Department for Business, Energy and Industrial Strategy",The Coal Authority,04/07/2023,Incidentals,ENV - Projects & Delivery,Staff Expenses Control,1.67,2024/004,158840
"Department for Business, Energy and Industrial Strategy",The Coal Authority,05/07/2023,Incidentals,ENV - Projects & Delivery,Staff Expenses Control,3.17,2024/004,158840
"Department for Business, Energy and Industrial Strategy",The Coal Authority,06/07/2023,Incidentals,Community Response,Staff Expenses Control,2.33,2024/004,158840
"Department for Business, Energy and Industrial Strategy",The Coal Authority,06/07/2023,Incidentals,ENV - Projects & Delivery,Staff Expenses Control,2.08,2024/004,158840
"Department for Business, Energy and Industrial Strategy",The Coal Authority,10/07/2023,Incidentals,ENV - Projects & Delivery,Staff Expenses Control,3.75,2024/004,158840
"Department for Business, Energy and Industrial Strategy",The Coal Authority,13/07/2023,Incidentals,Customer Services & Strategy,Staff Expenses Control,12,2024/004,158840
"Department for Business, Energy and Industrial Strategy",The Coal Authority,02/06/2023,Incidentals,PS&S - General Claims,Government Procurement Card,4.17,2024/004,159117
"Department for Business, Energy and Industrial Strategy",The Coal Authority,05/06/2023,Incidentals,PS&S - General Claims,Government Procurement Card,0.5,2024/004,159117
"Department for Business, Energy and Industrial Strategy",The Coal Authority,06/06/2023,Incidentals,Executive,Government Procurement Card,10,2024/004,159117
"Department for Business, Energy and Industrial Strategy",The Coal Authority,06/06/2023,Incidentals,Executive,Government Procurement Card,10,2024/004,159117
"Department for Business, Energy and Industrial Strategy",The Coal Authority,08/06/2023,Incidentals,PS&S - General Claims,Government Procurement Card,3.17,2024/004,159117
"Department for Business, Energy and Industrial Strategy",The Coal Authority,09/06/2023,Incidentals,ENV - Salinity Programme,Government Procurement Card,6.67,2024/004,159117
"Department for Business, Energy and Industrial Strategy",The Coal Authority,11/06/2023,Incidentals,PS&S - General Claims,Government Procurement Card,8.5,2024/004,159117
"Department for Business, Energy and Industrial Strategy",The Coal Authority,13/06/2023,Incidentals,DEFRA Metal Mine Programme,Government Procurement Card,8.33,2024/004,159117
"Department for Business, Energy and Industrial Strategy",The Coal Authority,13/06/2023,Incidentals,PS&S - General Claims,Government Procurement Card,19.5,2024/004,159117
"Department for Business, Energy and Industrial Strategy",The Coal Authority,13/06/2023,Incidentals,PS&S - General Claims,Government Procurement Card,16.25,2024/004,159117
"Department for Business, Energy and Industrial Strategy",The Coal Authority,13/06/2023,Incidentals,PS&S - General Claims,Government Procurement Card,17,2024/004,159117
"Department for Business, Energy and Industrial Strategy",The Coal Authority,13/06/2023,Incidentals,PS&S - General Claims,Government Procurement Card,17,2024/004,159117
"Department for Business, Energy and Industrial Strategy",The Coal Authority,14/06/2023,Incidentals,By-Products - Ochre,Government Procurement Card,2.2,2024/004,159117
"Department for Business, Energy and Industrial Strategy",The Coal Authority,15/06/2023,Incidentals,ENV - Strategy & Sustainability Management,Government Procurement Card,11.67,2024/004,159117
"Department for Business, Energy and Industrial Strategy",The Coal Authority,15/06/2023,Incidentals,Executive,Government Procurement Card,2.2,2024/004,159117
"Department for Business, Energy and Industrial Strategy",The Coal Authority,15/06/2023,Incidentals,Executive,Government Procurement Card,9.17,2024/004,159117
"Department for Business, Energy and Industrial Strategy",The Coal Authority,15/06/2023,Incidentals,PS&S - Management,Government Procurement Card,2.2,2024/004,159117
"Department for Business, Energy and Industrial Strategy",The Coal Authority,15/06/2023,Incidentals,PS&S - Management,Government Procurement Card,11.67,2024/004,159117
"Department for Business, Energy and Industrial Strategy",The Coal Authority,19/06/2023,Incidentals,PS&S - General Claims,Government Procurement Card,0.5,2024/004,159117
"Department for Business, Energy and Industrial Strategy",The Coal Authority,19/06/2023,Incidentals,Procurement,Government Procurement Card,24.75,2024/004,159117
"Department for Business, Energy and Industrial Strategy",The Coal Authority,20/06/2023,Incidentals,PS&S - General Claims,Government Procurement Card,3.17,2024/004,159117
"Department for Business, Energy and Industrial Strategy",The Coal Authority,20/06/2023,Incidentals,PS&S - General Claims,Government Procurement Card,3.17,2024/004,159117
"Department for Business, Energy and Industrial Strategy",The Coal Authority,20/06/2023,Incidentals,PS&S - General Claims,Government Procurement Card,7,2024/004,159117
"Department for Business, Energy and Industrial Strategy",The Coal Authority,21/06/2023,Incidentals,PS&S - General Claims,Government Procurement Card,11,2024/004,159117
"Department for Business, Energy and Industrial Strategy",The Coal Authority,21/06/2023,Incidentals,PS&S - General Claims,Government Procurement Card,9.17,2024/004,159117
"Department for Business, Energy and Industrial Strategy",The Coal Authority,21/06/2023,Incidentals,PS&S - General Claims,Government Procurement Card,9.17,2024/004,159117
"Department for Business, Energy and Industrial Strategy",The Coal Authority,21/06/2023,Incidentals,PS&S - General Claims,Government Procurement Card,9.17,2024/004,159117
"Department for Business, Energy and Industrial Strategy",The Coal Authority,21/06/2023,Incidentals,PS&S - General Claims,Government Procurement Card,5.42,2024/004,159117
"Department for Business, Energy and Industrial Strategy",The Coal Authority,21/06/2023,Incidentals,PS&S - Management,Government Procurement Card,9.17,2024/004,159117
"Department for Business, Energy and Industrial Strategy",The Coal Authority,27/06/2023,Incidentals,PS&S - General Claims,Government Procurement Card,14.58,2024/004,159117
"Department for Business, Energy and Industrial Strategy",The Coal Authority,29/06/2023,Incidentals,DEFRA LEP Funding,Government Procurement Card,1,2024/004,159117
"Department for Business, Energy and Industrial Strategy",The Coal Authority,29/06/2023,Incidentals,Finance,Government Procurement Card,5,2024/004,159117
"Department for Business, Energy and Industrial Strategy",The Coal Authority,29/06/2023,Incidentals,Finance,Government Procurement Card,5,2024/004,159117
"Department for Business, Energy and Industrial Strategy",The Coal Authority,29/06/2023,Incidentals,Finance,Government Procurement Card,5,2024/004,159117
"Department for Business, Energy and Industrial Strategy",The Coal Authority,30/06/2023,Incidentals,PS&S - General Claims,Government Procurement Card,2,2024/004,159117
"Department for Business, Energy and Industrial Strategy",The Coal Authority,10/05/2023,Incidentals,Engineering,Government Procurement Card,11.5,2024/004,159118
"Department for Business, Energy and Industrial Strategy",The Coal Authority,17/05/2023,Incidentals,PS&S - General Claims,Government Procurement Card,4.4,2024/004,159118
"Department for Business, Energy and Industrial Strategy",The Coal Authority,18/05/2023,Incidentals,DIG - Data Licensing,Government Procurement Card,30,2024/004,159118
"Department for Business, Energy and Industrial Strategy",The Coal Authority,18/05/2023,Incidentals,ENV - Projects & Delivery,Government Procurement Card,7.92,2024/004,159118
"Department for Business, Energy and Industrial Strategy",The Coal Authority,18/05/2023,Incidentals,ENV - Projects & Delivery,Government Procurement Card,10.42,2024/004,159118
"Department for Business, Energy and Industrial Strategy",The Coal Authority,24/05/2023,Incidentals,PS&S - General Claims,Government Procurement Card,16.67,2024/004,159118
"Department for Business, Energy and Industrial Strategy",The Coal Authority,31/05/2023,Incidentals,PS&S - General Claims,Government Procurement Card,6,2024/004,159118
"Department for Business, Energy and Industrial Strategy",The Coal Authority,01/06/2023,Incidentals,PS&S - General Claims,Government Procurement Card,9.16,2024/004,159118
"Department for Business, Energy and Industrial Strategy",The Coal Authority,01/07/2023,Incidentals,Customer Services & Strategy,Security Plus Limited,16.61,2024/004,159317
"Department for Business, Energy and Industrial Strategy",The Coal Authority,11/05/2023,Incidentals,Executive,Staff Expenses Control,5.79,2024/004,159384
"Department for Business, Energy and Industrial Strategy",The Coal Authority,22/03/2023,Incidentals,Board,Government Procurement Card,16.67,2024/004,159925
"Department for Business, Energy and Industrial Strategy",The Coal Authority,24/03/2023,Incidentals,Board,Government Procurement Card,25,2024/004,159925
"Department for Business, Energy and Industrial Strategy",The Coal Authority,29/03/2023,Incidentals,Executive,Government Procurement Card,11.9,2024/004,159925
"Department for Business, Energy and Industrial Strategy",The Coal Authority,11/05/2023,Incidentals,Executive,Government Procurement Card,6.1,2024/004,159926
"Department for Business, Energy and Industrial Strategy",The Coal Authority,24/05/2023,Incidentals,DEV - Mine Heat Licensing,Government Procurement Card,14,2024/004,159926
"Department for Business, Energy and Industrial Strategy",The Coal Authority,24/05/2023,Incidentals,Executive,Government Procurement Card,4,2024/004,159926
"Department for Business, Energy and Industrial Strategy",The Coal Authority,15/06/2023,Incidentals,ENV - Projects & Delivery,Government Procurement Card,2.2,2024/004,159927
"Department for Business, Energy and Industrial Strategy",The Coal Authority,29/06/2023,Information Security testing & audit,DIG - Technical Delivery,Claranet Limited,"12,500.00",2024/004,158888
"Department for Business, Energy and Industrial Strategy",The Coal Authority,07/07/2023,Innovation Costs,Heat & By-Product Innovation,S P Foods,114,2024/004,158734
"Department for Business, Energy and Industrial Strategy",The Coal Authority,14/07/2023,Innovation Costs,By-Products - Energy,Smart Energy (GB) Ltd,675.49,2024/004,158991
"Department for Business, Energy and Industrial Strategy",The Coal Authority,26/05/2023,Innovation Costs,DEFRA Metal Mine Programme,Government Procurement Card,207.13,2024/004,159118
"Department for Business, Energy and Industrial Strategy",The Coal Authority,30/05/2023,Innovation Costs,DEFRA Metal Mine Programme,Government Procurement Card,8.82,2024/004,159118
"Department for Business, Energy and Industrial Strategy",The Coal Authority,20/07/2023,Innovation Costs,Innovation By-Product & Services Delivery,Severn Trent Serv Ops Uk Ltd,729.43,2024/004,159327
"Department for Business, Energy and Industrial Strategy",The Coal Authority,03/05/2023,Internet Service Provider & Comms,Colleague & Corporate Engagement,Government Procurement Card,600,2024/004,159118
"Department for Business, Energy and Industrial Strategy",The Coal Authority,12/07/2023,Law Society Facilitation Fee,Mining Reports,The Law Society,963.15,2024/004,159436
"Department for Business, Energy and Industrial Strategy",The Coal Authority,30/06/2023,Legal - Advice Amend Property Lease > 50yr,DEV - Property Management,Lambert Smith Hampton,"1,500.00",2024/004,159948
"Department for Business, Energy and Industrial Strategy",The Coal Authority,21/06/2023,Legal - General,Legal & Governance,Dla Piper Scotland Llp,"3,329.86",2024/004,158030
"Department for Business, Energy and Industrial Strategy",The Coal Authority,23/06/2023,Legal - General,PS&S - General Claims,Dla Piper Scotland Llp,"107,114.00",2024/004,158070
"Department for Business, Energy and Industrial Strategy",The Coal Authority,20/06/2023,Legal - General,Legal & Governance,Browne Jacobson Llp Client Account,729.6,2024/004,158255
"Department for Business, Energy and Industrial Strategy",The Coal Authority,22/06/2023,Legal - General,Legal & Governance,Browne Jacobson Llp Client Account,161.6,2024/004,158276
"Department for Business, Energy and Industrial Strategy",The Coal Authority,21/06/2023,Legal - General,Legal & Governance,Dla Piper Uk Llp,"2,412.09",2024/004,158281
"Department for Business, Energy and Industrial Strategy",The Coal Authority,29/06/2023,Legal - General,Legal & Governance,Browne Jacobson Llp Client Account,"4,616.80",2024/004,158282
"Department for Business, Energy and Industrial Strategy",The Coal Authority,22/06/2023,Legal - General,Legal & Governance,Browne Jacobson Llp Client Account,394.4,2024/004,158283
"Department for Business, Energy and Industrial Strategy",The Coal Authority,20/06/2023,Legal - General,Legal & Governance,Browne Jacobson Llp Client Account,"1,111.60",2024/004,158414
"Department for Business, Energy and Industrial Strategy",The Coal Authority,22/06/2023,Legal - General,Legal & Governance,Browne Jacobson Llp Client Account,229.6,2024/004,158415
"Department for Business, Energy and Industrial Strategy",The Coal Authority,22/06/2023,Legal - General,Legal & Governance,Browne Jacobson Llp Client Account,"26,216.83",2024/004,158701
"Department for Business, Energy and Industrial Strategy",The Coal Authority,22/06/2023,Legal - General,Legal & Governance,Browne Jacobson Llp Client Account,"17,675.00",2024/004,158701
"Department for Business, Energy and Industrial Strategy",The Coal Authority,03/07/2023,Legal - General,Legal & Governance,Walker Morris,206.7,2024/004,158711
"Department for Business, Energy and Industrial Strategy",The Coal Authority,14/06/2023,Legal - General,ENV - Mine Water Operations,Shakespeare Martineau LLP,"2,150.00",2024/004,158766
"Department for Business, Energy and Industrial Strategy",The Coal Authority,14/07/2023,Legal - General,PS&S - General Claims,Registers Of Scotland,30,2024/004,159075
"Department for Business, Energy and Industrial Strategy",The Coal Authority,24/07/2023,Legal - General,Legal & Governance,Dla Piper Uk Llp,"1,289.23",2024/004,159711
"Department for Business, Energy and Industrial Strategy",The Coal Authority,18/07/2023,Legal - General,Legal & Governance,Anderson Strathern,637,2024/004,159769
"Department for Business, Energy and Industrial Strategy",The Coal Authority,18/07/2023,Legal - General,Legal & Governance,Anderson Strathern,6,2024/004,159770
"Department for Business, Energy and Industrial Strategy",The Coal Authority,19/06/2023,Legal - General,People & Organisational Development,Browne Jacobson Llp Client Account,307.2,2024/004,159775
"Department for Business, Energy and Industrial Strategy",The Coal Authority,23/06/2023,Legal - Property Title Search,Legal & Governance,Land Registry,6,2024/004,157903
"Department for Business, Energy and Industrial Strategy",The Coal Authority,26/06/2023,Legal - Property Title Search,Legal & Governance,Land Registry,66,2024/004,157904
"Department for Business, Energy and Industrial Strategy",The Coal Authority,29/06/2023,Legal - Property Title Search,Legal & Governance,Land Registry,54,2024/004,158765
"Department for Business, Energy and Industrial Strategy",The Coal Authority,03/07/2023,Legal - Property Title Search,Legal & Governance,Land Registry,51,2024/004,158767
"Department for Business, Energy and Industrial Strategy",The Coal Authority,30/06/2023,Legal - Property Title Search,Legal & Governance,Land Registry,60,2024/004,158768
"Department for Business, Energy and Industrial Strategy",The Coal Authority,07/07/2023,Legal - Property Title Search,Legal & Governance,Land Registry,3,2024/004,159126
"Department for Business, Energy and Industrial Strategy",The Coal Authority,11/07/2023,Legal - Property Title Search,Legal & Governance,Land Registry,60,2024/004,159127
"Department for Business, Energy and Industrial Strategy",The Coal Authority,06/07/2023,Legal - Property Title Search,Legal & Governance,Land Registry,72,2024/004,159128
"Department for Business, Energy and Industrial Strategy",The Coal Authority,21/07/2023,Legal - Property Title Search,Legal & Governance,Land Registry,99,2024/004,159784
"Department for Business, Energy and Industrial Strategy",The Coal Authority,01/07/2023,Membership Subscriptions,Legal & Governance,Thomson Reuters (Professional),"6,372.48",2024/004,158449
"Department for Business, Energy and Industrial Strategy",The Coal Authority,24/03/2023,Mileage Payments,PS&S - Management,Staff Expenses Control,8.1,2024/004,157862
"Department for Business, Energy and Industrial Strategy",The Coal Authority,29/03/2023,Mileage Payments,PS&S - Management,Staff Expenses Control,8.1,2024/004,157862
"Department for Business, Energy and Industrial Strategy",The Coal Authority,31/03/2023,Mileage Payments,PS&S - Management,Staff Expenses Control,8.1,2024/004,157862
"Department for Business, Energy and Industrial Strategy",The Coal Authority,05/04/2023,Mileage Payments,PS&S - Management,Staff Expenses Control,8.1,2024/004,157862
"Department for Business, Energy and Industrial Strategy",The Coal Authority,11/04/2023,Mileage Payments,PS&S - Management,Staff Expenses Control,8.1,2024/004,157862
"Department for Business, Energy and Industrial Strategy",The Coal Authority,12/04/2023,Mileage Payments,PS&S - Management,Staff Expenses Control,8.1,2024/004,157862
"Department for Business, Energy and Industrial Strategy",The Coal Authority,25/04/2023,Mileage Payments,PS&S - Management,Staff Expenses Control,34.2,2024/004,157862
"Department for Business, Energy and Industrial Strategy",The Coal Authority,27/04/2023,Mileage Payments,PS&S - Management,Staff Expenses Control,8.1,2024/004,157862
"Department for Business, Energy and Industrial Strategy",The Coal Authority,03/05/2023,Mileage Payments,PS&S - Management,Staff Expenses Control,8.1,2024/004,157862
"Department for Business, Energy and Industrial Strategy",The Coal Authority,03/05/2023,Mileage Payments,Tip Management Services,Staff Expenses Control,2.12,2024/004,157862
"Department for Business, Energy and Industrial Strategy",The Coal Authority,03/05/2023,Mileage Payments,Tip Management Services,Staff Expenses Control,6.61,2024/004,157862
"Department for Business, Energy and Industrial Strategy",The Coal Authority,03/05/2023,Mileage Payments,Tip Management Services,Staff Expenses Control,6.23,2024/004,157862
"Department for Business, Energy and Industrial Strategy",The Coal Authority,04/05/2023,Mileage Payments,Tip Management Services,Staff Expenses Control,4.78,2024/004,157862
"Department for Business, Energy and Industrial Strategy",The Coal Authority,04/05/2023,Mileage Payments,Tip Management Services,Staff Expenses Control,4.77,2024/004,157862
"Department for Business, Energy and Industrial Strategy",The Coal Authority,10/05/2023,Mileage Payments,Tip Management Services,Staff Expenses Control,8.47,2024/004,157862
"Department for Business, Energy and Industrial Strategy",The Coal Authority,10/05/2023,Mileage Payments,Tip Management Services,Staff Expenses Control,8.39,2024/004,157862
"Department for Business, Energy and Industrial Strategy",The Coal Authority,11/05/2023,Mileage Payments,Tip Management Services,Staff Expenses Control,5.81,2024/004,157862
"Department for Business, Energy and Industrial Strategy",The Coal Authority,11/05/2023,Mileage Payments,Tip Management Services,Staff Expenses Control,3.32,2024/004,157862
"Department for Business, Energy and Industrial Strategy",The Coal Authority,11/05/2023,Mileage Payments,Tip Management Services,Staff Expenses Control,8.63,2024/004,157862
"Department for Business, Energy and Industrial Strategy",The Coal Authority,12/05/2023,Mileage Payments,PS&S - Management,Staff Expenses Control,8.1,2024/004,157862
"Department for Business, Energy and Industrial Strategy",The Coal Authority,12/05/2023,Mileage Payments,Tip Management Services,Staff Expenses Control,4.71,2024/004,157862
"Department for Business, Energy and Industrial Strategy",The Coal Authority,12/05/2023,Mileage Payments,Tip Management Services,Staff Expenses Control,4.75,2024/004,157862
"Department for Business, Energy and Industrial Strategy",The Coal Authority,16/05/2023,Mileage Payments,Tip Management Services,Staff Expenses Control,3.26,2024/004,157862
"Department for Business, Energy and Industrial Strategy",The Coal Authority,16/05/2023,Mileage Payments,Tip Management Services,Staff Expenses Control,1.16,2024/004,157862
"Department for Business, Energy and Industrial Strategy",The Coal Authority,16/05/2023,Mileage Payments,Tip Management Services,Staff Expenses Control,3.48,2024/004,157862
"Department for Business, Energy and Industrial Strategy",The Coal Authority,16/05/2023,Mileage Payments,Tip Management Services,Staff Expenses Control,1.3,2024/004,157862
"Department for Business, Energy and Industrial Strategy",The Coal Authority,16/05/2023,Mileage Payments,Tip Management Services,Staff Expenses Control,5.74,2024/004,157862
"Department for Business, Energy and Industrial Strategy",The Coal Authority,16/05/2023,Mileage Payments,Tip Management Services,Staff Expenses Control,5.8,2024/004,157862
"Department for Business, Energy and Industrial Strategy",The Coal Authority,17/05/2023,Mileage Payments,Tip Management Services,Staff Expenses Control,3.05,2024/004,157862
"Department for Business, Energy and Industrial Strategy",The Coal Authority,17/05/2023,Mileage Payments,Tip Management Services,Staff Expenses Control,5.69,2024/004,157862
"Department for Business, Energy and Industrial Strategy",The Coal Authority,17/05/2023,Mileage Payments,Tip Management Services,Staff Expenses Control,7.92,2024/004,157862
"Department for Business, Energy and Industrial Strategy",The Coal Authority,22/05/2023,Mileage Payments,PS&S - General Claims,Staff Expenses Control,16.2,2024/004,157862
"Department for Business, Energy and Industrial Strategy",The Coal Authority,23/05/2023,Mileage Payments,Tip Management Services,Staff Expenses Control,5.89,2024/004,157862
"Department for Business, Energy and Industrial Strategy",The Coal Authority,23/05/2023,Mileage Payments,Tip Management Services,Staff Expenses Control,5.85,2024/004,157862
"Department for Business, Energy and Industrial Strategy",The Coal Authority,24/05/2023,Mileage Payments,Tip Management Services,Staff Expenses Control,5.12,2024/004,157862
"Department for Business, Energy and Industrial Strategy",The Coal Authority,24/05/2023,Mileage Payments,Tip Management Services,Staff Expenses Control,5.17,2024/004,157862
"Department for Business, Energy and Industrial Strategy",The Coal Authority,25/05/2023,Mileage Payments,PS&S - Management,Staff Expenses Control,8.1,2024/004,157862
"Department for Business, Energy and Industrial Strategy",The Coal Authority,25/05/2023,Mileage Payments,Tip Management Services,Staff Expenses Control,2.08,2024/004,157862
"Department for Business, Energy and Industrial Strategy",The Coal Authority,25/05/2023,Mileage Payments,Tip Management Services,Staff Expenses Control,2.09,2024/004,157862
"Department for Business, Energy and Industrial Strategy",The Coal Authority,30/05/2023,Mileage Payments,Tip Management Services,Staff Expenses Control,3.8,2024/004,157862
"Department for Business, Energy and Industrial Strategy",The Coal Authority,30/05/2023,Mileage Payments,Tip Management Services,Staff Expenses Control,3.8,2024/004,157862
"Department for Business, Energy and Industrial Strategy",The Coal Authority,01/06/2023,Mileage Payments,ENV - Technical,Staff Expenses Control,3.99,2024/004,157862
"Department for Business, Energy and Industrial Strategy",The Coal Authority,01/06/2023,Mileage Payments,ENV - Technical,Staff Expenses Control,3.97,2024/004,157862
"Department for Business, Energy and Industrial Strategy",The Coal Authority,02/06/2023,Mileage Payments,Tip Management Services,Staff Expenses Control,6.17,2024/004,157862
"Department for Business, Energy and Industrial Strategy",The Coal Authority,02/06/2023,Mileage Payments,Tip Management Services,Staff Expenses Control,6.23,2024/004,157862
"Department for Business, Energy and Industrial Strategy",The Coal Authority,05/06/2023,Mileage Payments,PS&S - Management,Staff Expenses Control,8.1,2024/004,157862
"Department for Business, Energy and Industrial Strategy",The Coal Authority,06/06/2023,Mileage Payments,PS&S - General Claims,Staff Expenses Control,51.3,2024/004,157862
"Department for Business, Energy and Industrial Strategy",The Coal Authority,06/06/2023,Mileage Payments,PS&S - Management,Staff Expenses Control,27,2024/004,157862
"Department for Business, Energy and Industrial Strategy",The Coal Authority,07/06/2023,Mileage Payments,Tip Management Services,Staff Expenses Control,0.56,2024/004,157862
"Department for Business, Energy and Industrial Strategy",The Coal Authority,07/06/2023,Mileage Payments,Tip Management Services,Staff Expenses Control,0.56,2024/004,157862
"Department for Business, Energy and Industrial Strategy",The Coal Authority,08/06/2023,Mileage Payments,PS&S - General Claims,Staff Expenses Control,16.2,2024/004,157862
"Department for Business, Energy and Industrial Strategy",The Coal Authority,09/06/2023,Mileage Payments,PS&S - General Claims,Staff Expenses Control,9,2024/004,157862
"Department for Business, Energy and Industrial Strategy",The Coal Authority,15/06/2023,Mileage Payments,Corporate Programme Office,Staff Expenses Control,10,2024/004,157862
"Department for Business, Energy and Industrial Strategy",The Coal Authority,15/06/2023,Mileage Payments,NRW Metal Mine Programme,Staff Expenses Control,21.22,2024/004,157862
"Department for Business, Energy and Industrial Strategy",The Coal Authority,15/06/2023,Mileage Payments,NRW Metal Mine Programme,Staff Expenses Control,19.84,2024/004,157862
"Department for Business, Energy and Industrial Strategy",The Coal Authority,15/06/2023,Mileage Payments,NRW Metal Mine Programme,Staff Expenses Control,33.3,2024/004,157862
"Department for Business, Energy and Industrial Strategy",The Coal Authority,15/06/2023,Mileage Payments,PS&S - General Claims,Staff Expenses Control,9,2024/004,157862
"Department for Business, Energy and Industrial Strategy",The Coal Authority,15/06/2023,Mileage Payments,Tip Management Services,Staff Expenses Control,4.13,2024/004,157862
"Department for Business, Energy and Industrial Strategy",The Coal Authority,15/06/2023,Mileage Payments,Tip Management Services,Staff Expenses Control,3.93,2024/004,157862
"Department for Business, Energy and Industrial Strategy",The Coal Authority,16/06/2023,Mileage Payments,Heat & By-Product Innovation,Staff Expenses Control,41.85,2024/004,157862
"Department for Business, Energy and Industrial Strategy",The Coal Authority,16/06/2023,Mileage Payments,Tip Management Services,Staff Expenses Control,4.98,2024/004,157862
"Department for Business, Energy and Industrial Strategy",The Coal Authority,16/06/2023,Mileage Payments,Tip Management Services,Staff Expenses Control,4.94,2024/004,157862
"Department for Business, Energy and Industrial Strategy",The Coal Authority,19/06/2023,Mileage Payments,Community Response,Staff Expenses Control,20.7,2024/004,157862
"Department for Business, Energy and Industrial Strategy",The Coal Authority,20/06/2023,Mileage Payments,ENV - Technical,Staff Expenses Control,66.38,2024/004,157862
"Department for Business, Energy and Industrial Strategy",The Coal Authority,20/06/2023,Mileage Payments,Heat & By-Product Innovation,Staff Expenses Control,6.3,2024/004,157862
"Department for Business, Energy and Industrial Strategy",The Coal Authority,20/06/2023,Mileage Payments,Procurement,Staff Expenses Control,18.45,2024/004,157862
"Department for Business, Energy and Industrial Strategy",The Coal Authority,20/06/2023,Mileage Payments,Tip Management Services,Staff Expenses Control,7.08,2024/004,157862
"Department for Business, Energy and Industrial Strategy",The Coal Authority,20/06/2023,Mileage Payments,Tip Management Services,Staff Expenses Control,7.09,2024/004,157862
"Department for Business, Energy and Industrial Strategy",The Coal Authority,21/06/2023,Mileage Payments,ENV - Technical,Staff Expenses Control,66.41,2024/004,157862
"Department for Business, Energy and Industrial Strategy",The Coal Authority,21/06/2023,Mileage Payments,Heat & By-Product Innovation,Staff Expenses Control,6.3,2024/004,157862
"Department for Business, Energy and Industrial Strategy",The Coal Authority,21/06/2023,Mileage Payments,Innovation By-Product & Services Delivery,Staff Expenses Control,63.09,2024/004,157862
"Department for Business, Energy and Industrial Strategy",The Coal Authority,21/06/2023,Mileage Payments,Innovation By-Product & Services Delivery,Staff Expenses Control,62.82,2024/004,157862
"Department for Business, Energy and Industrial Strategy",The Coal Authority,21/06/2023,Mileage Payments,Procurement,Staff Expenses Control,18.45,2024/004,157862
"Department for Business, Energy and Industrial Strategy",The Coal Authority,22/06/2023,Mileage Payments,DEFRA LEP Funding,Staff Expenses Control,53.1,2024/004,157862
"Department for Business, Energy and Industrial Strategy",The Coal Authority,22/06/2023,Mileage Payments,DEFRA LEP Funding,Staff Expenses Control,53.1,2024/004,157862
"Department for Business, Energy and Industrial Strategy",The Coal Authority,22/06/2023,Mileage Payments,Heat & By-Product Innovation,Staff Expenses Control,31.5,2024/004,157862
"Department for Business, Energy and Industrial Strategy",The Coal Authority,22/06/2023,Mileage Payments,Innovation By-Product & Services Delivery,Staff Expenses Control,22.74,2024/004,157862
"Department for Business, Energy and Industrial Strategy",The Coal Authority,22/06/2023,Mileage Payments,Innovation By-Product & Services Delivery,Staff Expenses Control,22.74,2024/004,157862
"Department for Business, Energy and Industrial Strategy",The Coal Authority,22/06/2023,Mileage Payments,PS&S - General Claims,Staff Expenses Control,16.2,2024/004,157862
"Department for Business, Energy and Industrial Strategy",The Coal Authority,22/06/2023,Mileage Payments,Tip Management Services,Staff Expenses Control,5.66,2024/004,157862
"Department for Business, Energy and Industrial Strategy",The Coal Authority,22/06/2023,Mileage Payments,Tip Management Services,Staff Expenses Control,2.09,2024/004,157862
"Department for Business, Energy and Industrial Strategy",The Coal Authority,22/06/2023,Mileage Payments,Tip Management Services,Staff Expenses Control,6.16,2024/004,157862
"Department for Business, Energy and Industrial Strategy",The Coal Authority,23/06/2023,Mileage Payments,Heat & By-Product Innovation,Staff Expenses Control,121.5,2024/004,157862
"Department for Business, Energy and Industrial Strategy",The Coal Authority,23/06/2023,Mileage Payments,Heat & By-Product Innovation,Staff Expenses Control,12.6,2024/004,157862
"Department for Business, Energy and Industrial Strategy",The Coal Authority,23/06/2023,Mileage Payments,Tip Management Services,Staff Expenses Control,5.03,2024/004,157862
"Department for Business, Energy and Industrial Strategy",The Coal Authority,23/06/2023,Mileage Payments,Tip Management Services,Staff Expenses Control,5.04,2024/004,157862
"Department for Business, Energy and Industrial Strategy",The Coal Authority,26/06/2023,Mileage Payments,Tip Management Services,Staff Expenses Control,2.08,2024/004,157862
"Department for Business, Energy and Industrial Strategy",The Coal Authority,26/06/2023,Mileage Payments,Tip Management Services,Staff Expenses Control,2.1,2024/004,157862
"Department for Business, Energy and Industrial Strategy",The Coal Authority,27/06/2023,Mileage Payments,Tip Management Services,Staff Expenses Control,4.8,2024/004,157862
"Department for Business, Energy and Industrial Strategy",The Coal Authority,27/06/2023,Mileage Payments,Tip Management Services,Staff Expenses Control,4.8,2024/004,157862
"Department for Business, Energy and Industrial Strategy",The Coal Authority,01/06/2023,Mileage Payments,"Health, Safety & Wellbeing",Staff Expenses Control,2.97,2024/004,158576
"Department for Business, Energy and Industrial Strategy",The Coal Authority,01/06/2023,Mileage Payments,"Health, Safety & Wellbeing",Staff Expenses Control,2.97,2024/004,158576
"Department for Business, Energy and Industrial Strategy",The Coal Authority,01/06/2023,Mileage Payments,"Health, Safety & Wellbeing",Staff Expenses Control,1.71,2024/004,158576
"Department for Business, Energy and Industrial Strategy",The Coal Authority,01/06/2023,Mileage Payments,"Health, Safety & Wellbeing",Staff Expenses Control,1.71,2024/004,158576
"Department for Business, Energy and Industrial Strategy",The Coal Authority,19/06/2023,Mileage Payments,Innovation By-Product & Services Delivery,Staff Expenses Control,43.48,2024/004,158576
"Department for Business, Energy and Industrial Strategy",The Coal Authority,19/06/2023,Mileage Payments,Innovation By-Product & Services Delivery,Staff Expenses Control,44.42,2024/004,158576
"Department for Business, Energy and Industrial Strategy",The Coal Authority,19/06/2023,Mileage Payments,PS&S - General Claims,Staff Expenses Control,2.07,2024/004,158576
"Department for Business, Energy and Industrial Strategy",The Coal Authority,19/06/2023,Mileage Payments,PS&S - General Claims,Staff Expenses Control,2.07,2024/004,158576
"Department for Business, Energy and Industrial Strategy",The Coal Authority,20/06/2023,Mileage Payments,PS&S - General Claims,Staff Expenses Control,70.2,2024/004,158576
"Department for Business, Energy and Industrial Strategy",The Coal Authority,21/06/2023,Mileage Payments,PS&S - General Claims,Staff Expenses Control,70.2,2024/004,158576
"Department for Business, Energy and Industrial Strategy",The Coal Authority,23/06/2023,Mileage Payments,"Health, Safety & Wellbeing",Staff Expenses Control,30.51,2024/004,158576
"Department for Business, Energy and Industrial Strategy",The Coal Authority,23/06/2023,Mileage Payments,"Health, Safety & Wellbeing",Staff Expenses Control,30.51,2024/004,158576
"Department for Business, Energy and Industrial Strategy",The Coal Authority,23/06/2023,Mileage Payments,PS&S - General Claims,Staff Expenses Control,13.5,2024/004,158576
"Department for Business, Energy and Industrial Strategy",The Coal Authority,26/06/2023,Mileage Payments,PS&S - General Claims,Staff Expenses Control,47.25,2024/004,158576
"Department for Business, Energy and Industrial Strategy",The Coal Authority,26/06/2023,Mileage Payments,PS&S - General Claims,Staff Expenses Control,3.6,2024/004,158576
"Department for Business, Energy and Industrial Strategy",The Coal Authority,26/06/2023,Mileage Payments,PS&S - General Claims,Staff Expenses Control,55.8,2024/004,158576
"Department for Business, Energy and Industrial Strategy",The Coal Authority,28/06/2023,Mileage Payments,Innovation By-Product & Services Delivery,Staff Expenses Control,38.25,2024/004,158576
"Department for Business, Energy and Industrial Strategy",The Coal Authority,28/06/2023,Mileage Payments,Innovation By-Product & Services Delivery,Staff Expenses Control,17.1,2024/004,158576
"Department for Business, Energy and Industrial Strategy",The Coal Authority,28/06/2023,Mileage Payments,Innovation By-Product & Services Delivery,Staff Expenses Control,26.05,2024/004,158576
"Department for Business, Energy and Industrial Strategy",The Coal Authority,28/06/2023,Mileage Payments,Innovation By-Product & Services Delivery,Staff Expenses Control,20.16,2024/004,158576
"Department for Business, Energy and Industrial Strategy",The Coal Authority,28/06/2023,Mileage Payments,Innovation By-Product & Services Delivery,Staff Expenses Control,22.74,2024/004,158576
"Department for Business, Energy and Industrial Strategy",The Coal Authority,28/06/2023,Mileage Payments,Innovation By-Product & Services Delivery,Staff Expenses Control,4.04,2024/004,158576
"Department for Business, Energy and Industrial Strategy",The Coal Authority,28/06/2023,Mileage Payments,PS&S - General Claims,Staff Expenses Control,2.07,2024/004,158576
"Department for Business, Energy and Industrial Strategy",The Coal Authority,28/06/2023,Mileage Payments,PS&S - General Claims,Staff Expenses Control,2.07,2024/004,158576
"Department for Business, Energy and Industrial Strategy",The Coal Authority,29/06/2023,Mileage Payments,Innovation By-Product & Services Delivery,Staff Expenses Control,56.7,2024/004,158576
"Department for Business, Energy and Industrial Strategy",The Coal Authority,29/06/2023,Mileage Payments,Innovation By-Product & Services Delivery,Staff Expenses Control,17.73,2024/004,158576
"Department for Business, Energy and Industrial Strategy",The Coal Authority,29/06/2023,Mileage Payments,Innovation By-Product & Services Delivery,Staff Expenses Control,6.52,2024/004,158576
"Department for Business, Energy and Industrial Strategy",The Coal Authority,29/06/2023,Mileage Payments,Innovation By-Product & Services Delivery,Staff Expenses Control,63,2024/004,158576
"Department for Business, Energy and Industrial Strategy",The Coal Authority,29/06/2023,Mileage Payments,Innovation By-Product & Services Delivery,Staff Expenses Control,7.26,2024/004,158576
"Department for Business, Energy and Industrial Strategy",The Coal Authority,29/06/2023,Mileage Payments,Innovation By-Product & Services Delivery,Staff Expenses Control,8.59,2024/004,158576
"Department for Business, Energy and Industrial Strategy",The Coal Authority,29/06/2023,Mileage Payments,Innovation By-Product & Services Delivery,Staff Expenses Control,9.02,2024/004,158576
"Department for Business, Energy and Industrial Strategy",The Coal Authority,29/06/2023,Mileage Payments,PS&S - General Claims,Staff Expenses Control,28.01,2024/004,158576
"Department for Business, Energy and Industrial Strategy",The Coal Authority,29/06/2023,Mileage Payments,PS&S - General Claims,Staff Expenses Control,28.02,2024/004,158576
"Department for Business, Energy and Industrial Strategy",The Coal Authority,03/07/2023,Mileage Payments,Heat & By-Product Innovation,Staff Expenses Control,120.6,2024/004,158576
"Department for Business, Energy and Industrial Strategy",The Coal Authority,05/07/2023,Mileage Payments,Innovation By-Product & Services Delivery,Staff Expenses Control,20.24,2024/004,158576
"Department for Business, Energy and Industrial Strategy",The Coal Authority,05/07/2023,Mileage Payments,Innovation By-Product & Services Delivery,Staff Expenses Control,21.07,2024/004,158576
"Department for Business, Energy and Industrial Strategy",The Coal Authority,05/07/2023,Mileage Payments,Innovation By-Product & Services Delivery,Staff Expenses Control,44.67,2024/004,158576
"Department for Business, Energy and Industrial Strategy",The Coal Authority,05/07/2023,Mileage Payments,Innovation By-Product & Services Delivery,Staff Expenses Control,44.68,2024/004,158576
"Department for Business, Energy and Industrial Strategy",The Coal Authority,05/07/2023,Mileage Payments,Innovation By-Product & Services Delivery,Staff Expenses Control,10.2,2024/004,158576
"Department for Business, Energy and Industrial Strategy",The Coal Authority,05/07/2023,Mileage Payments,Innovation By-Product & Services Delivery,Staff Expenses Control,29.43,2024/004,158576
"Department for Business, Energy and Industrial Strategy",The Coal Authority,05/07/2023,Mileage Payments,Innovation By-Product & Services Delivery,Staff Expenses Control,4.4,2024/004,158576
"Department for Business, Energy and Industrial Strategy",The Coal Authority,05/07/2023,Mileage Payments,Innovation By-Product & Services Delivery,Staff Expenses Control,4.19,2024/004,158576
"Department for Business, Energy and Industrial Strategy",The Coal Authority,05/07/2023,Mileage Payments,PS&S - General Claims,Staff Expenses Control,24.71,2024/004,158576
"Department for Business, Energy and Industrial Strategy",The Coal Authority,05/07/2023,Mileage Payments,PS&S - General Claims,Staff Expenses Control,1.12,2024/004,158576
"Department for Business, Energy and Industrial Strategy",The Coal Authority,05/07/2023,Mileage Payments,PS&S - General Claims,Staff Expenses Control,23.24,2024/004,158576
"Department for Business, Energy and Industrial Strategy",The Coal Authority,06/07/2023,Mileage Payments,Innovation By-Product & Services Delivery,Staff Expenses Control,9.02,2024/004,158576
"Department for Business, Energy and Industrial Strategy",The Coal Authority,06/07/2023,Mileage Payments,Innovation By-Product & Services Delivery,Staff Expenses Control,9.01,2024/004,158576
"Department for Business, Energy and Industrial Strategy",The Coal Authority,06/07/2023,Mileage Payments,Innovation By-Product & Services Delivery,Staff Expenses Control,60.3,2024/004,158576
"Department for Business, Energy and Industrial Strategy",The Coal Authority,06/07/2023,Mileage Payments,Innovation By-Product & Services Delivery,Staff Expenses Control,60.3,2024/004,158576
"Department for Business, Energy and Industrial Strategy",The Coal Authority,06/07/2023,Mileage Payments,PS&S - General Claims,Staff Expenses Control,7.38,2024/004,158576
"Department for Business, Energy and Industrial Strategy",The Coal Authority,06/07/2023,Mileage Payments,PS&S - General Claims,Staff Expenses Control,7.31,2024/004,158576
"Department for Business, Energy and Industrial Strategy",The Coal Authority,07/07/2023,Mileage Payments,PS&S - General Claims,Staff Expenses Control,21.92,2024/004,158576
"Department for Business, Energy and Industrial Strategy",The Coal Authority,07/07/2023,Mileage Payments,PS&S - General Claims,Staff Expenses Control,21.9,2024/004,158576
"Department for Business, Energy and Industrial Strategy",The Coal Authority,05/12/2022,Mileage Payments,PS&S - General Claims,Staff Expenses Control,7.8,2024/004,158840
"Department for Business, Energy and Industrial Strategy",The Coal Authority,05/12/2022,Mileage Payments,PS&S - General Claims,Staff Expenses Control,7.53,2024/004,158840
"Department for Business, Energy and Industrial Strategy",The Coal Authority,06/12/2022,Mileage Payments,PS&S - General Claims,Staff Expenses Control,56.55,2024/004,158840
"Department for Business, Energy and Industrial Strategy",The Coal Authority,07/12/2022,Mileage Payments,PS&S - General Claims,Staff Expenses Control,0.29,2024/004,158840
"Department for Business, Energy and Industrial Strategy",The Coal Authority,07/12/2022,Mileage Payments,PS&S - General Claims,Staff Expenses Control,52.25,2024/004,158840
"Department for Business, Energy and Industrial Strategy",The Coal Authority,07/12/2022,Mileage Payments,PS&S - General Claims,Staff Expenses Control,7.79,2024/004,158840
"Department for Business, Energy and Industrial Strategy",The Coal Authority,08/12/2022,Mileage Payments,PS&S - General Claims,Staff Expenses Control,0.78,2024/004,158840
"Department for Business, Energy and Industrial Strategy",The Coal Authority,08/12/2022,Mileage Payments,PS&S - General Claims,Staff Expenses Control,32.95,2024/004,158840
"Department for Business, Energy and Industrial Strategy",The Coal Authority,08/12/2022,Mileage Payments,PS&S - General Claims,Staff Expenses Control,7.8,2024/004,158840
"Department for Business, Energy and Industrial Strategy",The Coal Authority,08/12/2022,Mileage Payments,PS&S - General Claims,Staff Expenses Control,32.29,2024/004,158840
"Department for Business, Energy and Industrial Strategy",The Coal Authority,13/12/2022,Mileage Payments,PS&S - General Claims,Staff Expenses Control,7.53,2024/004,158840
"Department for Business, Energy and Industrial Strategy",The Coal Authority,13/12/2022,Mileage Payments,PS&S - General Claims,Staff Expenses Control,18.12,2024/004,158840
"Department for Business, Energy and Industrial Strategy",The Coal Authority,13/12/2022,Mileage Payments,PS&S - General Claims,Staff Expenses Control,10.63,2024/004,158840
"Department for Business, Energy and Industrial Strategy",The Coal Authority,19/12/2022,Mileage Payments,PS&S - General Claims,Staff Expenses Control,7.53,2024/004,158840
"Department for Business, Energy and Industrial Strategy",The Coal Authority,19/12/2022,Mileage Payments,PS&S - General Claims,Staff Expenses Control,7.8,2024/004,158840
"Department for Business, Energy and Industrial Strategy",The Coal Authority,20/12/2022,Mileage Payments,PS&S - General Claims,Staff Expenses Control,7.54,2024/004,158840
"Department for Business, Energy and Industrial Strategy",The Coal Authority,20/12/2022,Mileage Payments,PS&S - General Claims,Staff Expenses Control,7.8,2024/004,158840
"Department for Business, Energy and Industrial Strategy",The Coal Authority,22/12/2022,Mileage Payments,PS&S - General Claims,Staff Expenses Control,21.64,2024/004,158840
"Department for Business, Energy and Industrial Strategy",The Coal Authority,22/12/2022,Mileage Payments,PS&S - General Claims,Staff Expenses Control,21.78,2024/004,158840
"Department for Business, Energy and Industrial Strategy",The Coal Authority,28/12/2022,Mileage Payments,PS&S - General Claims,Staff Expenses Control,4.37,2024/004,158840
"Department for Business, Energy and Industrial Strategy",The Coal Authority,28/12/2022,Mileage Payments,PS&S - General Claims,Staff Expenses Control,4.5,2024/004,158840
"Department for Business, Energy and Industrial Strategy",The Coal Authority,30/12/2022,Mileage Payments,PS&S - General Claims,Staff Expenses Control,7.83,2024/004,158840
"Department for Business, Energy and Industrial Strategy",The Coal Authority,30/12/2022,Mileage Payments,PS&S - General Claims,Staff Expenses Control,8.02,2024/004,158840
"Department for Business, Energy and Industrial Strategy",The Coal Authority,04/01/2023,Mileage Payments,PS&S - General Claims,Staff Expenses Control,7.54,2024/004,158840
"Department for Business, Energy and Industrial Strategy",The Coal Authority,04/01/2023,Mileage Payments,PS&S - General Claims,Staff Expenses Control,7.8,2024/004,158840
"Department for Business, Energy and Industrial Strategy",The Coal Authority,05/01/2023,Mileage Payments,PS&S - General Claims,Staff Expenses Control,7.53,2024/004,158840
"Department for Business, Energy and Industrial Strategy",The Coal Authority,05/01/2023,Mileage Payments,PS&S - General Claims,Staff Expenses Control,7.8,2024/004,158840
"Department for Business, Energy and Industrial Strategy",The Coal Authority,09/01/2023,Mileage Payments,PS&S - General Claims,Staff Expenses Control,7.53,2024/004,158840
"Department for Business, Energy and Industrial Strategy",The Coal Authority,09/01/2023,Mileage Payments,PS&S - General Claims,Staff Expenses Control,35.55,2024/004,158840
"Department for Business, Energy and Industrial Strategy",The Coal Authority,09/01/2023,Mileage Payments,PS&S - General Claims,Staff Expenses Control,35.11,2024/004,158840
"Department for Business, Energy and Industrial Strategy",The Coal Authority,10/01/2023,Mileage Payments,PS&S - General Claims,Staff Expenses Control,7.79,2024/004,158840
"Department for Business, Energy and Industrial Strategy",The Coal Authority,10/01/2023,Mileage Payments,PS&S - General Claims,Staff Expenses Control,7.54,2024/004,158840
"Department for Business, Energy and Industrial Strategy",The Coal Authority,11/01/2023,Mileage Payments,PS&S - General Claims,Staff Expenses Control,7.54,2024/004,158840
"Department for Business, Energy and Industrial Strategy",The Coal Authority,11/01/2023,Mileage Payments,PS&S - General Claims,Staff Expenses Control,7.8,2024/004,158840
"Department for Business, Energy and Industrial Strategy",The Coal Authority,12/01/2023,Mileage Payments,PS&S - General Claims,Staff Expenses Control,7.53,2024/004,158840
"Department for Business, Energy and Industrial Strategy",The Coal Authority,12/01/2023,Mileage Payments,PS&S - General Claims,Staff Expenses Control,0.81,2024/004,158840
"Department for Business, Energy and Industrial Strategy",The Coal Authority,12/01/2023,Mileage Payments,PS&S - General Claims,Staff Expenses Control,8.03,2024/004,158840
"Department for Business, Energy and Industrial Strategy",The Coal Authority,13/01/2023,Mileage Payments,PS&S - General Claims,Staff Expenses Control,7.53,2024/004,158840
"Department for Business, Energy and Industrial Strategy",The Coal Authority,13/01/2023,Mileage Payments,PS&S - General Claims,Staff Expenses Control,7.8,2024/004,158840
"Department for Business, Energy and Industrial Strategy",The Coal Authority,16/01/2023,Mileage Payments,PS&S - General Claims,Staff Expenses Control,7.53,2024/004,158840
"Department for Business, Energy and Industrial Strategy",The Coal Authority,16/01/2023,Mileage Payments,PS&S - General Claims,Staff Expenses Control,7.8,2024/004,158840
"Department for Business, Energy and Industrial Strategy",The Coal Authority,17/01/2023,Mileage Payments,PS&S - General Claims,Staff Expenses Control,7.79,2024/004,158840
"Department for Business, Energy and Industrial Strategy",The Coal Authority,17/01/2023,Mileage Payments,PS&S - General Claims,Staff Expenses Control,7.54,2024/004,158840
"Department for Business, Energy and Industrial Strategy",The Coal Authority,18/01/2023,Mileage Payments,PS&S - General Claims,Staff Expenses Control,21.94,2024/004,158840
"Department for Business, Energy and Industrial Strategy",The Coal Authority,18/01/2023,Mileage Payments,PS&S - General Claims,Staff Expenses Control,8.65,2024/004,158840
"Department for Business, Energy and Industrial Strategy",The Coal Authority,18/01/2023,Mileage Payments,PS&S - General Claims,Staff Expenses Control,7.79,2024/004,158840
"Department for Business, Energy and Industrial Strategy",The Coal Authority,19/01/2023,Mileage Payments,PS&S - General Claims,Staff Expenses Control,7.54,2024/004,158840
"Department for Business, Energy and Industrial Strategy",The Coal Authority,19/01/2023,Mileage Payments,PS&S - General Claims,Staff Expenses Control,7.8,2024/004,158840
"Department for Business, Energy and Industrial Strategy",The Coal Authority,20/01/2023,Mileage Payments,PS&S - General Claims,Staff Expenses Control,7.53,2024/004,158840
"Department for Business, Energy and Industrial Strategy",The Coal Authority,20/01/2023,Mileage Payments,PS&S - General Claims,Staff Expenses Control,7.8,2024/004,158840
"Department for Business, Energy and Industrial Strategy",The Coal Authority,23/01/2023,Mileage Payments,PS&S - General Claims,Staff Expenses Control,7.53,2024/004,158840
"Department for Business, Energy and Industrial Strategy",The Coal Authority,23/01/2023,Mileage Payments,PS&S - General Claims,Staff Expenses Control,7.8,2024/004,158840
"Department for Business, Energy and Industrial Strategy",The Coal Authority,25/01/2023,Mileage Payments,PS&S - General Claims,Staff Expenses Control,28.93,2024/004,158840
"Department for Business, Energy and Industrial Strategy",The Coal Authority,25/01/2023,Mileage Payments,PS&S - General Claims,Staff Expenses Control,29.15,2024/004,158840
"Department for Business, Energy and Industrial Strategy",The Coal Authority,26/01/2023,Mileage Payments,PS&S - General Claims,Staff Expenses Control,7.53,2024/004,158840
"Department for Business, Energy and Industrial Strategy",The Coal Authority,26/01/2023,Mileage Payments,PS&S - General Claims,Staff Expenses Control,7.8,2024/004,158840
"Department for Business, Energy and Industrial Strategy",The Coal Authority,27/01/2023,Mileage Payments,PS&S - General Claims,Staff Expenses Control,7.53,2024/004,158840
"Department for Business, Energy and Industrial Strategy",The Coal Authority,27/01/2023,Mileage Payments,PS&S - General Claims,Staff Expenses Control,7.8,2024/004,158840
"Department for Business, Energy and Industrial Strategy",The Coal Authority,31/01/2023,Mileage Payments,PS&S - General Claims,Staff Expenses Control,7.8,2024/004,158840
"Department for Business, Energy and Industrial Strategy",The Coal Authority,31/01/2023,Mileage Payments,PS&S - General Claims,Staff Expenses Control,7.54,2024/004,158840
"Department for Business, Energy and Industrial Strategy",The Coal Authority,01/02/2023,Mileage Payments,PS&S - General Claims,Staff Expenses Control,7.53,2024/004,158840
"Department for Business, Energy and Industrial Strategy",The Coal Authority,01/02/2023,Mileage Payments,PS&S - General Claims,Staff Expenses Control,7.8,2024/004,158840
"Department for Business, Energy and Industrial Strategy",The Coal Authority,02/02/2023,Mileage Payments,PS&S - General Claims,Staff Expenses Control,8.03,2024/004,158840
"Department for Business, Energy and Industrial Strategy",The Coal Authority,02/02/2023,Mileage Payments,PS&S - General Claims,Staff Expenses Control,7.83,2024/004,158840
"Department for Business, Energy and Industrial Strategy",The Coal Authority,03/02/2023,Mileage Payments,PS&S - General Claims,Staff Expenses Control,7.53,2024/004,158840
"Department for Business, Energy and Industrial Strategy",The Coal Authority,03/02/2023,Mileage Payments,PS&S - General Claims,Staff Expenses Control,7.8,2024/004,158840
"Department for Business, Energy and Industrial Strategy",The Coal Authority,07/02/2023,Mileage Payments,PS&S - General Claims,Staff Expenses Control,7.53,2024/004,158840
"Department for Business, Energy and Industrial Strategy",The Coal Authority,07/02/2023,Mileage Payments,PS&S - General Claims,Staff Expenses Control,7.8,2024/004,158840
"Department for Business, Energy and Industrial Strategy",The Coal Authority,22/02/2023,Mileage Payments,PS&S - General Claims,Staff Expenses Control,7.8,2024/004,158840
"Department for Business, Energy and Industrial Strategy",The Coal Authority,22/02/2023,Mileage Payments,PS&S - General Claims,Staff Expenses Control,7.53,2024/004,158840
"Department for Business, Energy and Industrial Strategy",The Coal Authority,23/02/2023,Mileage Payments,PS&S - General Claims,Staff Expenses Control,7.53,2024/004,158840
"Department for Business, Energy and Industrial Strategy",The Coal Authority,23/02/2023,Mileage Payments,PS&S - General Claims,Staff Expenses Control,7.8,2024/004,158840
"Department for Business, Energy and Industrial Strategy",The Coal Authority,24/02/2023,Mileage Payments,PS&S - General Claims,Staff Expenses Control,3.62,2024/004,158840
"Department for Business, Energy and Industrial Strategy",The Coal Authority,24/02/2023,Mileage Payments,PS&S - General Claims,Staff Expenses Control,7.54,2024/004,158840
"Department for Business, Energy and Industrial Strategy",The Coal Authority,24/02/2023,Mileage Payments,PS&S - General Claims,Staff Expenses Control,7.8,2024/004,158840
"Department for Business, Energy and Industrial Strategy",The Coal Authority,24/02/2023,Mileage Payments,PS&S - General Claims,Staff Expenses Control,3.24,2024/004,158840
"Department for Business, Energy and Industrial Strategy",The Coal Authority,27/02/2023,Mileage Payments,PS&S - General Claims,Staff Expenses Control,7.53,2024/004,158840
"Department for Business, Energy and Industrial Strategy",The Coal Authority,27/02/2023,Mileage Payments,PS&S - General Claims,Staff Expenses Control,7.8,2024/004,158840
"Department for Business, Energy and Industrial Strategy",The Coal Authority,28/02/2023,Mileage Payments,PS&S - General Claims,Staff Expenses Control,7.53,2024/004,158840
"Department for Business, Energy and Industrial Strategy",The Coal Authority,28/02/2023,Mileage Payments,PS&S - General Claims,Staff Expenses Control,7.8,2024/004,158840
"Department for Business, Energy and Industrial Strategy",The Coal Authority,02/03/2023,Mileage Payments,PS&S - General Claims,Staff Expenses Control,7.54,2024/004,158840
"Department for Business, Energy and Industrial Strategy",The Coal Authority,02/03/2023,Mileage Payments,PS&S - General Claims,Staff Expenses Control,7.8,2024/004,158840
"Department for Business, Energy and Industrial Strategy",The Coal Authority,06/03/2023,Mileage Payments,PS&S - General Claims,Staff Expenses Control,7.53,2024/004,158840
"Department for Business, Energy and Industrial Strategy",The Coal Authority,06/03/2023,Mileage Payments,PS&S - General Claims,Staff Expenses Control,7.8,2024/004,158840
"Department for Business, Energy and Industrial Strategy",The Coal Authority,07/03/2023,Mileage Payments,PS&S - General Claims,Staff Expenses Control,12.75,2024/004,158840
"Department for Business, Energy and Industrial Strategy",The Coal Authority,08/03/2023,Mileage Payments,PS&S - General Claims,Staff Expenses Control,13.12,2024/004,158840
"Department for Business, Energy and Industrial Strategy",The Coal Authority,13/03/2023,Mileage Payments,PS&S - General Claims,Staff Expenses Control,7.54,2024/004,158840
"Department for Business, Energy and Industrial Strategy",The Coal Authority,13/03/2023,Mileage Payments,PS&S - General Claims,Staff Expenses Control,7.8,2024/004,158840
"Department for Business, Energy and Industrial Strategy",The Coal Authority,14/03/2023,Mileage Payments,PS&S - General Claims,Staff Expenses Control,7.53,2024/004,158840
"Department for Business, Energy and Industrial Strategy",The Coal Authority,14/03/2023,Mileage Payments,PS&S - General Claims,Staff Expenses Control,7.8,2024/004,158840
"Department for Business, Energy and Industrial Strategy",The Coal Authority,16/03/2023,Mileage Payments,PS&S - General Claims,Staff Expenses Control,7.53,2024/004,158840
"Department for Business, Energy and Industrial Strategy",The Coal Authority,16/03/2023,Mileage Payments,PS&S - General Claims,Staff Expenses Control,7.8,2024/004,158840
"Department for Business, Energy and Industrial Strategy",The Coal Authority,17/03/2023,Mileage Payments,PS&S - General Claims,Staff Expenses Control,2.76,2024/004,158840
"Department for Business, Energy and Industrial Strategy",The Coal Authority,17/03/2023,Mileage Payments,PS&S - General Claims,Staff Expenses Control,2.76,2024/004,158840
"Department for Business, Energy and Industrial Strategy",The Coal Authority,17/03/2023,Mileage Payments,PS&S - General Claims,Staff Expenses Control,2.75,2024/004,158840
"Department for Business, Energy and Industrial Strategy",The Coal Authority,20/03/2023,Mileage Payments,PS&S - General Claims,Staff Expenses Control,7.53,2024/004,158840
"Department for Business, Energy and Industrial Strategy",The Coal Authority,20/03/2023,Mileage Payments,PS&S - General Claims,Staff Expenses Control,7.8,2024/004,158840
"Department for Business, Energy and Industrial Strategy",The Coal Authority,22/03/2023,Mileage Payments,PS&S - General Claims,Staff Expenses Control,34.1,2024/004,158840
"Department for Business, Energy and Industrial Strategy",The Coal Authority,22/03/2023,Mileage Payments,PS&S - General Claims,Staff Expenses Control,15.83,2024/004,158840
"Department for Business, Energy and Industrial Strategy",The Coal Authority,22/03/2023,Mileage Payments,PS&S - General Claims,Staff Expenses Control,20.43,2024/004,158840
"Department for Business, Energy and Industrial Strategy",The Coal Authority,24/03/2023,Mileage Payments,PS&S - General Claims,Staff Expenses Control,7.53,2024/004,158840
"Department for Business, Energy and Industrial Strategy",The Coal Authority,24/03/2023,Mileage Payments,PS&S - General Claims,Staff Expenses Control,7.8,2024/004,158840
"Department for Business, Energy and Industrial Strategy",The Coal Authority,29/03/2023,Mileage Payments,PS&S - General Claims,Staff Expenses Control,7.8,2024/004,158840
"Department for Business, Energy and Industrial Strategy",The Coal Authority,29/03/2023,Mileage Payments,PS&S - General Claims,Staff Expenses Control,7.53,2024/004,158840
"Department for Business, Energy and Industrial Strategy",The Coal Authority,31/03/2023,Mileage Payments,PS&S - General Claims,Staff Expenses Control,7.54,2024/004,158840
"Department for Business, Energy and Industrial Strategy",The Coal Authority,31/03/2023,Mileage Payments,PS&S - General Claims,Staff Expenses Control,7.79,2024/004,158840
"Department for Business, Energy and Industrial Strategy",The Coal Authority,31/03/2023,Mileage Payments,PS&S - General Claims,Staff Expenses Control,1.76,2024/004,158840
"Department for Business, Energy and Industrial Strategy",The Coal Authority,31/03/2023,Mileage Payments,PS&S - General Claims,Staff Expenses Control,1.75,2024/004,158840
"Department for Business, Energy and Industrial Strategy",The Coal Authority,04/04/2023,Mileage Payments,PS&S - General Claims,Staff Expenses Control,7.8,2024/004,158840
"Department for Business, Energy and Industrial Strategy",The Coal Authority,04/04/2023,Mileage Payments,PS&S - General Claims,Staff Expenses Control,7.53,2024/004,158840
"Department for Business, Energy and Industrial Strategy",The Coal Authority,06/04/2023,Mileage Payments,PS&S - General Claims,Staff Expenses Control,34.28,2024/004,158840
"Department for Business, Energy and Industrial Strategy",The Coal Authority,06/04/2023,Mileage Payments,PS&S - General Claims,Staff Expenses Control,0.65,2024/004,158840
"Department for Business, Energy and Industrial Strategy",The Coal Authority,06/04/2023,Mileage Payments,PS&S - General Claims,Staff Expenses Control,35.12,2024/004,158840
"Department for Business, Energy and Industrial Strategy",The Coal Authority,11/04/2023,Mileage Payments,PS&S - General Claims,Staff Expenses Control,7.53,2024/004,158840
"Department for Business, Energy and Industrial Strategy",The Coal Authority,11/04/2023,Mileage Payments,PS&S - General Claims,Staff Expenses Control,7.8,2024/004,158840
"Department for Business, Energy and Industrial Strategy",The Coal Authority,12/04/2023,Mileage Payments,PS&S - General Claims,Staff Expenses Control,2.46,2024/004,158840
"Department for Business, Energy and Industrial Strategy",The Coal Authority,12/04/2023,Mileage Payments,PS&S - General Claims,Staff Expenses Control,2.46,2024/004,158840
"Department for Business, Energy and Industrial Strategy",The Coal Authority,13/04/2023,Mileage Payments,PS&S - General Claims,Staff Expenses Control,7.54,2024/004,158840
"Department for Business, Energy and Industrial Strategy",The Coal Authority,13/04/2023,Mileage Payments,PS&S - General Claims,Staff Expenses Control,7.8,2024/004,158840
"Department for Business, Energy and Industrial Strategy",The Coal Authority,17/04/2023,Mileage Payments,PS&S - General Claims,Staff Expenses Control,7.53,2024/004,158840
"Department for Business, Energy and Industrial Strategy",The Coal Authority,17/04/2023,Mileage Payments,PS&S - General Claims,Staff Expenses Control,7.8,2024/004,158840
"Department for Business, Energy and Industrial Strategy",The Coal Authority,19/04/2023,Mileage Payments,PS&S - General Claims,Staff Expenses Control,7.53,2024/004,158840
"Department for Business, Energy and Industrial Strategy",The Coal Authority,19/04/2023,Mileage Payments,PS&S - General Claims,Staff Expenses Control,0.81,2024/004,158840
"Department for Business, Energy and Industrial Strategy",The Coal Authority,19/04/2023,Mileage Payments,PS&S - General Claims,Staff Expenses Control,0.82,2024/004,158840
"Department for Business, Energy and Industrial Strategy",The Coal Authority,20/04/2023,Mileage Payments,PS&S - General Claims,Staff Expenses Control,6.01,2024/004,158840
"Department for Business, Energy and Industrial Strategy",The Coal Authority,20/04/2023,Mileage Payments,PS&S - General Claims,Staff Expenses Control,4.24,2024/004,158840
"Department for Business, Energy and Industrial Strategy",The Coal Authority,25/04/2023,Mileage Payments,People & Organisational Development,Staff Expenses Control,4.5,2024/004,158840
"Department for Business, Energy and Industrial Strategy",The Coal Authority,25/04/2023,Mileage Payments,People & Organisational Development,Staff Expenses Control,5.85,2024/004,158840
"Department for Business, Energy and Industrial Strategy",The Coal Authority,04/05/2023,Mileage Payments,PS&S - General Claims,Staff Expenses Control,7.53,2024/004,158840
"Department for Business, Energy and Industrial Strategy",The Coal Authority,04/05/2023,Mileage Payments,PS&S - General Claims,Staff Expenses Control,7.8,2024/004,158840
"Department for Business, Energy and Industrial Strategy",The Coal Authority,04/05/2023,Mileage Payments,PS&S - General Claims,Staff Expenses Control,7.53,2024/004,158840
"Department for Business, Energy and Industrial Strategy",The Coal Authority,04/05/2023,Mileage Payments,PS&S - General Claims,Staff Expenses Control,0.81,2024/004,158840
"Department for Business, Energy and Industrial Strategy",The Coal Authority,04/05/2023,Mileage Payments,People & Organisational Development,Staff Expenses Control,4.5,2024/004,158840
"Department for Business, Energy and Industrial Strategy",The Coal Authority,05/05/2023,Mileage Payments,People & Organisational Development,Staff Expenses Control,4.5,2024/004,158840
"Department for Business, Energy and Industrial Strategy",The Coal Authority,16/05/2023,Mileage Payments,PS&S - General Claims,Staff Expenses Control,1.5,2024/004,158840
"Department for Business, Energy and Industrial Strategy",The Coal Authority,16/05/2023,Mileage Payments,PS&S - General Claims,Staff Expenses Control,7.8,2024/004,158840
"Department for Business, Energy and Industrial Strategy",The Coal Authority,16/05/2023,Mileage Payments,PS&S - General Claims,Staff Expenses Control,7.93,2024/004,158840
"Department for Business, Energy and Industrial Strategy",The Coal Authority,17/05/2023,Mileage Payments,PS&S - General Claims,Staff Expenses Control,34.95,2024/004,158840
"Department for Business, Energy and Industrial Strategy",The Coal Authority,17/05/2023,Mileage Payments,PS&S - General Claims,Staff Expenses Control,13.43,2024/004,158840
"Department for Business, Energy and Industrial Strategy",The Coal Authority,17/05/2023,Mileage Payments,PS&S - General Claims,Staff Expenses Control,35.23,2024/004,158840
"Department for Business, Energy and Industrial Strategy",The Coal Authority,18/05/2023,Mileage Payments,PS&S - General Claims,Staff Expenses Control,5.22,2024/004,158840
"Department for Business, Energy and Industrial Strategy",The Coal Authority,18/05/2023,Mileage Payments,PS&S - General Claims,Staff Expenses Control,5.01,2024/004,158840
"Department for Business, Energy and Industrial Strategy",The Coal Authority,23/05/2023,Mileage Payments,PS&S - General Claims,Staff Expenses Control,3.19,2024/004,158840
"Department for Business, Energy and Industrial Strategy",The Coal Authority,23/05/2023,Mileage Payments,PS&S - General Claims,Staff Expenses Control,1.42,2024/004,158840
"Department for Business, Energy and Industrial Strategy",The Coal Authority,23/05/2023,Mileage Payments,PS&S - General Claims,Staff Expenses Control,9.01,2024/004,158840
"Department for Business, Energy and Industrial Strategy",The Coal Authority,23/05/2023,Mileage Payments,PS&S - General Claims,Staff Expenses Control,6,2024/004,158840
"Department for Business, Energy and Industrial Strategy",The Coal Authority,01/06/2023,Mileage Payments,PS&S - General Claims,Staff Expenses Control,0.46,2024/004,158840
"Department for Business, Energy and Industrial Strategy",The Coal Authority,01/06/2023,Mileage Payments,PS&S - General Claims,Staff Expenses Control,0.46,2024/004,158840
"Department for Business, Energy and Industrial Strategy",The Coal Authority,05/06/2023,Mileage Payments,PS&S - General Claims,Staff Expenses Control,4.25,2024/004,158840
"Department for Business, Energy and Industrial Strategy",The Coal Authority,05/06/2023,Mileage Payments,PS&S - General Claims,Staff Expenses Control,6,2024/004,158840
"Department for Business, Energy and Industrial Strategy",The Coal Authority,06/06/2023,Mileage Payments,PS&S - General Claims,Staff Expenses Control,0.63,2024/004,158840
"Department for Business, Energy and Industrial Strategy",The Coal Authority,06/06/2023,Mileage Payments,PS&S - General Claims,Staff Expenses Control,6.03,2024/004,158840
"Department for Business, Energy and Industrial Strategy",The Coal Authority,06/06/2023,Mileage Payments,PS&S - General Claims,Staff Expenses Control,4.25,2024/004,158840
"Department for Business, Energy and Industrial Strategy",The Coal Authority,06/06/2023,Mileage Payments,PS&S - General Claims,Staff Expenses Control,0.62,2024/004,158840
"Department for Business, Energy and Industrial Strategy",The Coal Authority,07/06/2023,Mileage Payments,PS&S - General Claims,Staff Expenses Control,41.57,2024/004,158840
"Department for Business, Energy and Industrial Strategy",The Coal Authority,07/06/2023,Mileage Payments,PS&S - General Claims,Staff Expenses Control,16.75,2024/004,158840
"Department for Business, Energy and Industrial Strategy",The Coal Authority,07/06/2023,Mileage Payments,PS&S - General Claims,Staff Expenses Control,43.12,2024/004,158840
"Department for Business, Energy and Industrial Strategy",The Coal Authority,07/06/2023,Mileage Payments,PS&S - General Claims,Staff Expenses Control,11,2024/004,158840
"Department for Business, Energy and Industrial Strategy",The Coal Authority,07/06/2023,Mileage Payments,PS&S - General Claims,Staff Expenses Control,23.74,2024/004,158840
"Department for Business, Energy and Industrial Strategy",The Coal Authority,07/06/2023,Mileage Payments,PS&S - General Claims,Staff Expenses Control,32.72,2024/004,158840
"Department for Business, Energy and Industrial Strategy",The Coal Authority,08/06/2023,Mileage Payments,PS&S - General Claims,Staff Expenses Control,18.62,2024/004,158840
"Department for Business, Energy and Industrial Strategy",The Coal Authority,08/06/2023,Mileage Payments,PS&S - General Claims,Staff Expenses Control,18.66,2024/004,158840
"Department for Business, Energy and Industrial Strategy",The Coal Authority,08/06/2023,Mileage Payments,PS&S - General Claims,Staff Expenses Control,7.29,2024/004,158840
"Department for Business, Energy and Industrial Strategy",The Coal Authority,08/06/2023,Mileage Payments,PS&S - General Claims,Staff Expenses Control,7.33,2024/004,158840
"Department for Business, Energy and Industrial Strategy",The Coal Authority,08/06/2023,Mileage Payments,PS&S - General Claims,Staff Expenses Control,6.01,2024/004,158840
"Department for Business, Energy and Industrial Strategy",The Coal Authority,08/06/2023,Mileage Payments,PS&S - General Claims,Staff Expenses Control,4.24,2024/004,158840
"Department for Business, Energy and Industrial Strategy",The Coal Authority,15/06/2023,Mileage Payments,PS&S - General Claims,Staff Expenses Control,6.54,2024/004,158840
"Department for Business, Energy and Industrial Strategy",The Coal Authority,15/06/2023,Mileage Payments,PS&S - General Claims,Staff Expenses Control,3.91,2024/004,158840
"Department for Business, Energy and Industrial Strategy",The Coal Authority,15/06/2023,Mileage Payments,PS&S - General Claims,Staff Expenses Control,18.66,2024/004,158840
"Department for Business, Energy and Industrial Strategy",The Coal Authority,15/06/2023,Mileage Payments,PS&S - General Claims,Staff Expenses Control,22.25,2024/004,158840
"Department for Business, Energy and Industrial Strategy",The Coal Authority,26/06/2023,Mileage Payments,PS&S - General Claims,Staff Expenses Control,11.7,2024/004,158840
"Department for Business, Energy and Industrial Strategy",The Coal Authority,28/06/2023,Mileage Payments,ENV - Projects & Delivery,Staff Expenses Control,9.9,2024/004,158840
"Department for Business, Energy and Industrial Strategy",The Coal Authority,29/06/2023,Mileage Payments,DEFRA LEP Funding,Staff Expenses Control,95.4,2024/004,158840
"Department for Business, Energy and Industrial Strategy",The Coal Authority,29/06/2023,Mileage Payments,PS&S - General Claims,Staff Expenses Control,8.1,2024/004,158840
"Department for Business, Energy and Industrial Strategy",The Coal Authority,30/06/2023,Mileage Payments,ENV - Projects & Delivery,Staff Expenses Control,26.1,2024/004,158840
"Department for Business, Energy and Industrial Strategy",The Coal Authority,06/07/2023,Mileage Payments,Customer Services & Strategy,Staff Expenses Control,9.79,2024/004,158840
"Department for Business, Energy and Industrial Strategy",The Coal Authority,06/07/2023,Mileage Payments,Customer Services & Strategy,Staff Expenses Control,0.92,2024/004,158840
"Department for Business, Energy and Industrial Strategy",The Coal Authority,07/07/2023,Mileage Payments,Customer Services & Strategy,Staff Expenses Control,9.8,2024/004,158840
"Department for Business, Energy and Industrial Strategy",The Coal Authority,07/07/2023,Mileage Payments,Customer Services & Strategy,Staff Expenses Control,1.82,2024/004,158840
"Department for Business, Energy and Industrial Strategy",The Coal Authority,07/07/2023,Mileage Payments,ENV - Mine Water Operations,Staff Expenses Control,41.85,2024/004,158840
"Department for Business, Energy and Industrial Strategy",The Coal Authority,07/07/2023,Mileage Payments,ENV - Mine Water Operations,Staff Expenses Control,6.75,2024/004,158840
"Department for Business, Energy and Industrial Strategy",The Coal Authority,07/07/2023,Mileage Payments,ENV - Mine Water Operations,Staff Expenses Control,27,2024/004,158840
"Department for Business, Energy and Industrial Strategy",The Coal Authority,11/07/2023,Mileage Payments,By-Products - Ochre,Staff Expenses Control,0.77,2024/004,158840
"Department for Business, Energy and Industrial Strategy",The Coal Authority,11/07/2023,Mileage Payments,By-Products - Ochre,Staff Expenses Control,3.47,2024/004,158840
"Department for Business, Energy and Industrial Strategy",The Coal Authority,11/07/2023,Mileage Payments,By-Products - Ochre,Staff Expenses Control,3.5,2024/004,158840
"Department for Business, Energy and Industrial Strategy",The Coal Authority,11/07/2023,Mileage Payments,By-Products - Ochre,Staff Expenses Control,76.5,2024/004,158840
"Department for Business, Energy and Industrial Strategy",The Coal Authority,11/07/2023,Mileage Payments,By-Products - Ochre,Staff Expenses Control,3.63,2024/004,158840
"Department for Business, Energy and Industrial Strategy",The Coal Authority,11/07/2023,Mileage Payments,DEFRA Metal Mine Programme,Staff Expenses Control,10.35,2024/004,158840
"Department for Business, Energy and Industrial Strategy",The Coal Authority,11/07/2023,Mileage Payments,DEFRA Metal Mine Programme,Staff Expenses Control,22.95,2024/004,158840
"Department for Business, Energy and Industrial Strategy",The Coal Authority,11/07/2023,Mileage Payments,DEV - Planning & Local Authority Liaison,Staff Expenses Control,47.7,2024/004,158840
"Department for Business, Energy and Industrial Strategy",The Coal Authority,12/07/2023,Mileage Payments,By-Products - Ochre,Staff Expenses Control,27.93,2024/004,158840
"Department for Business, Energy and Industrial Strategy",The Coal Authority,12/07/2023,Mileage Payments,By-Products - Ochre,Staff Expenses Control,33.75,2024/004,158840
"Department for Business, Energy and Industrial Strategy",The Coal Authority,12/07/2023,Mileage Payments,DEFRA Metal Mine Programme,Staff Expenses Control,34.91,2024/004,158840
"Department for Business, Energy and Industrial Strategy",The Coal Authority,12/07/2023,Mileage Payments,PS&S - General Claims,Staff Expenses Control,8.1,2024/004,158840
"Department for Business, Energy and Industrial Strategy",The Coal Authority,02/05/2023,Mileage Payments,Executive,Staff Expenses Control,5.23,2024/004,159384
"Department for Business, Energy and Industrial Strategy",The Coal Authority,11/07/2023,Mileage Payments,PS&S - General Claims,Staff Expenses Control,52.2,2024/004,159384
"Department for Business, Energy and Industrial Strategy",The Coal Authority,12/07/2023,Mileage Payments,PS&S - General Claims,Staff Expenses Control,38.7,2024/004,159384
"Department for Business, Energy and Industrial Strategy",The Coal Authority,13/07/2023,Mileage Payments,By-Products - Energy,Staff Expenses Control,60.3,2024/004,159384
"Department for Business, Energy and Industrial Strategy",The Coal Authority,13/07/2023,Mileage Payments,By-Products - Energy,Staff Expenses Control,60.3,2024/004,159384
"Department for Business, Energy and Industrial Strategy",The Coal Authority,13/07/2023,Mileage Payments,Innovation By-Product & Services Delivery,Staff Expenses Control,9.02,2024/004,159384
"Department for Business, Energy and Industrial Strategy",The Coal Authority,13/07/2023,Mileage Payments,Innovation By-Product & Services Delivery,Staff Expenses Control,9.01,2024/004,159384
"Department for Business, Energy and Industrial Strategy",The Coal Authority,19/07/2023,Mileage Payments,Innovation By-Product & Services Delivery,Staff Expenses Control,63.09,2024/004,159384
"Department for Business, Energy and Industrial Strategy",The Coal Authority,19/07/2023,Mileage Payments,Innovation By-Product & Services Delivery,Staff Expenses Control,62.82,2024/004,159384
"Department for Business, Energy and Industrial Strategy",The Coal Authority,19/07/2023,Mileage Payments,PS&S - General Claims,Staff Expenses Control,54,2024/004,159384
"Department for Business, Energy and Industrial Strategy",The Coal Authority,20/07/2023,Mileage Payments,PS&S - General Claims,Staff Expenses Control,2.25,2024/004,159384
"Department for Business, Energy and Industrial Strategy",The Coal Authority,20/07/2023,Mileage Payments,PS&S - General Claims,Staff Expenses Control,6.75,2024/004,159384
"Department for Business, Energy and Industrial Strategy",The Coal Authority,20/07/2023,Mileage Payments,PS&S - General Claims,Staff Expenses Control,6.75,2024/004,159384
"Department for Business, Energy and Industrial Strategy",The Coal Authority,21/07/2023,Mileage Payments,PS&S - General Claims,Staff Expenses Control,50.4,2024/004,159384
"Department for Business, Energy and Industrial Strategy",The Coal Authority,27/06/2023,Mine Entry Inspection - Contractor Costs,PS&S - General Claims,Socotec UK Limited,"5,011.20",2024/004,157887
"Department for Business, Energy and Industrial Strategy",The Coal Authority,30/06/2023,Mine Entry Inspection - Contractor Costs,PS&S - General Claims,GeoAccess Ltd,"4,608.45",2024/004,158268
"Department for Business, Energy and Industrial Strategy",The Coal Authority,30/06/2023,Mine Entry Inspection - Contractor Costs,PS&S - General Claims,Interlocks Surveys,"9,492.12",2024/004,158461
"Department for Business, Energy and Industrial Strategy",The Coal Authority,21/07/2023,Mine Entry Inspection - Contractor Costs,PS&S - General Claims,Bethell Construction Limited,"1,327.50",2024/004,159238
"Department for Business, Energy and Industrial Strategy",The Coal Authority,21/07/2023,Mine Entry Inspection - Contractor Costs,PS&S - General Claims,Socotec UK Limited,"4,213.12",2024/004,159245
"Department for Business, Energy and Industrial Strategy",The Coal Authority,21/07/2023,Mine Entry Inspection - Contractor Costs,PS&S - General Claims,Bethell Construction Limited,"1,327.50",2024/004,159294
"Department for Business, Energy and Industrial Strategy",The Coal Authority,21/07/2023,Mine Entry Inspection - Contractor Costs,PS&S - General Claims,Bethell Construction Limited,"4,392.94",2024/004,159294
"Department for Business, Energy and Industrial Strategy",The Coal Authority,07/07/2023,Minewater Chemicals - Operational Sites,DEFRA Metal Mine Programme,John F Hunt Regeneration Ltd,"18,697.48",2024/004,158792
"Department for Business, Energy and Industrial Strategy",The Coal Authority,10/07/2023,Minewater Consultancy - Operational Sites,ENV - Mine Water Operations,AECOM Ltd,"1,792.20",2024/004,159364
"Department for Business, Energy and Industrial Strategy",The Coal Authority,07/07/2023,Minewater Contractor Add. Task Order - Ops Site,DEFRA Metal Mine Programme,John F Hunt Regeneration Ltd,427.43,2024/004,158792
"Department for Business, Energy and Industrial Strategy",The Coal Authority,20/07/2023,Minewater Contractor Add. Task Order - Ops Site,ENV - Mine Water Operations,Severn Trent Serv Ops Uk Ltd,16.31,2024/004,159354
"Department for Business, Energy and Industrial Strategy",The Coal Authority,20/07/2023,Minewater Contractor Add. Task Order - Ops Site,ENV - Mine Water Operations,Severn Trent Serv Ops Uk Ltd,518.41,2024/004,159354
"Department for Business, Energy and Industrial Strategy",The Coal Authority,20/07/2023,Minewater Contractor Add. Task Order - Ops Site,ENV - Mine Water Operations,Severn Trent Serv Ops Uk Ltd,113.8,2024/004,159354
"Department for Business, Energy and Industrial Strategy",The Coal Authority,20/07/2023,Minewater Contractor Add. Task Order - Ops Site,ENV - Mine Water Operations,Severn Trent Serv Ops Uk Ltd,"4,362.12",2024/004,159354
"Department for Business, Energy and Industrial Strategy",The Coal Authority,20/07/2023,Minewater Contractor Add. Task Order - Ops Site,ENV - Mine Water Operations,Severn Trent Serv Ops Uk Ltd,215.92,2024/004,159354
"Department for Business, Energy and Industrial Strategy",The Coal Authority,20/07/2023,Minewater Contractor Add. Task Order - Ops Site,ENV - Salinity Programme,Severn Trent Serv Ops Uk Ltd,36.36,2024/004,159354
"Department for Business, Energy and Industrial Strategy",The Coal Authority,10/02/2023,Minewater Contractor Add. Task Order - Ops Site,DEFRA Metal Mine Programme,Golder Associates (Uk) Ltd,"1,625.00",2024/004,159799
"Department for Business, Energy and Industrial Strategy",The Coal Authority,07/07/2023,Minewater Contractor Maint. Visits - Ops Site,DEFRA Metal Mine Programme,John F Hunt Regeneration Ltd,"26,191.61",2024/004,158792
"Department for Business, Energy and Industrial Strategy",The Coal Authority,30/06/2023,Minewater Contractor Maint. Visits - Ops Site,ENV - Mine Water Operations,National Coal Mining Museum,595,2024/004,158819
"Department for Business, Energy and Industrial Strategy",The Coal Authority,29/06/2023,Minewater Contractor Maint. Visits - Ops Site,ENV - Mine Water Operations,National Coal Mining Museum,"2,980.00",2024/004,158820
"Department for Business, Energy and Industrial Strategy",The Coal Authority,20/07/2023,Minewater Contractor Maint. Visits - Ops Site,ENV - Mine Water Operations,Severn Trent Serv Ops Uk Ltd,"10,111.93",2024/004,159325
"Department for Business, Energy and Industrial Strategy",The Coal Authority,20/07/2023,Minewater Contractor Maint. Visits - Ops Site,ENV - Mine Water Operations,Severn Trent Serv Ops Uk Ltd,510.82,2024/004,159354
"Department for Business, Energy and Industrial Strategy",The Coal Authority,20/07/2023,Minewater Contractor Maint. Visits - Ops Site,ENV - Mine Water Operations,Severn Trent Serv Ops Uk Ltd,542.64,2024/004,159354
"Department for Business, Energy and Industrial Strategy",The Coal Authority,20/07/2023,Minewater Contractor Maint. Visits - Ops Site,ENV - Mine Water Operations,Severn Trent Serv Ops Uk Ltd,336.32,2024/004,159354
"Department for Business, Energy and Industrial Strategy",The Coal Authority,20/07/2023,Minewater Contractor Maint. Visits - Ops Site,ENV - Projects & Delivery,Severn Trent Serv Ops Uk Ltd,"3,460.86",2024/004,159354
"Department for Business, Energy and Industrial Strategy",The Coal Authority,25/07/2023,Minewater Contractor Maint. Visits - Ops Site,ENV - Mine Water Operations,Severn Trent Serv Ops Uk Ltd,"473,973.11",2024/004,159617
"Department for Business, Energy and Industrial Strategy",The Coal Authority,20/07/2023,Minewater Contractor Maint. Visits - Ops Site,ENV - Mine Water Operations,Severn Trent Serv Ops Uk Ltd,"545,973.11",2024/004,159618
"Department for Business, Energy and Industrial Strategy",The Coal Authority,25/07/2023,Minewater Contractor Maint. Visits - Ops Site,ENV - Mine Water Operations,Severn Trent Serv Ops Uk Ltd,"-545,973.11",2024/004,159619
"Department for Business, Energy and Industrial Strategy",The Coal Authority,12/07/2023,Minewater Discharge Consents,ENV - Salinity Programme,Environment Agency,"1,500.00",2024/004,158821
"Department for Business, Energy and Industrial Strategy",The Coal Authority,17/07/2023,Minewater Discharge Consents,ENV - Mine Water Operations,Environment Agency,97,2024/004,159914
"Department for Business, Energy and Industrial Strategy",The Coal Authority,17/07/2023,Minewater Discharge Consents,ENV - Mine Water Operations,Environment Agency,97,2024/004,159915
"Department for Business, Energy and Industrial Strategy",The Coal Authority,17/07/2023,Minewater Discharge Consents,ENV - Mine Water Operations,Environment Agency,102,2024/004,159920
"Department for Business, Energy and Industrial Strategy",The Coal Authority,17/07/2023,Minewater Discharge Consents,ENV - Mine Water Operations,Environment Agency,97,2024/004,159921
"Department for Business, Energy and Industrial Strategy",The Coal Authority,27/06/2023,Minewater Feasibility / Scoping,ENV - Projects & Delivery,WSP UK Ltd,"9,448.24",2024/004,157959
"Department for Business, Energy and Industrial Strategy",The Coal Authority,04/07/2023,Minewater Feasibility / Scoping,NRW Metal Mine Programme,Byfield Environment and Ecology Ltd.,160,2024/004,158203
"Department for Business, Energy and Industrial Strategy",The Coal Authority,04/07/2023,Minewater Feasibility / Scoping,NRW Metal Mine Programme,Byfield Environment and Ecology Ltd.,"2,080.00",2024/004,158203
"Department for Business, Energy and Industrial Strategy",The Coal Authority,04/07/2023,Minewater Feasibility / Scoping,NRW Metal Mine Programme,Jeremy Benn Associates Ltd,"2,032.00",2024/004,158733
"Department for Business, Energy and Industrial Strategy",The Coal Authority,04/07/2023,Minewater Feasibility / Scoping,NRW Metal Mine Programme,Jeremy Benn Associates Ltd,"4,932.00",2024/004,158733
"Department for Business, Energy and Industrial Strategy",The Coal Authority,07/06/2023,Minewater Feasibility / Scoping,ENV - Projects & Delivery,AECOM Ltd,172,2024/004,158772
"Department for Business, Energy and Industrial Strategy",The Coal Authority,07/06/2023,Minewater Feasibility / Scoping,ENV - Projects & Delivery,AECOM Ltd,"6,349.00",2024/004,158772
"Department for Business, Energy and Industrial Strategy",The Coal Authority,07/06/2023,Minewater Feasibility / Scoping,ENV - Projects & Delivery,AECOM Ltd,172,2024/004,158772
"Department for Business, Energy and Industrial Strategy",The Coal Authority,07/06/2023,Minewater Feasibility / Scoping,ENV - Projects & Delivery,AECOM Ltd,"2,417.00",2024/004,158773
"Department for Business, Energy and Industrial Strategy",The Coal Authority,07/06/2023,Minewater Feasibility / Scoping,ENV - Projects & Delivery,AECOM Ltd,"1,515.42",2024/004,158773
"Department for Business, Energy and Industrial Strategy",The Coal Authority,07/06/2023,Minewater Feasibility / Scoping,ENV - Projects & Delivery,AECOM Ltd,"3,904.00",2024/004,158773
"Department for Business, Energy and Industrial Strategy",The Coal Authority,21/06/2023,Minewater Feasibility / Scoping,NRW Metal Mine Programme,Soil Engineering Geoservices L,"12,338.50",2024/004,159082
"Department for Business, Energy and Industrial Strategy",The Coal Authority,21/06/2023,Minewater Feasibility / Scoping,NRW Metal Mine Programme,Soil Engineering Geoservices L,"54,542.08",2024/004,159082
"Department for Business, Energy and Industrial Strategy",The Coal Authority,21/06/2023,Minewater Feasibility / Scoping,NRW Metal Mine Programme,Soil Engineering Geoservices L,"2,824.99",2024/004,159082
"Department for Business, Energy and Industrial Strategy",The Coal Authority,21/06/2023,Minewater Feasibility / Scoping,NRW Metal Mine Programme,Soil Engineering Geoservices L,"4,397.14",2024/004,159082
"Department for Business, Energy and Industrial Strategy",The Coal Authority,21/06/2023,Minewater Feasibility / Scoping,NRW Metal Mine Programme,Soil Engineering Geoservices L,"5,011.25",2024/004,159082
"Department for Business, Energy and Industrial Strategy",The Coal Authority,21/06/2023,Minewater Feasibility / Scoping,NRW Metal Mine Programme,Soil Engineering Geoservices L,"7,544.07",2024/004,159082
"Department for Business, Energy and Industrial Strategy",The Coal Authority,21/06/2023,Minewater Feasibility / Scoping,NRW Metal Mine Programme,Soil Engineering Geoservices L,"7,362.20",2024/004,159082
"Department for Business, Energy and Industrial Strategy",The Coal Authority,21/06/2023,Minewater Feasibility / Scoping,NRW Metal Mine Programme,Soil Engineering Geoservices L,"2,691.14",2024/004,159082
"Department for Business, Energy and Industrial Strategy",The Coal Authority,21/06/2023,Minewater Feasibility / Scoping,NRW Metal Mine Programme,Soil Engineering Geoservices L,"4,386.68",2024/004,159082
"Department for Business, Energy and Industrial Strategy",The Coal Authority,29/06/2023,Minewater Feasibility / Scoping,ENV - Projects & Delivery,WSP UK Ltd,"51,145.17",2024/004,159104
"Department for Business, Energy and Industrial Strategy",The Coal Authority,24/06/2023,Minewater Feasibility / Scoping,ENV - Projects & Delivery,WSP UK Ltd,"3,039.73",2024/004,159415
"Department for Business, Energy and Industrial Strategy",The Coal Authority,21/07/2023,Minewater Feasibility / Scoping,DEFRA Metal Mine Programme,CDM Smith,"15,775.00",2024/004,159427
"Department for Business, Energy and Industrial Strategy",The Coal Authority,27/07/2023,Minewater Feasibility / Scoping,NRW Metal Mine Programme,WSP UK Ltd,"6,853.48",2024/004,159907
"Department for Business, Energy and Industrial Strategy",The Coal Authority,27/06/2023,Minewater Investigation Studies,ENV - Salinity Programme,AECOM Ltd,376.94,2024/004,157956
"Department for Business, Energy and Industrial Strategy",The Coal Authority,27/06/2023,Minewater Investigation Studies,ENV - Salinity Programme,AECOM Ltd,24.56,2024/004,157956
"Department for Business, Energy and Industrial Strategy",The Coal Authority,27/06/2023,Minewater Investigation Studies,ENV - Salinity Programme,AECOM Ltd,"7,448.41",2024/004,157956
"Department for Business, Energy and Industrial Strategy",The Coal Authority,30/06/2023,Minewater Investigation Studies,ENV - Salinity Programme,Wallingford Hydrosolutions Ltd,360,2024/004,158714
"Department for Business, Energy and Industrial Strategy",The Coal Authority,19/07/2023,Minewater Land Agents (Acquisitions),DEFRA LEP Funding,Staff Expenses Control,169.33,2024/004,159384
"Department for Business, Energy and Industrial Strategy",The Coal Authority,20/07/2023,Minewater Landscaping,ENV - Mine Water Operations,Severn Trent Serv Ops Uk Ltd,"10,382.44",2024/004,159354
"Department for Business, Energy and Industrial Strategy",The Coal Authority,20/07/2023,Minewater Liability & Monitoring Sites - Ad-hoc,ENV - Mine Water Operations,Severn Trent Serv Ops Uk Ltd,"1,215.71",2024/004,159354
"Department for Business, Energy and Industrial Strategy",The Coal Authority,20/07/2023,Minewater Liability & Monitoring Sites - Ad-hoc,ENV - Salinity Programme,Severn Trent Serv Ops Uk Ltd,214.38,2024/004,159354
"Department for Business, Energy and Industrial Strategy",The Coal Authority,20/07/2023,Minewater Liability & Monitoring Sites - Maint.,ENV - Technical,Severn Trent Serv Ops Uk Ltd,"1,145.09",2024/004,159354
"Department for Business, Energy and Industrial Strategy",The Coal Authority,07/07/2023,Minewater Management Fees,DEFRA Metal Mine Programme,John F Hunt Regeneration Ltd,"52,040.04",2024/004,158792
"Department for Business, Energy and Industrial Strategy",The Coal Authority,28/06/2023,Minewater Monitoring & Flow Measurement,DEFRA Metal Mine Programme,Hydro-Logic Services Int Limited,929,2024/004,157885
"Department for Business, Energy and Industrial Strategy",The Coal Authority,30/06/2023,Minewater Monitoring & Flow Measurement,NRW Metal Mine Programme,Socotec UK Limited,"2,152.02",2024/004,157987
"Department for Business, Energy and Industrial Strategy",The Coal Authority,30/06/2023,Minewater Monitoring & Flow Measurement,NRW Metal Mine Programme,Socotec UK Limited,"1,383.66",2024/004,157989
"Department for Business, Energy and Industrial Strategy",The Coal Authority,30/06/2023,Minewater Monitoring & Flow Measurement,NRW Metal Mine Programme,Socotec UK Limited,307.65,2024/004,157990
"Department for Business, Energy and Industrial Strategy",The Coal Authority,26/06/2023,Minewater Monitoring & Flow Measurement,DEFRA LEP Funding,Hydro-Logic Services Int Limited,789,2024/004,158487
"Department for Business, Energy and Industrial Strategy",The Coal Authority,30/06/2023,Minewater Monitoring & Flow Measurement,NRW Metal Mine Programme,Socotec UK Limited,366.12,2024/004,158699
"Department for Business, Energy and Industrial Strategy",The Coal Authority,30/06/2023,Minewater Monitoring & Flow Measurement,NRW Metal Mine Programme,Socotec UK Limited,94.59,2024/004,158699
"Department for Business, Energy and Industrial Strategy",The Coal Authority,07/06/2023,Minewater Monitoring & Flow Measurement,ENV - Technical,Government Procurement Card,7.17,2024/004,159927
"Department for Business, Energy and Industrial Strategy",The Coal Authority,22/06/2023,Minewater Monitoring & Flow Measurement,ENV - Projects & Delivery,Government Procurement Card,3.96,2024/004,159927
"Department for Business, Energy and Industrial Strategy",The Coal Authority,03/07/2023,Minewater Power Costs,DEFRA Metal Mine Programme,Wheal Jane Ltd,475.56,2024/004,159825
"Department for Business, Energy and Industrial Strategy",The Coal Authority,31/07/2023,Minewater Power Costs,DEFRA Metal Mine Programme,Wheal Jane Ltd,"44,538.66",2024/004,159826
"Department for Business, Energy and Industrial Strategy",The Coal Authority,28/07/2023,Minewater Power Costs,DEFRA Metal Mine Programme,Wheal Jane Ltd,"-44,538.66",2024/004,159827
"Department for Business, Energy and Industrial Strategy",The Coal Authority,20/07/2023,Minewater Pump Overhauls,ENV - Mine Water Operations,Severn Trent Serv Ops Uk Ltd,"3,428.27",2024/004,159354
"Department for Business, Energy and Industrial Strategy",The Coal Authority,20/07/2023,Minewater Pumping Tests,ENV - Projects & Delivery,Severn Trent Serv Ops Uk Ltd,"4,257.77",2024/004,159354
"Department for Business, Energy and Industrial Strategy",The Coal Authority,20/07/2023,Minewater Pumping Tests,ENV - Projects & Delivery,Severn Trent Serv Ops Uk Ltd,692.23,2024/004,159354
"Department for Business, Energy and Industrial Strategy",The Coal Authority,20/07/2023,Minewater Pumping Tests,ENV - Projects & Delivery,Severn Trent Serv Ops Uk Ltd,"4,346.63",2024/004,159354
"Department for Business, Energy and Industrial Strategy",The Coal Authority,20/07/2023,Minewater Pumping Tests,ENV - Projects & Delivery,Severn Trent Serv Ops Uk Ltd,"1,088.34",2024/004,159354
"Department for Business, Energy and Industrial Strategy",The Coal Authority,20/07/2023,Minewater Pumping Tests,ENV - Projects & Delivery,Severn Trent Serv Ops Uk Ltd,"6,631.51",2024/004,159354
"Department for Business, Energy and Industrial Strategy",The Coal Authority,20/07/2023,Minewater Pumping Tests,ENV - Projects & Delivery,Severn Trent Serv Ops Uk Ltd,"8,819.34",2024/004,159354
"Department for Business, Energy and Industrial Strategy",The Coal Authority,20/07/2023,Minewater Pumping Tests,ENV - Projects & Delivery,Severn Trent Serv Ops Uk Ltd,"12,868.27",2024/004,159354
"Department for Business, Energy and Industrial Strategy",The Coal Authority,20/07/2023,Minewater Pumping Tests,ENV - Projects & Delivery,Severn Trent Serv Ops Uk Ltd,101.02,2024/004,159354
"Department for Business, Energy and Industrial Strategy",The Coal Authority,20/07/2023,Minewater Pumping Tests,ENV - Salinity Programme,Severn Trent Serv Ops Uk Ltd,"1,154.47",2024/004,159354
"Department for Business, Energy and Industrial Strategy",The Coal Authority,20/07/2023,Minewater Pumping Tests,ENV - Salinity Programme,Severn Trent Serv Ops Uk Ltd,"4,659.62",2024/004,159354
"Department for Business, Energy and Industrial Strategy",The Coal Authority,20/07/2023,Minewater Pumping Tests,ENV - Salinity Programme,Severn Trent Serv Ops Uk Ltd,"2,105.41",2024/004,159354
"Department for Business, Energy and Industrial Strategy",The Coal Authority,08/05/2023,Minewater Rates,By-Products - Energy,Northumberland County Council,"1,397.20",2024/004,158292
"Department for Business, Energy and Industrial Strategy",The Coal Authority,08/05/2023,Minewater Rates,By-Products - Energy,Northumberland County Council,114.15,2024/004,158293
"Department for Business, Energy and Industrial Strategy",The Coal Authority,08/05/2023,Minewater Rates,By-Products - Energy,Northumberland County Council,"1,374.82",2024/004,158294
"Department for Business, Energy and Industrial Strategy",The Coal Authority,08/05/2023,Minewater Rates,By-Products - Energy,Northumberland County Council,-0.02,2024/004,158294
"Department for Business, Energy and Industrial Strategy",The Coal Authority,08/05/2023,Minewater Rates,By-Products - Energy,Northumberland County Council,"1,397.20",2024/004,158295
"Department for Business, Energy and Industrial Strategy",The Coal Authority,08/05/2023,Minewater Rates,By-Products - Energy,Northumberland County Council,"1,397.20",2024/004,158296
"Department for Business, Energy and Industrial Strategy",The Coal Authority,23/03/2023,Minewater Rates,ENV - Mine Water Operations,Neath Port Talbot County B C,"5,303.19",2024/004,158696
"Department for Business, Energy and Industrial Strategy",The Coal Authority,24/10/2022,Minewater Rates,ENV - Mine Water Operations,Barnsley Metropolitan Bor. Cou,"7,485.00",2024/004,158746
"Department for Business, Energy and Industrial Strategy",The Coal Authority,24/10/2022,Minewater Rates,ENV - Mine Water Operations,Barnsley Metropolitan Bor. Cou,"7,485.00",2024/004,158747
"Department for Business, Energy and Industrial Strategy",The Coal Authority,24/10/2022,Minewater Rates,ENV - Mine Water Operations,Barnsley Metropolitan Bor. Cou,"5,496.24",2024/004,158748
"Department for Business, Energy and Industrial Strategy",The Coal Authority,24/10/2022,Minewater Rates,ENV - Mine Water Operations,Barnsley Metropolitan Bor. Cou,"7,485.00",2024/004,158749
"Department for Business, Energy and Industrial Strategy",The Coal Authority,24/10/2022,Minewater Rates,ENV - Mine Water Operations,Barnsley Metropolitan Bor. Cou,"7,200.00",2024/004,158750
"Department for Business, Energy and Industrial Strategy",The Coal Authority,24/10/2022,Minewater Rates,ENV - Mine Water Operations,Barnsley Metropolitan Bor. Cou,"7,365.00",2024/004,158751
"Department for Business, Energy and Industrial Strategy",The Coal Authority,05/07/2023,Minewater Rates,ENV - Mine Water Operations,Barnsley Metropolitan Bor. Cou,28,2024/004,159092
"Department for Business, Energy and Industrial Strategy",The Coal Authority,08/05/2023,Minewater Rates,By-Products - Energy,Northumberland County Council,553.59,2024/004,159674
"Department for Business, Energy and Industrial Strategy",The Coal Authority,08/05/2023,Minewater Rates,By-Products - Energy,Northumberland County Council,132.53,2024/004,159674
"Department for Business, Energy and Industrial Strategy",The Coal Authority,08/05/2023,Minewater Rates,By-Products - Energy,Northumberland County Council,0.01,2024/004,159674
"Department for Business, Energy and Industrial Strategy",The Coal Authority,20/07/2023,Minewater Remediation,ENV - Mine Water Operations,Severn Trent Serv Ops Uk Ltd,"4,664.08",2024/004,159354
"Department for Business, Energy and Industrial Strategy",The Coal Authority,20/07/2023,Minewater Remediation,ENV - Mine Water Operations,Severn Trent Serv Ops Uk Ltd,"2,716.20",2024/004,159354
"Department for Business, Energy and Industrial Strategy",The Coal Authority,03/07/2023,Minewater Rent,ENV - Mine Water Operations,The National Trust,"2,262.00",2024/004,157955
"Department for Business, Energy and Industrial Strategy",The Coal Authority,03/07/2023,Minewater Rent,ENV - Mine Water Operations,Rental Payment,500,2024/004,157961
"Department for Business, Energy and Industrial Strategy",The Coal Authority,06/07/2023,Minewater Rent,ENV - Mine Water Operations,Rental Payment,600,2024/004,158385
"Department for Business, Energy and Industrial Strategy",The Coal Authority,06/07/2023,Minewater Rent,ENV - Mine Water Operations,Rental Payment,"1,000.00",2024/004,158389
"Department for Business, Energy and Industrial Strategy",The Coal Authority,06/07/2023,Minewater Rent,ENV - Mine Water Operations,Rental Payment,50,2024/004,158390
"Department for Business, Energy and Industrial Strategy",The Coal Authority,06/07/2023,Minewater Rent,ENV - Projects & Delivery,Rental Payment,"1,000.00",2024/004,158391
"Department for Business, Energy and Industrial Strategy",The Coal Authority,01/07/2023,Minewater Rent,ENV - Mine Water Operations,Balgonie Estates Ltd,150,2024/004,158430
"Department for Business, Energy and Industrial Strategy",The Coal Authority,06/07/2023,Minewater Rent,ENV - Mine Water Operations,Northumberland Wildlife Trust,600,2024/004,158448
"Department for Business, Energy and Industrial Strategy",The Coal Authority,06/07/2023,Minewater Rent,ENV - Mine Water Operations,Northumberland Wildlife Trust,600,2024/004,158448
"Department for Business, Energy and Industrial Strategy",The Coal Authority,11/07/2023,Minewater Rent,ENV - Mine Water Operations,Natural Resources Wales,100,2024/004,158864
"Department for Business, Energy and Industrial Strategy",The Coal Authority,01/07/2023,Minewater Rent,ENV - Mine Water Operations,Wemyss Estates Trustees,34.3,2024/004,159318
"Department for Business, Energy and Industrial Strategy",The Coal Authority,01/07/2023,Minewater Rent,ENV - Mine Water Operations,Wemyss Estates Trustees,41.02,2024/004,159319
"Department for Business, Energy and Industrial Strategy",The Coal Authority,01/07/2023,Minewater Rent,ENV - Mine Water Operations,Wemyss Estates Trustees,43.26,2024/004,159320
"Department for Business, Energy and Industrial Strategy",The Coal Authority,10/05/2023,Minewater Rent,ENV - Mine Water Operations,Trustees Of Llanover Estate,"2,000.00",2024/004,159469
"Department for Business, Energy and Industrial Strategy",The Coal Authority,09/01/2023,Minewater Rent,ENV - Mine Water Operations,Savills - Crown Estate Scotland,250,2024/004,159835
"Department for Business, Energy and Industrial Strategy",The Coal Authority,21/06/2023,Minewater Sampling - 'Non-operational' Sites,DEFRA Metal Mine Programme,Enitial Limited,939.9,2024/004,158511
"Department for Business, Energy and Industrial Strategy",The Coal Authority,29/06/2023,Minewater Sampling - 'Non-operational' Sites,DEFRA Metal Mine Programme,Enitial Limited,800,2024/004,158512
"Department for Business, Energy and Industrial Strategy",The Coal Authority,27/06/2023,Minewater Sampling - 'Non-operational' Sites,DEFRA Metal Mine Programme,Socotec UK Limited,177.86,2024/004,158513
"Department for Business, Energy and Industrial Strategy",The Coal Authority,27/06/2023,Minewater Sampling - 'Non-operational' Sites,DEFRA Metal Mine Programme,Socotec UK Limited,177.86,2024/004,158514
"Department for Business, Energy and Industrial Strategy",The Coal Authority,30/06/2023,Minewater Sampling - 'Non-operational' Sites,DEFRA Metal Mine Programme,Socotec UK Limited,177.86,2024/004,158517
"Department for Business, Energy and Industrial Strategy",The Coal Authority,25/07/2023,Minewater Sampling - 'Non-operational' Sites,ENV - Projects & Delivery,Staffordshire County Council,300,2024/004,159763
"Department for Business, Energy and Industrial Strategy",The Coal Authority,11/05/2023,Minewater Sampling - 'Non-operational' Sites,ENV - Salinity Programme,In-Situ Europe Ltd,"1,430.00",2024/004,159842
"Department for Business, Energy and Industrial Strategy",The Coal Authority,11/05/2023,Minewater Sampling - 'Non-operational' Sites,ENV - Salinity Programme,In-Situ Europe Ltd,79,2024/004,159842
"Department for Business, Energy and Industrial Strategy",The Coal Authority,11/05/2023,Minewater Sampling - 'Non-operational' Sites,ENV - Salinity Programme,In-Situ Europe Ltd,253.2,2024/004,159842
"Department for Business, Energy and Industrial Strategy",The Coal Authority,11/05/2023,Minewater Sampling - 'Non-operational' Sites,ENV - Salinity Programme,In-Situ Europe Ltd,"4,204.30",2024/004,159842
"Department for Business, Energy and Industrial Strategy",The Coal Authority,21/06/2023,Minewater Sampling - 'Non-operational' Sites,ENV - Salinity Programme,In-Situ Europe Ltd,440,2024/004,159913
"Department for Business, Energy and Industrial Strategy",The Coal Authority,07/07/2023,Minewater Sampling - Operational Sites,DEFRA Metal Mine Programme,John F Hunt Regeneration Ltd,456.58,2024/004,158792
"Department for Business, Energy and Industrial Strategy",The Coal Authority,29/06/2023,Minewater Site Surveys,ENV - Salinity Programme,European Geophysical Services,"3,090.00",2024/004,157907
"Department for Business, Energy and Industrial Strategy",The Coal Authority,29/06/2023,Minewater Site Surveys,ENV - Salinity Programme,European Geophysical Services,400,2024/004,157907
"Department for Business, Energy and Industrial Strategy",The Coal Authority,29/06/2023,Minewater Site Surveys,ENV - Salinity Programme,European Geophysical Services,300,2024/004,157908
"Department for Business, Energy and Industrial Strategy",The Coal Authority,29/06/2023,Minewater Site Surveys,ENV - Salinity Programme,European Geophysical Services,"2,655.00",2024/004,157908
"Department for Business, Energy and Industrial Strategy",The Coal Authority,27/06/2023,Minewater Site Surveys,DEFRA Metal Mine Programme,AECOM Ltd,"12,815.50",2024/004,158071
"Department for Business, Energy and Industrial Strategy",The Coal Authority,27/06/2023,Minewater Site Surveys,NRW Metal Mine Programme,Hydro-Logic Services Int Limited,"5,217.75",2024/004,158072
"Department for Business, Energy and Industrial Strategy",The Coal Authority,27/06/2023,Minewater Site Surveys,NRW Metal Mine Programme,AECOM Ltd,550.49,2024/004,158073
"Department for Business, Energy and Industrial Strategy",The Coal Authority,03/07/2023,Minewater Site Surveys,DEFRA Metal Mine Programme,Cornerstone  Projects Ltd,120.5,2024/004,158335
"Department for Business, Energy and Industrial Strategy",The Coal Authority,14/07/2023,Minewater Site Surveys,NRW Metal Mine Programme,The Dyfed Archaeological Trust,"2,680.00",2024/004,158800
"Department for Business, Energy and Industrial Strategy",The Coal Authority,19/07/2023,Minewater Site Surveys,ENV - Salinity Programme,European Geophysical Services,"4,210.50",2024/004,159106
"Department for Business, Energy and Industrial Strategy",The Coal Authority,30/06/2023,Minewater Site Surveys,NRW Metal Mine Programme,Hydro-Logic Services Int Limited,210,2024/004,159230
"Department for Business, Energy and Industrial Strategy",The Coal Authority,24/07/2023,Minewater Site Surveys,NRW Metal Mine Programme,Hydro-Logic Services Int Limited,"1,118.50",2024/004,159870
"Department for Business, Energy and Industrial Strategy",The Coal Authority,20/07/2023,Minewater Sludge Disposal,ENV - Mine Water Operations,Severn Trent Serv Ops Uk Ltd,508.73,2024/004,159354
"Department for Business, Energy and Industrial Strategy",The Coal Authority,20/07/2023,Minewater Sludge Disposal,ENV - Mine Water Operations,Severn Trent Serv Ops Uk Ltd,"7,587.94",2024/004,159354
"Department for Business, Energy and Industrial Strategy",The Coal Authority,20/07/2023,Minewater Sludge Disposal,ENV - Mine Water Operations,Severn Trent Serv Ops Uk Ltd,128.03,2024/004,159354
"Department for Business, Energy and Industrial Strategy",The Coal Authority,31/07/2023,Minewater Sludge Disposal,DEFRA Metal Mine Programme,Wheal Jane Ltd,"44,538.66",2024/004,159828
"Department for Business, Energy and Industrial Strategy",The Coal Authority,27/06/2023,Minewater Telecoms & Telemetry,ENV - Mine Water Operations,KORE Wireless UK PLC,35,2024/004,157906
"Department for Business, Energy and Industrial Strategy",The Coal Authority,30/06/2023,Minewater Telecoms & Telemetry,ENV - Mine Water Operations,KORE Wireless UK PLC,15,2024/004,158695
"Department for Business, Energy and Industrial Strategy",The Coal Authority,20/07/2023,Minewater Telecoms & Telemetry,ENV - Mine Water Operations,Severn Trent Serv Ops Uk Ltd,836.11,2024/004,159354
"Department for Business, Energy and Industrial Strategy",The Coal Authority,10/07/2023,Minewater Water Charges,ENV - Mine Water Operations,Dwr Cymru Welsh Water,114.98,2024/004,158866
"Department for Business, Energy and Industrial Strategy",The Coal Authority,18/07/2023,Minewater Water Charges,ENV - Mine Water Operations,Wave Utilities,"16,412.66",2024/004,159845
"Department for Business, Energy and Industrial Strategy",The Coal Authority,16/07/2023,Minewater Water Charges,ENV - Mine Water Operations,Water Plus Limited,130.27,2024/004,159919
"Department for Business, Energy and Industrial Strategy",The Coal Authority,02/06/2023,Mobiles Phones - Line Rent,ENV - Mine Water Operations,Government Procurement Card,0.66,2024/004,159117
"Department for Business, Energy and Industrial Strategy",The Coal Authority,03/07/2023,Mobiles Phones - Line Rent,ENV - Mine Water Operations,Government Procurement Card,0.66,2024/004,159117
"Department for Business, Energy and Industrial Strategy",The Coal Authority,15/05/2023,Mobiles Phones - Line Rent,DIG - Service & Assurance,Government Procurement Card,83.33,2024/004,159926
"Department for Business, Energy and Industrial Strategy",The Coal Authority,03/07/2023,Office Furniture,PS&S - General Claims,Staff Expenses Control,179.17,2024/004,158840
"Department for Business, Energy and Industrial Strategy",The Coal Authority,18/07/2023,Office Furniture,Facilities,Gresham Office Furniture,"1,038.00",2024/004,159563
"Department for Business, Energy and Industrial Strategy",The Coal Authority,18/07/2023,Office Furniture,Facilities,Gresham Office Furniture,472.8,2024/004,159563
"Department for Business, Energy and Industrial Strategy",The Coal Authority,09/07/2023,Office Printing Services,DIG - Service & Assurance,De Lage Landen Leasing Ltd,"1,362.98",2024/004,158875
"Department for Business, Energy and Industrial Strategy",The Coal Authority,17/05/2023,Office Printing Services,PS&S - General Claims,Government Procurement Card,61.65,2024/004,159118
"Department for Business, Energy and Industrial Strategy",The Coal Authority,01/07/2023,Office Telephony - Call Charges,DIG - Service & Assurance,Daisy Corporate Services Trading Services Ltd,35.93,2024/004,159368
"Department for Business, Energy and Industrial Strategy",The Coal Authority,29/05/2023,Office Telephony - Call Charges,DIG - Service & Assurance,Government Procurement Card,50,2024/004,159926
"Department for Business, Energy and Industrial Strategy",The Coal Authority,01/07/2023,Office Telephony - Line Rent,DIG - Service & Assurance,Daisy Corporate Services Trading Services Ltd,396.88,2024/004,159368
"Department for Business, Energy and Industrial Strategy",The Coal Authority,22/05/2023,Office Telephony - Line Rent,DIG - Service & Assurance,Government Procurement Card,5.4,2024/004,159926
"Department for Business, Energy and Industrial Strategy",The Coal Authority,26/05/2023,Office Telephony - Line Rent,DIG - Service & Assurance,Government Procurement Card,99.97,2024/004,159926
"Department for Business, Energy and Industrial Strategy",The Coal Authority,12/06/2023,Office Telephony - Line Rent,DIG - Service & Assurance,Government Procurement Card,99.97,2024/004,159927
"Department for Business, Energy and Industrial Strategy",The Coal Authority,22/06/2023,Office Telephony - Line Rent,DIG - Service & Assurance,Government Procurement Card,5.4,2024/004,159927
"Department for Business, Energy and Industrial Strategy",The Coal Authority,25/07/2023,Ordance Survey Map Charges,DIG - Data Licensing,Ordnance Survey,678.32,2024/004,159706
"Department for Business, Energy and Industrial Strategy",The Coal Authority,25/07/2023,Ordance Survey Map Charges,DIG - Data Licensing,Ordnance Survey,"14,244.72",2024/004,159707
"Department for Business, Energy and Industrial Strategy",The Coal Authority,18/07/2023,Other Contractor Costs,DEV - Historic Property Liabilities,Compliance Surveys Limited,540,2024/004,159374
"Department for Business, Energy and Industrial Strategy",The Coal Authority,20/07/2023,Other Hosting / IaaS,DEV - Permissions,AWS invoice reallocation,913.58,2024/004,159098
"Department for Business, Energy and Industrial Strategy",The Coal Authority,20/07/2023,Other Hosting / IaaS,DIG - Service & Assurance,AWS invoice reallocation,"-2,920.52",2024/004,159098
"Department for Business, Energy and Industrial Strategy",The Coal Authority,20/07/2023,Other Hosting / IaaS,Mining Information,AWS invoice reallocation,"2,006.94",2024/004,159098
"Department for Business, Energy and Industrial Strategy",The Coal Authority,10/06/2023,Outsourced Cleaning Staff,Facilities,Personnel Hygiene Services Ltd,"2,280.43",2024/004,159688
"Department for Business, Energy and Industrial Strategy",The Coal Authority,25/07/2023,Outsourced Cleaning Staff,Facilities,Fidelis,"5,590.41",2024/004,159718
"Department for Business, Energy and Industrial Strategy",The Coal Authority,12/07/2023,Outsourced Management - Estates,DEV - Property Management,Cooke & Arkwright,300.97,2024/004,159844
"Department for Business, Energy and Industrial Strategy",The Coal Authority,30/06/2023,Outsourced Security Staff,Facilities,Regent Office Care Ltd T/A Regent Samsic,502.72,2024/004,158507
"Department for Business, Energy and Industrial Strategy",The Coal Authority,30/06/2023,Outsourced Security Staff,Facilities,Regent Office Care Ltd T/A Regent Samsic,"8,793.47",2024/004,158515
"Department for Business, Energy and Industrial Strategy",The Coal Authority,27/07/2023,Payroll Processing Fees,Finance,Cgi It Uk Ltd,55.32,2024/004,159850
"Department for Business, Energy and Industrial Strategy",The Coal Authority,27/07/2023,Payroll Processing Fees,Finance,Cgi It Uk Ltd,"1,027.75",2024/004,159851
"Department for Business, Energy and Industrial Strategy",The Coal Authority,20/06/2023,Peripherals / Consumables (MEP),Engineering,Staff Expenses Control,45.83,2024/004,157862
"Department for Business, Energy and Industrial Strategy",The Coal Authority,23/06/2023,Peripherals / Consumables (MEP),ENV - Salinity Programme,Staff Expenses Control,19.15,2024/004,157862
"Department for Business, Energy and Industrial Strategy",The Coal Authority,23/06/2023,Peripherals / Consumables (MEP),ENV - Salinity Programme,Staff Expenses Control,7.86,2024/004,157862
"Department for Business, Energy and Industrial Strategy",The Coal Authority,23/06/2023,Peripherals / Consumables (MEP),ENV - Salinity Programme,Staff Expenses Control,16,2024/004,157862
"Department for Business, Energy and Industrial Strategy",The Coal Authority,26/06/2023,Peripherals / Consumables (MEP),PS&S - General Claims,Staff Expenses Control,20.67,2024/004,158576
"Department for Business, Energy and Industrial Strategy",The Coal Authority,03/07/2023,Peripherals / Consumables (MEP),Finance,Staff Expenses Control,38.21,2024/004,158576
"Department for Business, Energy and Industrial Strategy",The Coal Authority,25/04/2023,Peripherals / Consumables (MEP),Staff Network and Groups,Staff Expenses Control,18.75,2024/004,158840
"Department for Business, Energy and Industrial Strategy",The Coal Authority,03/05/2023,Peripherals / Consumables (MEP),DIG - Service & Assurance,Government Procurement Card,42.19,2024/004,159118
"Department for Business, Energy and Industrial Strategy",The Coal Authority,05/05/2023,Peripherals / Consumables (MEP),DIG - Service & Assurance,Government Procurement Card,36.31,2024/004,159118
"Department for Business, Energy and Industrial Strategy",The Coal Authority,07/05/2023,Peripherals / Consumables (MEP),DIG - Service & Assurance,Government Procurement Card,15.18,2024/004,159118
"Department for Business, Energy and Industrial Strategy",The Coal Authority,09/05/2023,Peripherals / Consumables (MEP),DIG - Service & Assurance,Government Procurement Card,37.91,2024/004,159118
"Department for Business, Energy and Industrial Strategy",The Coal Authority,10/05/2023,Peripherals / Consumables (MEP),DIG - Service & Assurance,Government Procurement Card,88.74,2024/004,159118
"Department for Business, Energy and Industrial Strategy",The Coal Authority,10/05/2023,Peripherals / Consumables (MEP),DIG - Service & Assurance,Government Procurement Card,88.75,2024/004,159118
"Department for Business, Energy and Industrial Strategy",The Coal Authority,10/05/2023,Peripherals / Consumables (MEP),DIG - Service & Assurance,Government Procurement Card,7.82,2024/004,159118
"Department for Business, Energy and Industrial Strategy",The Coal Authority,10/05/2023,Peripherals / Consumables (MEP),DIG - Service & Assurance,Government Procurement Card,75.79,2024/004,159118
"Department for Business, Energy and Industrial Strategy",The Coal Authority,11/05/2023,Peripherals / Consumables (MEP),DIG - Service & Assurance,Government Procurement Card,11.88,2024/004,159118
"Department for Business, Energy and Industrial Strategy",The Coal Authority,11/05/2023,Peripherals / Consumables (MEP),DIG - Service & Assurance,Government Procurement Card,140.14,2024/004,159118
"Department for Business, Energy and Industrial Strategy",The Coal Authority,11/05/2023,Peripherals / Consumables (MEP),DIG - Service & Assurance,Government Procurement Card,81.64,2024/004,159118
"Department for Business, Energy and Industrial Strategy",The Coal Authority,12/05/2023,Peripherals / Consumables (MEP),DIG - Service & Assurance,Government Procurement Card,2.49,2024/004,159118
"Department for Business, Energy and Industrial Strategy",The Coal Authority,12/05/2023,Peripherals / Consumables (MEP),DIG - Service & Assurance,Government Procurement Card,109.45,2024/004,159118
"Department for Business, Energy and Industrial Strategy",The Coal Authority,12/05/2023,Peripherals / Consumables (MEP),DIG - Service & Assurance,Government Procurement Card,165.83,2024/004,159118
"Department for Business, Energy and Industrial Strategy",The Coal Authority,15/05/2023,Peripherals / Consumables (MEP),DIG - Service & Assurance,Government Procurement Card,72.96,2024/004,159118
"Department for Business, Energy and Industrial Strategy",The Coal Authority,16/05/2023,Peripherals / Consumables (MEP),DIG - Service & Assurance,Government Procurement Card,15.48,2024/004,159118
"Department for Business, Energy and Industrial Strategy",The Coal Authority,16/05/2023,Peripherals / Consumables (MEP),DIG - Technical Delivery,Government Procurement Card,123.7,2024/004,159118
"Department for Business, Energy and Industrial Strategy",The Coal Authority,23/05/2023,Peripherals / Consumables (MEP),DIG - Service & Assurance,Government Procurement Card,9.04,2024/004,159118
"Department for Business, Energy and Industrial Strategy",The Coal Authority,24/05/2023,Peripherals / Consumables (MEP),DIG - Service & Assurance,Government Procurement Card,33.32,2024/004,159118
"Department for Business, Energy and Industrial Strategy",The Coal Authority,26/05/2023,Peripherals / Consumables (MEP),DIG - Service & Assurance,Government Procurement Card,77,2024/004,159118
"Department for Business, Energy and Industrial Strategy",The Coal Authority,27/05/2023,Peripherals / Consumables (MEP),DIG - Service & Assurance,Government Procurement Card,89.61,2024/004,159118
"Department for Business, Energy and Industrial Strategy",The Coal Authority,28/05/2023,Peripherals / Consumables (MEP),DIG - Service & Assurance,Government Procurement Card,23.82,2024/004,159118
"Department for Business, Energy and Industrial Strategy",The Coal Authority,30/05/2023,Peripherals / Consumables (MEP),DIG - Service & Assurance,Government Procurement Card,55.59,2024/004,159118
"Department for Business, Energy and Industrial Strategy",The Coal Authority,10/07/2023,Peripherals / Consumables (MEP),Engineering,Staff Expenses Control,4.5,2024/004,159384
"Department for Business, Energy and Industrial Strategy",The Coal Authority,10/05/2023,Peripherals / Consumables (MEP),DIG - Service & Assurance,Government Procurement Card,416.39,2024/004,159926
